Body Name,Body,Date,Department,Beneficiary,Summary of Purpose (SeRCOP),Amount,Merchant Code,Transaction Number,Supplier ID
Sandwell Metropolitan Borough Council,http://www.sandwell.gov.uk/info/200202/performance_and_spending/1079/payments_over_500,07-Sep-2022,Adults Social Care Capital,A E CHAPMAN & CO (OLD HILL) LTD,Adults Social Care Capital,3146.04,CIP - Fixtures & Fittings,2223P06_CR00001,77001665
Sandwell Metropolitan Borough Council,http://www.sandwell.gov.uk/info/200202/performance_and_spending/1079/payments_over_500,01-Sep-2022,Adults Social Care Capital,AXIS EUROPE PLC   ,Adults Social Care Capital,4266.00,Deferred Charges/Grant Payments,2223P06_CR00002,64946
Sandwell Metropolitan Borough Council,http://www.sandwell.gov.uk/info/200202/performance_and_spending/1079/payments_over_500,01-Sep-2022,Adults Social Care Capital,AXIS EUROPE PLC   ,Adults Social Care Capital,6443.72,Deferred Charges/Grant Payments,2223P06_CR00003,64946
Sandwell Metropolitan Borough Council,http://www.sandwell.gov.uk/info/200202/performance_and_spending/1079/payments_over_500,01-Sep-2022,Adults Social Care Capital,AXIS EUROPE PLC   ,Adults Social Care Capital,7602.84,Deferred Charges/Grant Payments,2223P06_CR00004,64946
Sandwell Metropolitan Borough Council,http://www.sandwell.gov.uk/info/200202/performance_and_spending/1079/payments_over_500,01-Sep-2022,Adults Social Care Capital,DLM BUILDING & MAINTENANCE LTD,Adults Social Care Capital,7972.77,Deferred Charges/Grant Payments,2223P06_CR00005,137596
Sandwell Metropolitan Borough Council,http://www.sandwell.gov.uk/info/200202/performance_and_spending/1079/payments_over_500,01-Sep-2022,Adults Social Care Capital,DOLPHIN LIFTS MIDLANDS LTD,Adults Social Care Capital,1390.00,Deferred Charges/Grant Payments,2223P06_CR00006,123852
Sandwell Metropolitan Borough Council,http://www.sandwell.gov.uk/info/200202/performance_and_spending/1079/payments_over_500,01-Sep-2022,Adults Social Care Capital,DOLPHIN LIFTS MIDLANDS LTD,Adults Social Care Capital,3820.00,Deferred Charges/Grant Payments,2223P06_CR00007,123852
Sandwell Metropolitan Borough Council,http://www.sandwell.gov.uk/info/200202/performance_and_spending/1079/payments_over_500,01-Sep-2022,Adults Social Care Capital,DOLPHIN LIFTS MIDLANDS LTD,Adults Social Care Capital,9231.19,Deferred Charges/Grant Payments,2223P06_CR00008,123852
Sandwell Metropolitan Borough Council,http://www.sandwell.gov.uk/info/200202/performance_and_spending/1079/payments_over_500,01-Sep-2022,Adults Social Care Capital,FIXXON LTD,Adults Social Care Capital,2346.85,CIP - Fixtures & Fittings,2223P06_CR00009,164072
Sandwell Metropolitan Borough Council,http://www.sandwell.gov.uk/info/200202/performance_and_spending/1079/payments_over_500,20-Sep-2022,Adults Social Care Capital,GAILARDE LTD,Adults Social Care Capital,664.80,Equipment & Furniture ,2223P06_CR00010,63493
Sandwell Metropolitan Borough Council,http://www.sandwell.gov.uk/info/200202/performance_and_spending/1079/payments_over_500,01-Sep-2022,Adults Social Care Capital,GAILARDE LTD,Adults Social Care Capital,856.00,Equipment & Furniture ,2223P06_CR00011,63493
Sandwell Metropolitan Borough Council,http://www.sandwell.gov.uk/info/200202/performance_and_spending/1079/payments_over_500,01-Sep-2022,Adults Social Care Capital,GAILARDE LTD,Adults Social Care Capital,2238.40,Equipment & Furniture ,2223P06_CR00012,63493
Sandwell Metropolitan Borough Council,http://www.sandwell.gov.uk/info/200202/performance_and_spending/1079/payments_over_500,01-Sep-2022,Adults Social Care Capital,GAILARDE LTD,Adults Social Care Capital,7224.60,Equipment & Furniture ,2223P06_CR00013,63493
Sandwell Metropolitan Borough Council,http://www.sandwell.gov.uk/info/200202/performance_and_spending/1079/payments_over_500,01-Sep-2022,Adults Social Care Capital,LIFT & ENGINEERING SERVICES LTD,Adults Social Care Capital,762.12,CIP - Fixtures & Fittings,2223P06_CR00014,77003962
Sandwell Metropolitan Borough Council,http://www.sandwell.gov.uk/info/200202/performance_and_spending/1079/payments_over_500,01-Sep-2022,Adults Social Care Capital,LIFT & ENGINEERING SERVICES LTD,Adults Social Care Capital,1220.55,CIP - Fixtures & Fittings,2223P06_CR00015,77003962
Sandwell Metropolitan Borough Council,http://www.sandwell.gov.uk/info/200202/performance_and_spending/1079/payments_over_500,01-Sep-2022,Adults Social Care Capital,LIFT & ENGINEERING SERVICES LTD,Adults Social Care Capital,1226.57,CIP - Fixtures & Fittings,2223P06_CR00016,77003962
Sandwell Metropolitan Borough Council,http://www.sandwell.gov.uk/info/200202/performance_and_spending/1079/payments_over_500,06-Sep-2022,Adults Social Care Capital,LIFT & ENGINEERING SERVICES LTD,Adults Social Care Capital,1617.02,CIP - Fixtures & Fittings,2223P06_CR00017,77003962
Sandwell Metropolitan Borough Council,http://www.sandwell.gov.uk/info/200202/performance_and_spending/1079/payments_over_500,15-Sep-2022,Adults Social Care Capital,NOBISCO LTD,Adults Social Care Capital,964.16,CIP - Fixtures & Fittings,2223P06_CR00018,57558
Sandwell Metropolitan Borough Council,http://www.sandwell.gov.uk/info/200202/performance_and_spending/1079/payments_over_500,15-Sep-2022,Adults Social Care Capital,NOBISCO LTD,Adults Social Care Capital,1267.70,CIP - Fixtures & Fittings,2223P06_CR00019,57558
Sandwell Metropolitan Borough Council,http://www.sandwell.gov.uk/info/200202/performance_and_spending/1079/payments_over_500,01-Sep-2022,Adults Social Care Capital,RENRAY HEALTHCARE LTD,Adults Social Care Capital,7900.00,Equipment & Furniture ,2223P06_CR00020,163098
Sandwell Metropolitan Borough Council,http://www.sandwell.gov.uk/info/200202/performance_and_spending/1079/payments_over_500,01-Sep-2022,Adults Social Care Capital,VINCI CONSTRUCTION LTD,Adults Social Care Capital,4248.50,Deferred Charges/Grant Payments,2223P06_CR00021,36361
Sandwell Metropolitan Borough Council,http://www.sandwell.gov.uk/info/200202/performance_and_spending/1079/payments_over_500,01-Sep-2022,Adults Social Care Capital,VINCI CONSTRUCTION LTD,Adults Social Care Capital,4540.83,Deferred Charges/Grant Payments,2223P06_CR00022,36361
Sandwell Metropolitan Borough Council,http://www.sandwell.gov.uk/info/200202/performance_and_spending/1079/payments_over_500,21-Sep-2022,Adults Social Care Capital,VINCI CONSTRUCTION LTD,Adults Social Care Capital,4947.93,Deferred Charges/Grant Payments,2223P06_CR00023,36361
Sandwell Metropolitan Borough Council,http://www.sandwell.gov.uk/info/200202/performance_and_spending/1079/payments_over_500,01-Sep-2022,Adults Social Care Capital,VINCI CONSTRUCTION LTD,Adults Social Care Capital,5392.72,Deferred Charges/Grant Payments,2223P06_CR00024,36361
Sandwell Metropolitan Borough Council,http://www.sandwell.gov.uk/info/200202/performance_and_spending/1079/payments_over_500,01-Sep-2022,Adults Social Care Capital,VINCI CONSTRUCTION LTD,Adults Social Care Capital,5538.38,Deferred Charges/Grant Payments,2223P06_CR00025,36361
Sandwell Metropolitan Borough Council,http://www.sandwell.gov.uk/info/200202/performance_and_spending/1079/payments_over_500,01-Sep-2022,Adults Social Care Capital,VINCI CONSTRUCTION LTD,Adults Social Care Capital,5790.74,Deferred Charges/Grant Payments,2223P06_CR00026,36361
Sandwell Metropolitan Borough Council,http://www.sandwell.gov.uk/info/200202/performance_and_spending/1079/payments_over_500,01-Sep-2022,Adults Social Care Capital,VINCI CONSTRUCTION LTD,Adults Social Care Capital,5989.65,Deferred Charges/Grant Payments,2223P06_CR00027,36361
Sandwell Metropolitan Borough Council,http://www.sandwell.gov.uk/info/200202/performance_and_spending/1079/payments_over_500,01-Sep-2022,Adults Social Care Capital,VINCI CONSTRUCTION LTD,Adults Social Care Capital,6511.05,Deferred Charges/Grant Payments,2223P06_CR00028,36361
Sandwell Metropolitan Borough Council,http://www.sandwell.gov.uk/info/200202/performance_and_spending/1079/payments_over_500,01-Sep-2022,Adults Social Care Capital,VINCI CONSTRUCTION LTD,Adults Social Care Capital,14245.07,Deferred Charges/Grant Payments,2223P06_CR00029,36361
Sandwell Metropolitan Borough Council,http://www.sandwell.gov.uk/info/200202/performance_and_spending/1079/payments_over_500,01-Sep-2022,Adults Social Care Capital,WILLMOTT DIXON CONSTRUCTION LIMITED,Adults Social Care Capital,54385.55,"CIP - New Construction,Conversion, Enhancement & Reno",2223P06_CR00030,34081
Sandwell Metropolitan Borough Council,http://www.sandwell.gov.uk/info/200202/performance_and_spending/1079/payments_over_500,01-Sep-2022,Adults Social Care Capital,EASIBATHE LTD,Adults Social Care Capital,3703.73,Deferred Charges/Grant Payments,2223P06_CR00031,46096
Sandwell Metropolitan Borough Council,http://www.sandwell.gov.uk/info/200202/performance_and_spending/1079/payments_over_500,13-Sep-2022,Adults Social Care Capital,HOME DESIGN,Adults Social Care Capital,1000.00,Deferred Charges/Grant Payments,2223P06_CR00032,141847
Sandwell Metropolitan Borough Council,http://www.sandwell.gov.uk/info/200202/performance_and_spending/1079/payments_over_500,05-Sep-2022,Adults Social Care Capital,HOME DESIGN,Adults Social Care Capital,6116.39,Deferred Charges/Grant Payments,2223P06_CR00033,141847
Sandwell Metropolitan Borough Council,http://www.sandwell.gov.uk/info/200202/performance_and_spending/1079/payments_over_500,01-Sep-2022,Adults Social Care Capital,TDF DESIGN LIMITED,Adults Social Care Capital,6415.00,Deferred Charges/Grant Payments,2223P06_CR00034,10320
Sandwell Metropolitan Borough Council,http://www.sandwell.gov.uk/info/200202/performance_and_spending/1079/payments_over_500,05-Sep-2022,Adults Social Care Capital,REDACTED PERSONAL DATA,Adults Social Care Capital,22400.00,Deferred Charges/Grant Payments,2223P06_CR00035,REDACTED PERSONAL DATA
Sandwell Metropolitan Borough Council,http://www.sandwell.gov.uk/info/200202/performance_and_spending/1079/payments_over_500,01-Sep-2022,Adults Social Care Capital,REDACTED PERSONAL DATA,Adults Social Care Capital,9450.00,Deferred Charges/Grant Payments,2223P06_CR00036,REDACTED PERSONAL DATA
Sandwell Metropolitan Borough Council,http://www.sandwell.gov.uk/info/200202/performance_and_spending/1079/payments_over_500,23-Sep-2022,Adults Social Care Capital,REDACTED PERSONAL DATA,Adults Social Care Capital,11295.00,Deferred Charges/Grant Payments,2223P06_CR00037,REDACTED PERSONAL DATA
Sandwell Metropolitan Borough Council,http://www.sandwell.gov.uk/info/200202/performance_and_spending/1079/payments_over_500,09-Sep-2022,Childrens Services,121 CARZ,Childrens Services,580.00,Public Transport,2223P06_CR00038,116848
Sandwell Metropolitan Borough Council,http://www.sandwell.gov.uk/info/200202/performance_and_spending/1079/payments_over_500,01-Sep-2022,Childrens Services,121 CARZ,Childrens Services,840.00,Public Transport,2223P06_CR00039,116848
Sandwell Metropolitan Borough Council,http://www.sandwell.gov.uk/info/200202/performance_and_spending/1079/payments_over_500,01-Sep-2022,Childrens Services,121 CARZ,Childrens Services,855.00,Public Transport,2223P06_CR00040,116848
Sandwell Metropolitan Borough Council,http://www.sandwell.gov.uk/info/200202/performance_and_spending/1079/payments_over_500,01-Sep-2022,Childrens Services,121 CARZ,Childrens Services,1320.00,Public Transport,2223P06_CR00041,116848
Sandwell Metropolitan Borough Council,http://www.sandwell.gov.uk/info/200202/performance_and_spending/1079/payments_over_500,08-Sep-2022,Childrens Services,121 CARZ,Childrens Services,1584.00,Public Transport,2223P06_CR00042,116848
Sandwell Metropolitan Borough Council,http://www.sandwell.gov.uk/info/200202/performance_and_spending/1079/payments_over_500,01-Sep-2022,Childrens Services,121 CARZ,Childrens Services,1584.00,Public Transport,2223P06_CR00043,116848
Sandwell Metropolitan Borough Council,http://www.sandwell.gov.uk/info/200202/performance_and_spending/1079/payments_over_500,01-Sep-2022,Childrens Services,121 CARZ,Childrens Services,1872.00,Public Transport,2223P06_CR00044,116848
Sandwell Metropolitan Borough Council,http://www.sandwell.gov.uk/info/200202/performance_and_spending/1079/payments_over_500,08-Sep-2022,Childrens Services,121 CARZ,Childrens Services,1909.00,Public Transport,2223P06_CR00045,116848
Sandwell Metropolitan Borough Council,http://www.sandwell.gov.uk/info/200202/performance_and_spending/1079/payments_over_500,01-Sep-2022,Childrens Services,121 CARZ,Childrens Services,2495.92,Public Transport,2223P06_CR00046,116848
Sandwell Metropolitan Borough Council,http://www.sandwell.gov.uk/info/200202/performance_and_spending/1079/payments_over_500,01-Sep-2022,Childrens Services,121 CARZ,Childrens Services,2973.00,Public Transport,2223P06_CR00047,116848
Sandwell Metropolitan Borough Council,http://www.sandwell.gov.uk/info/200202/performance_and_spending/1079/payments_over_500,09-Sep-2022,Childrens Services,121 CARZ,Childrens Services,3294.00,Public Transport,2223P06_CR00048,116848
Sandwell Metropolitan Borough Council,http://www.sandwell.gov.uk/info/200202/performance_and_spending/1079/payments_over_500,01-Sep-2022,Childrens Services,121 CARZ,Childrens Services,4723.48,Public Transport,2223P06_CR00049,116848
Sandwell Metropolitan Borough Council,http://www.sandwell.gov.uk/info/200202/performance_and_spending/1079/payments_over_500,01-Sep-2022,Childrens Services,121 CARZ,Childrens Services,5534.82,Public Transport,2223P06_CR00050,116848
Sandwell Metropolitan Borough Council,http://www.sandwell.gov.uk/info/200202/performance_and_spending/1079/payments_over_500,01-Sep-2022,Childrens Services,4 COMMUNITY TRUST CIC,Childrens Services,1085.21,Externally Purchased Professional Services ,2223P06_CR00051,137880
Sandwell Metropolitan Borough Council,http://www.sandwell.gov.uk/info/200202/performance_and_spending/1079/payments_over_500,01-Sep-2022,Childrens Services,ACTIVE BODIES 4 FOCUSED MINDS,Childrens Services,1800.00,Equipment & Furniture ,2223P06_CR00052,163954
Sandwell Metropolitan Borough Council,http://www.sandwell.gov.uk/info/200202/performance_and_spending/1079/payments_over_500,01-Sep-2022,Childrens Services,AGENTIS WORKWEAR LIMITED,Childrens Services,1072.04,Protective Clothing & Uniforms,2223P06_CR00053,131966
Sandwell Metropolitan Borough Council,http://www.sandwell.gov.uk/info/200202/performance_and_spending/1079/payments_over_500,01-Sep-2022,Childrens Services,ALL SAINTS CE PRIMARY SCHOOL     ,Childrens Services,1044.28,Externally Purchased Professional Services ,2223P06_CR00054,08457454
Sandwell Metropolitan Borough Council,http://www.sandwell.gov.uk/info/200202/performance_and_spending/1079/payments_over_500,01-Sep-2022,Childrens Services,AMP BIOMASS FUEL LTD T/A AMP CLEAN ENERGY,Childrens Services,4015.84,Energy Costs-Bio Energy Costs,2223P06_CR00055,128761
Sandwell Metropolitan Borough Council,http://www.sandwell.gov.uk/info/200202/performance_and_spending/1079/payments_over_500,01-Sep-2022,Childrens Services,APD PRINT & DESIGN,Childrens Services,1690.00,"Printing, Stationery & General Office Expenses",2223P06_CR00056,49454
Sandwell Metropolitan Borough Council,http://www.sandwell.gov.uk/info/200202/performance_and_spending/1079/payments_over_500,21-Sep-2022,Childrens Services,AVANTI GAS LIMITED,Childrens Services,727.75,Gas,2223P06_CR00057,60069
Sandwell Metropolitan Borough Council,http://www.sandwell.gov.uk/info/200202/performance_and_spending/1079/payments_over_500,17-Sep-2022,Childrens Services,BETHEL CONVENTION CENTRE,Childrens Services,1750.00,Hire of Facilities,2223P06_CR00058,01719624
Sandwell Metropolitan Borough Council,http://www.sandwell.gov.uk/info/200202/performance_and_spending/1079/payments_over_500,13-Sep-2022,Childrens Services,BIRMINGHAM CITY COUNCIL,Childrens Services,1100.00,Externally Purchased Professional Services ,2223P06_CR00059,01622521
Sandwell Metropolitan Borough Council,http://www.sandwell.gov.uk/info/200202/performance_and_spending/1079/payments_over_500,22-Sep-2022,Childrens Services,BLACK COUNTRY HOUSING GROUP LIMITED,Childrens Services,2575.03,Grants,2223P06_CR00060,01715636
Sandwell Metropolitan Borough Council,http://www.sandwell.gov.uk/info/200202/performance_and_spending/1079/payments_over_500,01-Sep-2022,Childrens Services,BLACK COUNTRY HOUSING GROUP LIMITED,Childrens Services,2760.29,Grants,2223P06_CR00061,01715636
Sandwell Metropolitan Borough Council,http://www.sandwell.gov.uk/info/200202/performance_and_spending/1079/payments_over_500,08-Sep-2022,Childrens Services,BLAKEMORE FOOD SERVICE LTD,Childrens Services,524.62,Catering Provisions,2223P06_CR00062,2518
Sandwell Metropolitan Borough Council,http://www.sandwell.gov.uk/info/200202/performance_and_spending/1079/payments_over_500,01-Sep-2022,Childrens Services,BLAKEMORE FOOD SERVICE LTD,Childrens Services,680.62,Catering Provisions,2223P06_CR00063,2518
Sandwell Metropolitan Borough Council,http://www.sandwell.gov.uk/info/200202/performance_and_spending/1079/payments_over_500,01-Sep-2022,Childrens Services,BOURNEVILLE CATERING EQUIPMENT LIMITED,Childrens Services,1395.00,Catering Equipment,2223P06_CR00064,163674
Sandwell Metropolitan Borough Council,http://www.sandwell.gov.uk/info/200202/performance_and_spending/1079/payments_over_500,01-Sep-2022,Childrens Services,BRIDGE CONSTRUCTION LTD,Childrens Services,746.52,Externally Purchased Professional Services ,2223P06_CR00065,127570
Sandwell Metropolitan Borough Council,http://www.sandwell.gov.uk/info/200202/performance_and_spending/1079/payments_over_500,06-Sep-2022,Childrens Services,BRUSHSTROKES,Childrens Services,1084.97,Grants,2223P06_CR00066,21029374
Sandwell Metropolitan Borough Council,http://www.sandwell.gov.uk/info/200202/performance_and_spending/1079/payments_over_500,02-Sep-2022,Childrens Services,BUFFET EXPRESS,Childrens Services,792.00,Catering Provisions,2223P06_CR00067,01730518
Sandwell Metropolitan Borough Council,http://www.sandwell.gov.uk/info/200202/performance_and_spending/1079/payments_over_500,02-Sep-2022,Childrens Services,COMMUNITY CONNECT FOUNDATION,Childrens Services,4596.41,Grants,2223P06_CR00068,01685391
Sandwell Metropolitan Borough Council,http://www.sandwell.gov.uk/info/200202/performance_and_spending/1079/payments_over_500,05-Sep-2022,Childrens Services,CONFEDERATION OF BANGLADESHI ORGANISATIONS (CBO) LIMITED,Childrens Services,1085.21,Externally Purchased Professional Services ,2223P06_CR00069,10034
Sandwell Metropolitan Borough Council,http://www.sandwell.gov.uk/info/200202/performance_and_spending/1079/payments_over_500,05-Sep-2022,Childrens Services,CONFEDERATION OF BANGLADESHI ORGANISATIONS (CBO) LIMITED,Childrens Services,1755.35,Grants,2223P06_CR00070,10034
Sandwell Metropolitan Borough Council,http://www.sandwell.gov.uk/info/200202/performance_and_spending/1079/payments_over_500,12-Sep-2022,Childrens Services,CORONA ENERGY RETAIL 2 LIMITED,Childrens Services,882.03,Gas,2223P06_CR00071,118395
Sandwell Metropolitan Borough Council,http://www.sandwell.gov.uk/info/200202/performance_and_spending/1079/payments_over_500,01-Sep-2022,Childrens Services,CREATION SKATEPARK LTD,Childrens Services,1760.00,Equipment & Furniture ,2223P06_CR00072,82383
Sandwell Metropolitan Borough Council,http://www.sandwell.gov.uk/info/200202/performance_and_spending/1079/payments_over_500,02-Sep-2022,Childrens Services,CREATION SKATEPARK LTD,Childrens Services,1760.00,Equipment & Furniture ,2223P06_CR00073,82383
Sandwell Metropolitan Borough Council,http://www.sandwell.gov.uk/info/200202/performance_and_spending/1079/payments_over_500,09-Sep-2022,Childrens Services,DIGBETH DINING CLUB CIC,Childrens Services,5700.00,Catering Provisions,2223P06_CR00074,153646
Sandwell Metropolitan Borough Council,http://www.sandwell.gov.uk/info/200202/performance_and_spending/1079/payments_over_500,01-Sep-2022,Childrens Services,DJB PEST CONTROL,Childrens Services,635.00,Pest Control,2223P06_CR00075,119231
Sandwell Metropolitan Borough Council,http://www.sandwell.gov.uk/info/200202/performance_and_spending/1079/payments_over_500,01-Sep-2022,Childrens Services,DUDLEY MBC,Childrens Services,577.71,Grants,2223P06_CR00076,01349846
Sandwell Metropolitan Borough Council,http://www.sandwell.gov.uk/info/200202/performance_and_spending/1079/payments_over_500,01-Sep-2022,Childrens Services,DUDLEY MBC,Childrens Services,874.43,Grants,2223P06_CR00077,01349846
Sandwell Metropolitan Borough Council,http://www.sandwell.gov.uk/info/200202/performance_and_spending/1079/payments_over_500,01-Sep-2022,Childrens Services,DUDLEY MBC,Childrens Services,1139.98,Grants,2223P06_CR00078,01349846
Sandwell Metropolitan Borough Council,http://www.sandwell.gov.uk/info/200202/performance_and_spending/1079/payments_over_500,01-Sep-2022,Childrens Services,DUDLEY MBC,Childrens Services,1356.43,Grants,2223P06_CR00079,01349846
Sandwell Metropolitan Borough Council,http://www.sandwell.gov.uk/info/200202/performance_and_spending/1079/payments_over_500,01-Sep-2022,Childrens Services,DUDLEY MBC,Childrens Services,7468.35,Grants,2223P06_CR00080,01349846
Sandwell Metropolitan Borough Council,http://www.sandwell.gov.uk/info/200202/performance_and_spending/1079/payments_over_500,13-Sep-2022,Childrens Services,EATON VALLEY PRIMARY SCHOOL,Childrens Services,1085.21,Externally Purchased Professional Services ,2223P06_CR00081,88755
Sandwell Metropolitan Borough Council,http://www.sandwell.gov.uk/info/200202/performance_and_spending/1079/payments_over_500,01-Sep-2022,Childrens Services,ENTRE PRISES (UK) LTD,Childrens Services,1397.00,Equipment & Furniture ,2223P06_CR00082,01672377
Sandwell Metropolitan Borough Council,http://www.sandwell.gov.uk/info/200202/performance_and_spending/1079/payments_over_500,06-Sep-2022,Childrens Services,EON NEXT ENERGY LTD,Childrens Services,646.13,Electricity,2223P06_CR00083,149566
Sandwell Metropolitan Borough Council,http://www.sandwell.gov.uk/info/200202/performance_and_spending/1079/payments_over_500,01-Sep-2022,Childrens Services,EURO SHAF TRAINING SERVICES LIMITED,Childrens Services,875.00,Externally Purchased Professional Services ,2223P06_CR00084,76260
Sandwell Metropolitan Borough Council,http://www.sandwell.gov.uk/info/200202/performance_and_spending/1079/payments_over_500,01-Sep-2022,Childrens Services,EVERY CHILD NEEDS A MENTOR LIMITED,Childrens Services,3975.00,Grant Payments,2223P06_CR00085,132828
Sandwell Metropolitan Borough Council,http://www.sandwell.gov.uk/info/200202/performance_and_spending/1079/payments_over_500,16-Sep-2022,Childrens Services,FIRST RESPONSE (FIRST AID) LTD,Childrens Services,875.00,Externally Purchased Professional Services ,2223P06_CR00086,57372
Sandwell Metropolitan Borough Council,http://www.sandwell.gov.uk/info/200202/performance_and_spending/1079/payments_over_500,01-Sep-2022,Childrens Services,GAYTON ROAD COMMUNITY CENTRE ASSOCIATION,Childrens Services,516.00,Hire of Facilities,2223P06_CR00087,112420
Sandwell Metropolitan Borough Council,http://www.sandwell.gov.uk/info/200202/performance_and_spending/1079/payments_over_500,01-Sep-2022,Childrens Services,GEORGE SALTER COLLEGIATE ACADEMY ORMISTON ACADEMIES TRUST,Childrens Services,18200.00,Grant Payments,2223P06_CR00088,01217798
Sandwell Metropolitan Borough Council,http://www.sandwell.gov.uk/info/200202/performance_and_spending/1079/payments_over_500,01-Sep-2022,Childrens Services,GEORGE SALTER COLLEGIATE ACADEMY ORMISTON ACADEMIES TRUST,Childrens Services,18200.00,Grant Payments,2223P06_CR00089,01217798
Sandwell Metropolitan Borough Council,http://www.sandwell.gov.uk/info/200202/performance_and_spending/1079/payments_over_500,01-Sep-2022,Childrens Services,HANBURY PRIMARY SCHOOL,Childrens Services,746.52,Externally Purchased Professional Services ,2223P06_CR00090,01734408
Sandwell Metropolitan Borough Council,http://www.sandwell.gov.uk/info/200202/performance_and_spending/1079/payments_over_500,01-Sep-2022,Childrens Services,HANBURY PRIMARY SCHOOL,Childrens Services,746.52,Externally Purchased Professional Services ,2223P06_CR00091,01734408
Sandwell Metropolitan Borough Council,http://www.sandwell.gov.uk/info/200202/performance_and_spending/1079/payments_over_500,01-Sep-2022,Childrens Services,HANBURY PRIMARY SCHOOL,Childrens Services,746.52,Externally Purchased Professional Services ,2223P06_CR00092,01734408
Sandwell Metropolitan Borough Council,http://www.sandwell.gov.uk/info/200202/performance_and_spending/1079/payments_over_500,01-Sep-2022,Childrens Services,HANBURY PRIMARY SCHOOL,Childrens Services,746.52,Externally Purchased Professional Services ,2223P06_CR00093,01734408
Sandwell Metropolitan Borough Council,http://www.sandwell.gov.uk/info/200202/performance_and_spending/1079/payments_over_500,01-Sep-2022,Childrens Services,HEART & SOUL COMMUNITY CIC LTD,Childrens Services,953.55,Externally Purchased Professional Services ,2223P06_CR00094,133378
Sandwell Metropolitan Borough Council,http://www.sandwell.gov.uk/info/200202/performance_and_spending/1079/payments_over_500,08-Sep-2022,Childrens Services,HEARTLANDS BUSINESS GIFTS LTD,Childrens Services,2080.00,Advertising & Publicity,2223P06_CR00095,11316
Sandwell Metropolitan Borough Council,http://www.sandwell.gov.uk/info/200202/performance_and_spending/1079/payments_over_500,01-Sep-2022,Childrens Services,HER MAJESTYS PRISON AND PROBATION SERVICE,Childrens Services,9210.00,Other Establishments,2223P06_CR00096,134815
Sandwell Metropolitan Borough Council,http://www.sandwell.gov.uk/info/200202/performance_and_spending/1079/payments_over_500,01-Sep-2022,Childrens Services,HER MAJESTYS PRISON AND PROBATION SERVICE,Childrens Services,9210.00,Other Establishments,2223P06_CR00097,134815
Sandwell Metropolitan Borough Council,http://www.sandwell.gov.uk/info/200202/performance_and_spending/1079/payments_over_500,01-Sep-2022,Childrens Services,HER MAJESTYS PRISON AND PROBATION SERVICE,Childrens Services,9210.00,Other Establishments,2223P06_CR00098,134815
Sandwell Metropolitan Borough Council,http://www.sandwell.gov.uk/info/200202/performance_and_spending/1079/payments_over_500,01-Sep-2022,Childrens Services,HER MAJESTYS PRISON AND PROBATION SERVICE,Childrens Services,9517.00,Other Establishments,2223P06_CR00099,134815
Sandwell Metropolitan Borough Council,http://www.sandwell.gov.uk/info/200202/performance_and_spending/1079/payments_over_500,01-Sep-2022,Childrens Services,HER MAJESTYS PRISON AND PROBATION SERVICE,Childrens Services,9517.00,Other Establishments,2223P06_CR00100,134815
Sandwell Metropolitan Borough Council,http://www.sandwell.gov.uk/info/200202/performance_and_spending/1079/payments_over_500,01-Sep-2022,Childrens Services,HER MAJESTYS PRISON AND PROBATION SERVICE,Childrens Services,9517.00,Other Establishments,2223P06_CR00101,134815
Sandwell Metropolitan Borough Council,http://www.sandwell.gov.uk/info/200202/performance_and_spending/1079/payments_over_500,01-Sep-2022,Childrens Services,HER MAJESTYS PRISON AND PROBATION SERVICE,Childrens Services,16940.00,Other Establishments,2223P06_CR00102,134815
Sandwell Metropolitan Borough Council,http://www.sandwell.gov.uk/info/200202/performance_and_spending/1079/payments_over_500,01-Sep-2022,Childrens Services,HER MAJESTYS PRISON AND PROBATION SERVICE,Childrens Services,23870.00,Other Establishments,2223P06_CR00103,134815
Sandwell Metropolitan Borough Council,http://www.sandwell.gov.uk/info/200202/performance_and_spending/1079/payments_over_500,01-Sep-2022,Childrens Services,HOPE EDUCATION LTD,Childrens Services,918.06,"Printing, Stationery & General Office Expenses",2223P06_CR00104,01777295
Sandwell Metropolitan Borough Council,http://www.sandwell.gov.uk/info/200202/performance_and_spending/1079/payments_over_500,20-Sep-2022,Childrens Services,IDEAL FOR ALL LIMITED,Childrens Services,1873.56,Grants,2223P06_CR00105,01678484
Sandwell Metropolitan Borough Council,http://www.sandwell.gov.uk/info/200202/performance_and_spending/1079/payments_over_500,01-Sep-2022,Childrens Services,INGESTRE ORANGERY AND GARDENS,Childrens Services,650.00,Materials & Consumables,2223P06_CR00106,127331
Sandwell Metropolitan Borough Council,http://www.sandwell.gov.uk/info/200202/performance_and_spending/1079/payments_over_500,01-Sep-2022,Childrens Services,IRON MAIDENS COMMERCIAL LAUNDRY LIMITED,Childrens Services,725.08,Laundry,2223P06_CR00107,124628
Sandwell Metropolitan Borough Council,http://www.sandwell.gov.uk/info/200202/performance_and_spending/1079/payments_over_500,01-Sep-2022,Childrens Services,JENNY'S KITCHEN (WALL HEATH) LTD,Childrens Services,1422.00,Catering Provisions,2223P06_CR00108,01079439
Sandwell Metropolitan Borough Council,http://www.sandwell.gov.uk/info/200202/performance_and_spending/1079/payments_over_500,01-Sep-2022,Childrens Services,JMB GLOBAL LTD,Childrens Services,746.52,Externally Purchased Professional Services ,2223P06_CR00109,152360
Sandwell Metropolitan Borough Council,http://www.sandwell.gov.uk/info/200202/performance_and_spending/1079/payments_over_500,01-Sep-2022,Childrens Services,JOLLIMAN ESSENTIALS LIMITED,Childrens Services,746.52,Externally Purchased Professional Services ,2223P06_CR00110,142689
Sandwell Metropolitan Borough Council,http://www.sandwell.gov.uk/info/200202/performance_and_spending/1079/payments_over_500,09-Sep-2022,Childrens Services,KINGFISHER LEISUREWEAR LTD T/A GOCUSTOM CLOTHING,Childrens Services,2608.42,Advertising & Publicity,2223P06_CR00111,163761
Sandwell Metropolitan Borough Council,http://www.sandwell.gov.uk/info/200202/performance_and_spending/1079/payments_over_500,01-Sep-2022,Childrens Services,LEARNING INTO EMPLOYMENT ACADEMY LTD,Childrens Services,1242.99,Externally Purchased Professional Services ,2223P06_CR00112,147427
Sandwell Metropolitan Borough Council,http://www.sandwell.gov.uk/info/200202/performance_and_spending/1079/payments_over_500,01-Sep-2022,Childrens Services,LEARNING INTO EMPLOYMENT ACADEMY LTD,Childrens Services,1242.99,Externally Purchased Professional Services ,2223P06_CR00113,147427
Sandwell Metropolitan Borough Council,http://www.sandwell.gov.uk/info/200202/performance_and_spending/1079/payments_over_500,21-Sep-2022,Childrens Services,LEARNING INTO EMPLOYMENT ACADEMY LTD,Childrens Services,1242.99,Externally Purchased Professional Services ,2223P06_CR00114,147427
Sandwell Metropolitan Borough Council,http://www.sandwell.gov.uk/info/200202/performance_and_spending/1079/payments_over_500,01-Sep-2022,Childrens Services,LEARNING LABS LTD,Childrens Services,3637.00,Subscriptions,2223P06_CR00115,164291
Sandwell Metropolitan Borough Council,http://www.sandwell.gov.uk/info/200202/performance_and_spending/1079/payments_over_500,01-Sep-2022,Childrens Services,LEARNPLAY FOUNDATION LTD,Childrens Services,800.00,Externally Purchased Professional Services ,2223P06_CR00116,86525
Sandwell Metropolitan Borough Council,http://www.sandwell.gov.uk/info/200202/performance_and_spending/1079/payments_over_500,01-Sep-2022,Childrens Services,LIONCOURT HOMES LIMITED,Childrens Services,941.16,Externally Purchased Professional Services ,2223P06_CR00117,133372
Sandwell Metropolitan Borough Council,http://www.sandwell.gov.uk/info/200202/performance_and_spending/1079/payments_over_500,01-Sep-2022,Childrens Services,LIONCOURT HOMES LIMITED,Childrens Services,941.16,Externally Purchased Professional Services ,2223P06_CR00118,133372
Sandwell Metropolitan Borough Council,http://www.sandwell.gov.uk/info/200202/performance_and_spending/1079/payments_over_500,12-Sep-2022,Childrens Services,LLECHWEDD MEATS,Childrens Services,2461.77,Catering Provisions,2223P06_CR00119,01606508
Sandwell Metropolitan Borough Council,http://www.sandwell.gov.uk/info/200202/performance_and_spending/1079/payments_over_500,01-Sep-2022,Childrens Services,NCFE,Childrens Services,899.00,Externally Purchased Professional Services ,2223P06_CR00120,6230
Sandwell Metropolitan Borough Council,http://www.sandwell.gov.uk/info/200202/performance_and_spending/1079/payments_over_500,01-Sep-2022,Childrens Services,NET BUILDER LIMITED,Childrens Services,2544.00,ICT ,2223P06_CR00121,139019
Sandwell Metropolitan Borough Council,http://www.sandwell.gov.uk/info/200202/performance_and_spending/1079/payments_over_500,01-Sep-2022,Childrens Services,NEWAVE LTD,Childrens Services,500.00,Agency Staff,2223P06_CR00122,101666
Sandwell Metropolitan Borough Council,http://www.sandwell.gov.uk/info/200202/performance_and_spending/1079/payments_over_500,12-Sep-2022,Childrens Services,NEWAVE LTD,Childrens Services,570.00,Agency Staff,2223P06_CR00123,101666
Sandwell Metropolitan Borough Council,http://www.sandwell.gov.uk/info/200202/performance_and_spending/1079/payments_over_500,12-Sep-2022,Childrens Services,NEWAVE LTD,Childrens Services,603.26,Agency Staff,2223P06_CR00124,101666
Sandwell Metropolitan Borough Council,http://www.sandwell.gov.uk/info/200202/performance_and_spending/1079/payments_over_500,12-Sep-2022,Childrens Services,NEWAVE LTD,Childrens Services,980.48,Agency Staff,2223P06_CR00125,101666
Sandwell Metropolitan Borough Council,http://www.sandwell.gov.uk/info/200202/performance_and_spending/1079/payments_over_500,01-Sep-2022,Childrens Services,NEWAVE LTD,Childrens Services,1030.62,Agency Staff,2223P06_CR00126,101666
Sandwell Metropolitan Borough Council,http://www.sandwell.gov.uk/info/200202/performance_and_spending/1079/payments_over_500,01-Sep-2022,Childrens Services,NEWAVE LTD,Childrens Services,1102.62,Agency Staff,2223P06_CR00127,101666
Sandwell Metropolitan Borough Council,http://www.sandwell.gov.uk/info/200202/performance_and_spending/1079/payments_over_500,01-Sep-2022,Childrens Services,NEWAVE LTD,Childrens Services,1134.00,Agency Staff,2223P06_CR00128,101666
Sandwell Metropolitan Borough Council,http://www.sandwell.gov.uk/info/200202/performance_and_spending/1079/payments_over_500,01-Sep-2022,Childrens Services,NEWAVE LTD,Childrens Services,1176.00,Agency Staff,2223P06_CR00129,101666
Sandwell Metropolitan Borough Council,http://www.sandwell.gov.uk/info/200202/performance_and_spending/1079/payments_over_500,01-Sep-2022,Childrens Services,NORTH SMETHWICK DEVELOPMENT TRUST,Childrens Services,2000.00,Catering Provisions,2223P06_CR00130,01346623
Sandwell Metropolitan Borough Council,http://www.sandwell.gov.uk/info/200202/performance_and_spending/1079/payments_over_500,01-Sep-2022,Childrens Services,NOTTINGHAMSHIRE COUNTY COUNCIL,Childrens Services,630.00,External Contract Hire,2223P06_CR00131,01218759
Sandwell Metropolitan Borough Council,http://www.sandwell.gov.uk/info/200202/performance_and_spending/1079/payments_over_500,01-Sep-2022,Childrens Services,NOTTINGHAMSHIRE COUNTY COUNCIL,Childrens Services,1123.20,External Contract Hire,2223P06_CR00132,01218759
Sandwell Metropolitan Borough Council,http://www.sandwell.gov.uk/info/200202/performance_and_spending/1079/payments_over_500,01-Sep-2022,Childrens Services,P&E SPORTS REDDITCH LTD,Childrens Services,10451.00,Grant Payments,2223P06_CR00133,163643
Sandwell Metropolitan Borough Council,http://www.sandwell.gov.uk/info/200202/performance_and_spending/1079/payments_over_500,01-Sep-2022,Childrens Services,PRINT DIRECT LIMITED,Childrens Services,588.50,"Printing, Stationery & General Office Expenses",2223P06_CR00134,118575
Sandwell Metropolitan Borough Council,http://www.sandwell.gov.uk/info/200202/performance_and_spending/1079/payments_over_500,01-Sep-2022,Childrens Services,R HEYWOOD T/A LICHFIELD ENTERTAINMENTS,Childrens Services,4048.00,Equipment & Furniture ,2223P06_CR00135,84051
Sandwell Metropolitan Borough Council,http://www.sandwell.gov.uk/info/200202/performance_and_spending/1079/payments_over_500,01-Sep-2022,Childrens Services,REFUGEE AND MIGRANT CENTRE LTD,Childrens Services,1025.78,Grants,2223P06_CR00136,163206
Sandwell Metropolitan Borough Council,http://www.sandwell.gov.uk/info/200202/performance_and_spending/1079/payments_over_500,01-Sep-2022,Childrens Services,SANDWELL ASIAN FAMILY SUPPORT SERVICES,Childrens Services,1000.00,Hire of Facilities,2223P06_CR00137,01480451
Sandwell Metropolitan Borough Council,http://www.sandwell.gov.uk/info/200202/performance_and_spending/1079/payments_over_500,01-Sep-2022,Childrens Services,SANDWELL CHILDREN'S TRUST,Childrens Services,2038773.01,Other Establishments,2223P06_CR00138,133302
Sandwell Metropolitan Borough Council,http://www.sandwell.gov.uk/info/200202/performance_and_spending/1079/payments_over_500,12-Sep-2022,Childrens Services,SANDWELL CHILDREN'S TRUST,Childrens Services,5421070.54,Other Establishments,2223P06_CR00139,133302
Sandwell Metropolitan Borough Council,http://www.sandwell.gov.uk/info/200202/performance_and_spending/1079/payments_over_500,12-Sep-2022,Childrens Services,SIPS EDUCATION LTD,Childrens Services,2041.70,Catering Provisions,2223P06_CR00140,110784
Sandwell Metropolitan Borough Council,http://www.sandwell.gov.uk/info/200202/performance_and_spending/1079/payments_over_500,12-Sep-2022,Childrens Services,SIPS EDUCATION LTD,Childrens Services,2767.70,Catering Provisions,2223P06_CR00141,110784
Sandwell Metropolitan Borough Council,http://www.sandwell.gov.uk/info/200202/performance_and_spending/1079/payments_over_500,12-Sep-2022,Childrens Services,SIPS EDUCATION LTD,Childrens Services,2923.70,Catering Provisions,2223P06_CR00142,110784
Sandwell Metropolitan Borough Council,http://www.sandwell.gov.uk/info/200202/performance_and_spending/1079/payments_over_500,12-Sep-2022,Childrens Services,SIPS EDUCATION LTD,Childrens Services,3067.45,Catering Provisions,2223P06_CR00143,110784
Sandwell Metropolitan Borough Council,http://www.sandwell.gov.uk/info/200202/performance_and_spending/1079/payments_over_500,12-Sep-2022,Childrens Services,SIPS EDUCATION LTD,Childrens Services,3692.35,Catering Provisions,2223P06_CR00144,110784
Sandwell Metropolitan Borough Council,http://www.sandwell.gov.uk/info/200202/performance_and_spending/1079/payments_over_500,01-Sep-2022,Childrens Services,SIPS EDUCATION LTD,Childrens Services,15440.00,Catering Provisions,2223P06_CR00145,110784
Sandwell Metropolitan Borough Council,http://www.sandwell.gov.uk/info/200202/performance_and_spending/1079/payments_over_500,01-Sep-2022,Childrens Services,SKILLS NETWORK LTD,Childrens Services,900.00,Externally Purchased Professional Services ,2223P06_CR00146,146052
Sandwell Metropolitan Borough Council,http://www.sandwell.gov.uk/info/200202/performance_and_spending/1079/payments_over_500,01-Sep-2022,Childrens Services,SKILLS NETWORK LTD,Childrens Services,1000.00,Externally Purchased Professional Services ,2223P06_CR00147,146052
Sandwell Metropolitan Borough Council,http://www.sandwell.gov.uk/info/200202/performance_and_spending/1079/payments_over_500,12-Sep-2022,Childrens Services,SKILLS WORK AND ENTERPRISE DEVELOPMENT AGENCY LTD,Childrens Services,595.00,Hire of Facilities,2223P06_CR00148,5092
Sandwell Metropolitan Borough Council,http://www.sandwell.gov.uk/info/200202/performance_and_spending/1079/payments_over_500,01-Sep-2022,Childrens Services,SUMMERHILL PRIMARY ACADEMY,Childrens Services,750.00,Externally Purchased Professional Services ,2223P06_CR00149,131895
Sandwell Metropolitan Borough Council,http://www.sandwell.gov.uk/info/200202/performance_and_spending/1079/payments_over_500,01-Sep-2022,Childrens Services,TERRA TEK LTD,Childrens Services,1010.75,Externally Purchased Professional Services ,2223P06_CR00150,155508
Sandwell Metropolitan Borough Council,http://www.sandwell.gov.uk/info/200202/performance_and_spending/1079/payments_over_500,01-Sep-2022,Childrens Services,TERRA TEK LTD,Childrens Services,1010.75,Externally Purchased Professional Services ,2223P06_CR00151,155508
Sandwell Metropolitan Borough Council,http://www.sandwell.gov.uk/info/200202/performance_and_spending/1079/payments_over_500,01-Sep-2022,Childrens Services,TERRA TEK LTD,Childrens Services,1010.75,Externally Purchased Professional Services ,2223P06_CR00152,155508
Sandwell Metropolitan Borough Council,http://www.sandwell.gov.uk/info/200202/performance_and_spending/1079/payments_over_500,01-Sep-2022,Childrens Services,TERRA TEK LTD,Childrens Services,1085.21,Externally Purchased Professional Services ,2223P06_CR00153,155508
Sandwell Metropolitan Borough Council,http://www.sandwell.gov.uk/info/200202/performance_and_spending/1079/payments_over_500,01-Sep-2022,Childrens Services,THE PRIORY PRIMARY,Childrens Services,1000.00,Hire of Facilities,2223P06_CR00154,01746051
Sandwell Metropolitan Borough Council,http://www.sandwell.gov.uk/info/200202/performance_and_spending/1079/payments_over_500,12-Sep-2022,Childrens Services,THOMAS CHARLES FACILITIES & MAINTENANCE LTD,Childrens Services,1575.00,Security,2223P06_CR00155,114170
Sandwell Metropolitan Borough Council,http://www.sandwell.gov.uk/info/200202/performance_and_spending/1079/payments_over_500,01-Sep-2022,Childrens Services,TOH TAXIS,Childrens Services,1055.64,Public Transport,2223P06_CR00156,12250
Sandwell Metropolitan Borough Council,http://www.sandwell.gov.uk/info/200202/performance_and_spending/1079/payments_over_500,01-Sep-2022,Childrens Services,TOH TAXIS,Childrens Services,1551.96,Public Transport,2223P06_CR00157,12250
Sandwell Metropolitan Borough Council,http://www.sandwell.gov.uk/info/200202/performance_and_spending/1079/payments_over_500,01-Sep-2022,Childrens Services,TOH TAXIS,Childrens Services,1583.64,Public Transport,2223P06_CR00158,12250
Sandwell Metropolitan Borough Council,http://www.sandwell.gov.uk/info/200202/performance_and_spending/1079/payments_over_500,01-Sep-2022,Childrens Services,TOMLINSONS BOOK SERVICE,Childrens Services,1224.34,Materials & Consumables,2223P06_CR00159,53962
Sandwell Metropolitan Borough Council,http://www.sandwell.gov.uk/info/200202/performance_and_spending/1079/payments_over_500,08-Sep-2022,Childrens Services,TOPPS MANAGEMENT & SUPPORT SERVICES LTD,Childrens Services,892.28,Externally Purchased Professional Services ,2223P06_CR00160,68846
Sandwell Metropolitan Borough Council,http://www.sandwell.gov.uk/info/200202/performance_and_spending/1079/payments_over_500,01-Sep-2022,Childrens Services,TOPPS MANAGEMENT & SUPPORT SERVICES LTD,Childrens Services,996.94,Externally Purchased Professional Services ,2223P06_CR00161,68846
Sandwell Metropolitan Borough Council,http://www.sandwell.gov.uk/info/200202/performance_and_spending/1079/payments_over_500,01-Sep-2022,Childrens Services,TOPPS MANAGEMENT & SUPPORT SERVICES LTD,Childrens Services,996.94,Externally Purchased Professional Services ,2223P06_CR00162,68846
Sandwell Metropolitan Borough Council,http://www.sandwell.gov.uk/info/200202/performance_and_spending/1079/payments_over_500,01-Sep-2022,Childrens Services,TOPPS MANAGEMENT & SUPPORT SERVICES LTD,Childrens Services,996.94,Externally Purchased Professional Services ,2223P06_CR00163,68846
Sandwell Metropolitan Borough Council,http://www.sandwell.gov.uk/info/200202/performance_and_spending/1079/payments_over_500,01-Sep-2022,Childrens Services,TOPPS MANAGEMENT & SUPPORT SERVICES LTD,Childrens Services,996.94,Externally Purchased Professional Services ,2223P06_CR00164,68846
Sandwell Metropolitan Borough Council,http://www.sandwell.gov.uk/info/200202/performance_and_spending/1079/payments_over_500,01-Sep-2022,Childrens Services,TOPPS MANAGEMENT & SUPPORT SERVICES LTD,Childrens Services,996.94,Externally Purchased Professional Services ,2223P06_CR00165,68846
Sandwell Metropolitan Borough Council,http://www.sandwell.gov.uk/info/200202/performance_and_spending/1079/payments_over_500,01-Sep-2022,Childrens Services,TOPPS MANAGEMENT & SUPPORT SERVICES LTD,Childrens Services,996.94,Externally Purchased Professional Services ,2223P06_CR00166,68846
Sandwell Metropolitan Borough Council,http://www.sandwell.gov.uk/info/200202/performance_and_spending/1079/payments_over_500,01-Sep-2022,Childrens Services,TOPPS MANAGEMENT & SUPPORT SERVICES LTD,Childrens Services,996.94,Externally Purchased Professional Services ,2223P06_CR00167,68846
Sandwell Metropolitan Borough Council,http://www.sandwell.gov.uk/info/200202/performance_and_spending/1079/payments_over_500,13-Sep-2022,Childrens Services,TOPPS MANAGEMENT & SUPPORT SERVICES LTD,Childrens Services,6785.66,Discretionary Awards,2223P06_CR00168,68846
Sandwell Metropolitan Borough Council,http://www.sandwell.gov.uk/info/200202/performance_and_spending/1079/payments_over_500,11-Sep-2022,Childrens Services,TOTALENERGIES GAS & POWER LTD,Childrens Services,539.94,Electricity,2223P06_CR00169,107605
Sandwell Metropolitan Borough Council,http://www.sandwell.gov.uk/info/200202/performance_and_spending/1079/payments_over_500,11-Sep-2022,Childrens Services,TOTALENERGIES GAS & POWER LTD,Childrens Services,688.72,Electricity,2223P06_CR00170,107605
Sandwell Metropolitan Borough Council,http://www.sandwell.gov.uk/info/200202/performance_and_spending/1079/payments_over_500,01-Sep-2022,Childrens Services,TOTALENERGIES GAS & POWER LTD,Childrens Services,737.79,Electricity,2223P06_CR00171,107605
Sandwell Metropolitan Borough Council,http://www.sandwell.gov.uk/info/200202/performance_and_spending/1079/payments_over_500,08-Sep-2022,Childrens Services,TOTALENERGIES GAS & POWER LTD,Childrens Services,776.22,Electricity,2223P06_CR00172,107605
Sandwell Metropolitan Borough Council,http://www.sandwell.gov.uk/info/200202/performance_and_spending/1079/payments_over_500,01-Sep-2022,Childrens Services,TOTALENERGIES GAS & POWER LTD,Childrens Services,961.10,Electricity,2223P06_CR00173,107605
Sandwell Metropolitan Borough Council,http://www.sandwell.gov.uk/info/200202/performance_and_spending/1079/payments_over_500,01-Sep-2022,Childrens Services,TOTALENERGIES GAS & POWER LTD,Childrens Services,1072.84,Electricity,2223P06_CR00174,107605
Sandwell Metropolitan Borough Council,http://www.sandwell.gov.uk/info/200202/performance_and_spending/1079/payments_over_500,01-Sep-2022,Childrens Services,TOTALENERGIES GAS & POWER LTD,Childrens Services,1237.35,Electricity,2223P06_CR00175,107605
Sandwell Metropolitan Borough Council,http://www.sandwell.gov.uk/info/200202/performance_and_spending/1079/payments_over_500,05-Sep-2022,Childrens Services,VALENCIA FINE FOODS LIMITED,Childrens Services,766.90,Externally Purchased Professional Services ,2223P06_CR00176,131572
Sandwell Metropolitan Borough Council,http://www.sandwell.gov.uk/info/200202/performance_and_spending/1079/payments_over_500,05-Sep-2022,Childrens Services,VALENCIA FINE FOODS LIMITED,Childrens Services,859.58,Externally Purchased Professional Services ,2223P06_CR00177,131572
Sandwell Metropolitan Borough Council,http://www.sandwell.gov.uk/info/200202/performance_and_spending/1079/payments_over_500,01-Sep-2022,Childrens Services,WALSALL MBC,Childrens Services,13702.67,Grants,2223P06_CR00178,01106025
Sandwell Metropolitan Borough Council,http://www.sandwell.gov.uk/info/200202/performance_and_spending/1079/payments_over_500,01-Sep-2022,Childrens Services,WATERLOGIC GB LIMITED,Childrens Services,580.51,Catering Equipment,2223P06_CR00179,1106
Sandwell Metropolitan Borough Council,http://www.sandwell.gov.uk/info/200202/performance_and_spending/1079/payments_over_500,26-Sep-2022,Childrens Services,WEIGHTMANS ,Childrens Services,14000.00,Externally Purchased Professional Services ,2223P06_CR00180,120965
Sandwell Metropolitan Borough Council,http://www.sandwell.gov.uk/info/200202/performance_and_spending/1079/payments_over_500,01-Sep-2022,Childrens Services,WEST MIDLANDS TRAVEL LIMITED,Childrens Services,6800.00,Externally Purchased Professional Services ,2223P06_CR00181,01736688
Sandwell Metropolitan Borough Council,http://www.sandwell.gov.uk/info/200202/performance_and_spending/1079/payments_over_500,01-Sep-2022,Childrens Services,WOLVERHAMPTON CITY COUNCIL,Childrens Services,1316347.00,SH Payments,2223P06_CR00182,01374555
Sandwell Metropolitan Borough Council,http://www.sandwell.gov.uk/info/200202/performance_and_spending/1079/payments_over_500,06-Sep-2022,Childrens Services,WOLVERHAMPTON VOLUNTARY SECTOR COUNCIL,Childrens Services,17968.16,Grants,2223P06_CR00183,43383
Sandwell Metropolitan Borough Council,http://www.sandwell.gov.uk/info/200202/performance_and_spending/1079/payments_over_500,01-Sep-2022,Childrens Services,FRANCESCA RICHARDS,Childrens Services,1500.00,Externally Purchased Professional Services ,2223P06_CR00184,159458
Sandwell Metropolitan Borough Council,http://www.sandwell.gov.uk/info/200202/performance_and_spending/1079/payments_over_500,01-Sep-2022,Childrens Services,"RACHEL SMITH,",Childrens Services,2000.00,Externally Purchased Professional Services ,2223P06_CR00185,162210
Sandwell Metropolitan Borough Council,http://www.sandwell.gov.uk/info/200202/performance_and_spending/1079/payments_over_500,02-Sep-2022,Childrens Services,RUTH PORTER,Childrens Services,1200.00,Externally Purchased Professional Services ,2223P06_CR00186,163710
Sandwell Metropolitan Borough Council,http://www.sandwell.gov.uk/info/200202/performance_and_spending/1079/payments_over_500,12-Sep-2022,Childrens Services,REDACTED PERSONAL DATA,Childrens Services,727.27,External Contract Hire,2223P06_CR00187,REDACTED PERSONAL DATA
Sandwell Metropolitan Borough Council,http://www.sandwell.gov.uk/info/200202/performance_and_spending/1079/payments_over_500,12-Sep-2022,Childrens Services,REDACTED PERSONAL DATA,Childrens Services,727.27,External Contract Hire,2223P06_CR00188,REDACTED PERSONAL DATA
Sandwell Metropolitan Borough Council,http://www.sandwell.gov.uk/info/200202/performance_and_spending/1079/payments_over_500,12-Sep-2022,Childrens Services,REDACTED PERSONAL DATA,Childrens Services,545.45,External Contract Hire,2223P06_CR00189,REDACTED PERSONAL DATA
Sandwell Metropolitan Borough Council,http://www.sandwell.gov.uk/info/200202/performance_and_spending/1079/payments_over_500,12-Sep-2022,Childrens Services,REDACTED PERSONAL DATA,Childrens Services,545.45,External Contract Hire,2223P06_CR00190,REDACTED PERSONAL DATA
Sandwell Metropolitan Borough Council,http://www.sandwell.gov.uk/info/200202/performance_and_spending/1079/payments_over_500,12-Sep-2022,Childrens Services,REDACTED PERSONAL DATA,Childrens Services,727.28,External Contract Hire,2223P06_CR00191,REDACTED PERSONAL DATA
Sandwell Metropolitan Borough Council,http://www.sandwell.gov.uk/info/200202/performance_and_spending/1079/payments_over_500,12-Sep-2022,Childrens Services,REDACTED PERSONAL DATA,Childrens Services,727.27,External Contract Hire,2223P06_CR00192,REDACTED PERSONAL DATA
Sandwell Metropolitan Borough Council,http://www.sandwell.gov.uk/info/200202/performance_and_spending/1079/payments_over_500,12-Sep-2022,Childrens Services,REDACTED PERSONAL DATA,Childrens Services,545.45,External Contract Hire,2223P06_CR00193,REDACTED PERSONAL DATA
Sandwell Metropolitan Borough Council,http://www.sandwell.gov.uk/info/200202/performance_and_spending/1079/payments_over_500,12-Sep-2022,Childrens Services,REDACTED PERSONAL DATA,Childrens Services,545.45,External Contract Hire,2223P06_CR00194,REDACTED PERSONAL DATA
Sandwell Metropolitan Borough Council,http://www.sandwell.gov.uk/info/200202/performance_and_spending/1079/payments_over_500,12-Sep-2022,Childrens Services,REDACTED PERSONAL DATA,Childrens Services,545.45,External Contract Hire,2223P06_CR00195,REDACTED PERSONAL DATA
Sandwell Metropolitan Borough Council,http://www.sandwell.gov.uk/info/200202/performance_and_spending/1079/payments_over_500,12-Sep-2022,Childrens Services,REDACTED PERSONAL DATA,Childrens Services,1090.90,External Contract Hire,2223P06_CR00196,REDACTED PERSONAL DATA
Sandwell Metropolitan Borough Council,http://www.sandwell.gov.uk/info/200202/performance_and_spending/1079/payments_over_500,12-Sep-2022,Childrens Services,REDACTED PERSONAL DATA,Childrens Services,545.45,External Contract Hire,2223P06_CR00197,REDACTED PERSONAL DATA
Sandwell Metropolitan Borough Council,http://www.sandwell.gov.uk/info/200202/performance_and_spending/1079/payments_over_500,12-Sep-2022,Childrens Services,REDACTED PERSONAL DATA,Childrens Services,545.45,External Contract Hire,2223P06_CR00198,REDACTED PERSONAL DATA
Sandwell Metropolitan Borough Council,http://www.sandwell.gov.uk/info/200202/performance_and_spending/1079/payments_over_500,12-Sep-2022,Childrens Services,REDACTED PERSONAL DATA,Childrens Services,545.45,External Contract Hire,2223P06_CR00199,REDACTED PERSONAL DATA
Sandwell Metropolitan Borough Council,http://www.sandwell.gov.uk/info/200202/performance_and_spending/1079/payments_over_500,12-Sep-2022,Childrens Services,REDACTED PERSONAL DATA,Childrens Services,909.09,External Contract Hire,2223P06_CR00200,REDACTED PERSONAL DATA
Sandwell Metropolitan Borough Council,http://www.sandwell.gov.uk/info/200202/performance_and_spending/1079/payments_over_500,12-Sep-2022,Childrens Services,REDACTED PERSONAL DATA,Childrens Services,545.45,External Contract Hire,2223P06_CR00201,REDACTED PERSONAL DATA
Sandwell Metropolitan Borough Council,http://www.sandwell.gov.uk/info/200202/performance_and_spending/1079/payments_over_500,12-Sep-2022,Childrens Services,REDACTED PERSONAL DATA,Childrens Services,545.45,External Contract Hire,2223P06_CR00202,REDACTED PERSONAL DATA
Sandwell Metropolitan Borough Council,http://www.sandwell.gov.uk/info/200202/performance_and_spending/1079/payments_over_500,12-Sep-2022,Childrens Services,REDACTED PERSONAL DATA,Childrens Services,800.00,External Contract Hire,2223P06_CR00203,REDACTED PERSONAL DATA
Sandwell Metropolitan Borough Council,http://www.sandwell.gov.uk/info/200202/performance_and_spending/1079/payments_over_500,12-Sep-2022,Childrens Services,REDACTED PERSONAL DATA,Childrens Services,545.45,External Contract Hire,2223P06_CR00204,REDACTED PERSONAL DATA
Sandwell Metropolitan Borough Council,http://www.sandwell.gov.uk/info/200202/performance_and_spending/1079/payments_over_500,12-Sep-2022,Childrens Services,REDACTED PERSONAL DATA,Childrens Services,727.28,External Contract Hire,2223P06_CR00205,REDACTED PERSONAL DATA
Sandwell Metropolitan Borough Council,http://www.sandwell.gov.uk/info/200202/performance_and_spending/1079/payments_over_500,12-Sep-2022,Childrens Services,REDACTED PERSONAL DATA,Childrens Services,727.27,External Contract Hire,2223P06_CR00206,REDACTED PERSONAL DATA
Sandwell Metropolitan Borough Council,http://www.sandwell.gov.uk/info/200202/performance_and_spending/1079/payments_over_500,12-Sep-2022,Childrens Services,REDACTED PERSONAL DATA,Childrens Services,545.45,External Contract Hire,2223P06_CR00207,REDACTED PERSONAL DATA
Sandwell Metropolitan Borough Council,http://www.sandwell.gov.uk/info/200202/performance_and_spending/1079/payments_over_500,12-Sep-2022,Childrens Services,REDACTED PERSONAL DATA,Childrens Services,545.45,External Contract Hire,2223P06_CR00208,REDACTED PERSONAL DATA
Sandwell Metropolitan Borough Council,http://www.sandwell.gov.uk/info/200202/performance_and_spending/1079/payments_over_500,12-Sep-2022,Childrens Services,REDACTED PERSONAL DATA,Childrens Services,727.27,External Contract Hire,2223P06_CR00209,REDACTED PERSONAL DATA
Sandwell Metropolitan Borough Council,http://www.sandwell.gov.uk/info/200202/performance_and_spending/1079/payments_over_500,12-Sep-2022,Childrens Services,REDACTED PERSONAL DATA,Childrens Services,727.27,External Contract Hire,2223P06_CR00210,REDACTED PERSONAL DATA
Sandwell Metropolitan Borough Council,http://www.sandwell.gov.uk/info/200202/performance_and_spending/1079/payments_over_500,12-Sep-2022,Childrens Services,REDACTED PERSONAL DATA,Childrens Services,727.27,External Contract Hire,2223P06_CR00211,REDACTED PERSONAL DATA
Sandwell Metropolitan Borough Council,http://www.sandwell.gov.uk/info/200202/performance_and_spending/1079/payments_over_500,12-Sep-2022,Childrens Services,REDACTED PERSONAL DATA,Childrens Services,545.45,External Contract Hire,2223P06_CR00212,REDACTED PERSONAL DATA
Sandwell Metropolitan Borough Council,http://www.sandwell.gov.uk/info/200202/performance_and_spending/1079/payments_over_500,12-Sep-2022,Childrens Services,REDACTED PERSONAL DATA,Childrens Services,727.27,External Contract Hire,2223P06_CR00213,REDACTED PERSONAL DATA
Sandwell Metropolitan Borough Council,http://www.sandwell.gov.uk/info/200202/performance_and_spending/1079/payments_over_500,12-Sep-2022,Childrens Services,REDACTED PERSONAL DATA,Childrens Services,545.45,External Contract Hire,2223P06_CR00214,REDACTED PERSONAL DATA
Sandwell Metropolitan Borough Council,http://www.sandwell.gov.uk/info/200202/performance_and_spending/1079/payments_over_500,12-Sep-2022,Childrens Services,REDACTED PERSONAL DATA,Childrens Services,727.27,External Contract Hire,2223P06_CR00215,REDACTED PERSONAL DATA
Sandwell Metropolitan Borough Council,http://www.sandwell.gov.uk/info/200202/performance_and_spending/1079/payments_over_500,12-Sep-2022,Childrens Services,REDACTED PERSONAL DATA,Childrens Services,545.45,External Contract Hire,2223P06_CR00216,REDACTED PERSONAL DATA
Sandwell Metropolitan Borough Council,http://www.sandwell.gov.uk/info/200202/performance_and_spending/1079/payments_over_500,12-Sep-2022,Childrens Services,REDACTED PERSONAL DATA,Childrens Services,727.27,External Contract Hire,2223P06_CR00217,REDACTED PERSONAL DATA
Sandwell Metropolitan Borough Council,http://www.sandwell.gov.uk/info/200202/performance_and_spending/1079/payments_over_500,12-Sep-2022,Childrens Services,REDACTED PERSONAL DATA,Childrens Services,545.45,External Contract Hire,2223P06_CR00218,REDACTED PERSONAL DATA
Sandwell Metropolitan Borough Council,http://www.sandwell.gov.uk/info/200202/performance_and_spending/1079/payments_over_500,12-Sep-2022,Childrens Services,REDACTED PERSONAL DATA,Childrens Services,727.27,External Contract Hire,2223P06_CR00219,REDACTED PERSONAL DATA
Sandwell Metropolitan Borough Council,http://www.sandwell.gov.uk/info/200202/performance_and_spending/1079/payments_over_500,13-Sep-2022,Childrens Services,REDACTED PERSONAL DATA,Childrens Services,509.76,External Contract Hire,2223P06_CR00220,REDACTED PERSONAL DATA
Sandwell Metropolitan Borough Council,http://www.sandwell.gov.uk/info/200202/performance_and_spending/1079/payments_over_500,13-Sep-2022,Childrens Services,REDACTED PERSONAL DATA,Childrens Services,743.58,External Contract Hire,2223P06_CR00221,REDACTED PERSONAL DATA
Sandwell Metropolitan Borough Council,http://www.sandwell.gov.uk/info/200202/performance_and_spending/1079/payments_over_500,14-Sep-2022,Childrens Services,SANDWELL CONSORTIUM CIC,Childrens Services,120351.00,Grant Payments,2223P06_CR00222,104616
Sandwell Metropolitan Borough Council,http://www.sandwell.gov.uk/info/200202/performance_and_spending/1079/payments_over_500,01-Sep-2022,Childrens Services Capital,D P DESIGN PARTNERSHIP,Childrens Services Capital,3500.00,"CIP - New Construction,Conversion, Enhancement & Reno",2223P06_CR00223,145811
Sandwell Metropolitan Borough Council,http://www.sandwell.gov.uk/info/200202/performance_and_spending/1079/payments_over_500,16-Sep-2022,Childrens Services Capital,EVARIS SOLUTIONS LTD,Childrens Services Capital,868.00,"CIP - New Construction,Conversion, Enhancement & Reno",2223P06_CR00224,161598
Sandwell Metropolitan Borough Council,http://www.sandwell.gov.uk/info/200202/performance_and_spending/1079/payments_over_500,09-Sep-2022,Childrens Services Capital,EVARIS SOLUTIONS LTD,Childrens Services Capital,34100.00,"CIP - New Construction,Conversion, Enhancement & Reno",2223P06_CR00225,161598
Sandwell Metropolitan Borough Council,http://www.sandwell.gov.uk/info/200202/performance_and_spending/1079/payments_over_500,07-Sep-2022,Childrens Services Capital,GM BUILDING AND PROPERTY SERVICES LTD,Childrens Services Capital,7575.75,"CIP - New Construction,Conversion, Enhancement & Reno",2223P06_CR00226,141782
Sandwell Metropolitan Borough Council,http://www.sandwell.gov.uk/info/200202/performance_and_spending/1079/payments_over_500,01-Sep-2022,Childrens Services Capital,HARDYMAN & CO LIMITED,Childrens Services Capital,31247.56,"CIP - New Construction,Conversion, Enhancement & Reno",2223P06_CR00227,10788
Sandwell Metropolitan Borough Council,http://www.sandwell.gov.uk/info/200202/performance_and_spending/1079/payments_over_500,01-Sep-2022,Childrens Services Capital,HARDYMAN & CO LIMITED,Childrens Services Capital,76622.85,"CIP - New Construction,Conversion, Enhancement & Reno",2223P06_CR00228,10788
Sandwell Metropolitan Borough Council,http://www.sandwell.gov.uk/info/200202/performance_and_spending/1079/payments_over_500,01-Sep-2022,Childrens Services Capital,HILL INTERIOR CONTRACTS LTD,Childrens Services Capital,71094.52,"CIP - New Construction,Conversion, Enhancement & Reno",2223P06_CR00229,17158
Sandwell Metropolitan Borough Council,http://www.sandwell.gov.uk/info/200202/performance_and_spending/1079/payments_over_500,01-Sep-2022,Childrens Services Capital,PBM CONTRACTORS LTD,Childrens Services Capital,10464.00,"CIP - New Construction,Conversion, Enhancement & Reno",2223P06_CR00230,77007683
Sandwell Metropolitan Borough Council,http://www.sandwell.gov.uk/info/200202/performance_and_spending/1079/payments_over_500,01-Sep-2022,Childrens Services Capital,PBM CONTRACTORS LTD,Childrens Services Capital,12586.25,"CIP - New Construction,Conversion, Enhancement & Reno",2223P06_CR00231,77007683
Sandwell Metropolitan Borough Council,http://www.sandwell.gov.uk/info/200202/performance_and_spending/1079/payments_over_500,01-Sep-2022,Childrens Services Capital,POWELL OFFICE EQUIPMENT LIMITED,Regeneration And The Economy Capital,1517.50,"CIP - New Construction,Conversion, Enhancement & Reno",2223P06_CR00232,2759
Sandwell Metropolitan Borough Council,http://www.sandwell.gov.uk/info/200202/performance_and_spending/1079/payments_over_500,12-Sep-2022,Childrens Services Capital,POWELL OFFICE EQUIPMENT LIMITED,Regeneration And The Economy Capital,1750.00,"CIP - New Construction,Conversion, Enhancement & Reno",2223P06_CR00233,2759
Sandwell Metropolitan Borough Council,http://www.sandwell.gov.uk/info/200202/performance_and_spending/1079/payments_over_500,01-Sep-2022,Childrens Services Capital,POWELL OFFICE EQUIPMENT LIMITED,Regeneration And The Economy Capital,9573.60,"CIP - New Construction,Conversion, Enhancement & Reno",2223P06_CR00234,2759
Sandwell Metropolitan Borough Council,http://www.sandwell.gov.uk/info/200202/performance_and_spending/1079/payments_over_500,01-Sep-2022,Childrens Services Capital,SEDDON CONSTRUCTION LIMITED,Childrens Services Capital,323435.32,"CIP - New Construction,Conversion, Enhancement & Reno",2223P06_CR00235,132999
Sandwell Metropolitan Borough Council,http://www.sandwell.gov.uk/info/200202/performance_and_spending/1079/payments_over_500,02-Sep-2022,Childrens Services Capital,SWITCHSHOP LTD,Childrens Services Capital,1588.34,"CIP - New Construction,Conversion, Enhancement & Reno",2223P06_CR00236,163854
Sandwell Metropolitan Borough Council,http://www.sandwell.gov.uk/info/200202/performance_and_spending/1079/payments_over_500,01-Sep-2022,Childrens Services Capital,UPLANDS MANOR PRIMARY ,Childrens Services Capital,6931.68,"CIP - New Construction,Conversion, Enhancement & Reno",2223P06_CR00237,04024322
Sandwell Metropolitan Borough Council,http://www.sandwell.gov.uk/info/200202/performance_and_spending/1079/payments_over_500,16-Sep-2022,Housing & Communities,AFTERCARE RESPONSE LTD,Neighbourhoods,585.83,Fire Service Workshops,2223P06_CR00238,120440
Sandwell Metropolitan Borough Council,http://www.sandwell.gov.uk/info/200202/performance_and_spending/1079/payments_over_500,01-Sep-2022,Housing & Communities,BICKFORD TRUCK HIRE LTD,Neighbourhoods,630.00,Vehicle Hiring Charges,2223P06_CR00239,126698
Sandwell Metropolitan Borough Council,http://www.sandwell.gov.uk/info/200202/performance_and_spending/1079/payments_over_500,01-Sep-2022,Housing & Communities,BOB RICHARDSON TOOLS & FASTENERS LTD,Neighbourhoods,1276.77,Equipment & Furniture ,2223P06_CR00240,01082705
Sandwell Metropolitan Borough Council,http://www.sandwell.gov.uk/info/200202/performance_and_spending/1079/payments_over_500,01-Sep-2022,Housing & Communities,DAWSONGROUP VANS,Neighbourhoods,627.08,Vehicle Hiring Charges,2223P06_CR00241,151498
Sandwell Metropolitan Borough Council,http://www.sandwell.gov.uk/info/200202/performance_and_spending/1079/payments_over_500,01-Sep-2022,Housing & Communities,DAYS RENTAL,Neighbourhoods,518.94,Vehicle Hiring Charges,2223P06_CR00242,128169
Sandwell Metropolitan Borough Council,http://www.sandwell.gov.uk/info/200202/performance_and_spending/1079/payments_over_500,01-Sep-2022,Housing & Communities,DAYS RENTAL,Neighbourhoods,518.94,Vehicle Hiring Charges,2223P06_CR00243,128169
Sandwell Metropolitan Borough Council,http://www.sandwell.gov.uk/info/200202/performance_and_spending/1079/payments_over_500,01-Sep-2022,Housing & Communities,DAYS RENTAL,Neighbourhoods,518.94,Vehicle Hiring Charges,2223P06_CR00244,128169
Sandwell Metropolitan Borough Council,http://www.sandwell.gov.uk/info/200202/performance_and_spending/1079/payments_over_500,01-Sep-2022,Housing & Communities,DAYS RENTAL,Neighbourhoods,641.70,Vehicle Hiring Charges,2223P06_CR00245,128169
Sandwell Metropolitan Borough Council,http://www.sandwell.gov.uk/info/200202/performance_and_spending/1079/payments_over_500,01-Sep-2022,Housing & Communities,DAYS RENTAL,Neighbourhoods,641.70,Vehicle Hiring Charges,2223P06_CR00246,128169
Sandwell Metropolitan Borough Council,http://www.sandwell.gov.uk/info/200202/performance_and_spending/1079/payments_over_500,01-Sep-2022,Housing & Communities,DAYS RENTAL,Neighbourhoods,862.20,Vehicle Hiring Charges,2223P06_CR00247,128169
Sandwell Metropolitan Borough Council,http://www.sandwell.gov.uk/info/200202/performance_and_spending/1079/payments_over_500,30-Sep-2022,Housing & Communities,DAYS RENTAL,Neighbourhoods,862.20,Vehicle Hiring Charges,2223P06_CR00248,128169
Sandwell Metropolitan Borough Council,http://www.sandwell.gov.uk/info/200202/performance_and_spending/1079/payments_over_500,01-Sep-2022,Housing & Communities,DAYS RENTAL,Neighbourhoods,890.94,Vehicle Hiring Charges,2223P06_CR00249,128169
Sandwell Metropolitan Borough Council,http://www.sandwell.gov.uk/info/200202/performance_and_spending/1079/payments_over_500,01-Sep-2022,Housing & Communities,DAYS RENTAL,Neighbourhoods,890.94,Vehicle Hiring Charges,2223P06_CR00250,128169
Sandwell Metropolitan Borough Council,http://www.sandwell.gov.uk/info/200202/performance_and_spending/1079/payments_over_500,01-Sep-2022,Housing & Communities,DAYS RENTAL,Neighbourhoods,890.94,Vehicle Hiring Charges,2223P06_CR00251,128169
Sandwell Metropolitan Borough Council,http://www.sandwell.gov.uk/info/200202/performance_and_spending/1079/payments_over_500,01-Sep-2022,Housing & Communities,DAYS RENTAL,Neighbourhoods,890.94,Vehicle Hiring Charges,2223P06_CR00252,128169
Sandwell Metropolitan Borough Council,http://www.sandwell.gov.uk/info/200202/performance_and_spending/1079/payments_over_500,01-Sep-2022,Housing & Communities,DAYS RENTAL,Neighbourhoods,890.94,Vehicle Hiring Charges,2223P06_CR00253,128169
Sandwell Metropolitan Borough Council,http://www.sandwell.gov.uk/info/200202/performance_and_spending/1079/payments_over_500,01-Sep-2022,Housing & Communities,DAYS RENTAL,Neighbourhoods,1114.14,Vehicle Hiring Charges,2223P06_CR00254,128169
Sandwell Metropolitan Borough Council,http://www.sandwell.gov.uk/info/200202/performance_and_spending/1079/payments_over_500,07-Sep-2022,Housing & Communities,DENNIS EAGLE LTD,Neighbourhoods,539.72,Fire Service Workshops,2223P06_CR00255,01004865
Sandwell Metropolitan Borough Council,http://www.sandwell.gov.uk/info/200202/performance_and_spending/1079/payments_over_500,15-Sep-2022,Housing & Communities,DENNIS EAGLE LTD,Neighbourhoods,569.31,Fire Service Workshops,2223P06_CR00256,01004865
Sandwell Metropolitan Borough Council,http://www.sandwell.gov.uk/info/200202/performance_and_spending/1079/payments_over_500,01-Sep-2022,Housing & Communities,DENNIS EAGLE LTD,Neighbourhoods,599.02,Fire Service Workshops,2223P06_CR00257,01004865
Sandwell Metropolitan Borough Council,http://www.sandwell.gov.uk/info/200202/performance_and_spending/1079/payments_over_500,23-Sep-2022,Housing & Communities,DENNIS EAGLE LTD,Neighbourhoods,720.32,Fire Service Workshops,2223P06_CR00258,01004865
Sandwell Metropolitan Borough Council,http://www.sandwell.gov.uk/info/200202/performance_and_spending/1079/payments_over_500,27-Sep-2022,Housing & Communities,DENNIS EAGLE LTD,Neighbourhoods,765.82,Fire Service Workshops,2223P06_CR00259,01004865
Sandwell Metropolitan Borough Council,http://www.sandwell.gov.uk/info/200202/performance_and_spending/1079/payments_over_500,01-Sep-2022,Housing & Communities,DENNIS EAGLE LTD,Neighbourhoods,830.98,Fire Service Workshops,2223P06_CR00260,01004865
Sandwell Metropolitan Borough Council,http://www.sandwell.gov.uk/info/200202/performance_and_spending/1079/payments_over_500,21-Sep-2022,Housing & Communities,DENNIS EAGLE LTD,Neighbourhoods,898.11,Fire Service Workshops,2223P06_CR00261,01004865
Sandwell Metropolitan Borough Council,http://www.sandwell.gov.uk/info/200202/performance_and_spending/1079/payments_over_500,28-Sep-2022,Housing & Communities,DENNIS EAGLE LTD,Neighbourhoods,914.61,Fire Service Workshops,2223P06_CR00262,01004865
Sandwell Metropolitan Borough Council,http://www.sandwell.gov.uk/info/200202/performance_and_spending/1079/payments_over_500,26-Sep-2022,Housing & Communities,DENNIS EAGLE LTD,Neighbourhoods,1138.01,Fire Service Workshops,2223P06_CR00263,01004865
Sandwell Metropolitan Borough Council,http://www.sandwell.gov.uk/info/200202/performance_and_spending/1079/payments_over_500,01-Sep-2022,Housing & Communities,DENNIS EAGLE LTD,Neighbourhoods,1372.69,Fire Service Workshops,2223P06_CR00264,01004865
Sandwell Metropolitan Borough Council,http://www.sandwell.gov.uk/info/200202/performance_and_spending/1079/payments_over_500,20-Sep-2022,Housing & Communities,DENNIS EAGLE LTD,Neighbourhoods,1391.41,Fire Service Workshops,2223P06_CR00265,01004865
Sandwell Metropolitan Borough Council,http://www.sandwell.gov.uk/info/200202/performance_and_spending/1079/payments_over_500,01-Sep-2022,Housing & Communities,ENTERPRISE FLEX-E-RENT,Neighbourhoods,878.85,Vehicle Hiring Charges,2223P06_CR00266,142092
Sandwell Metropolitan Borough Council,http://www.sandwell.gov.uk/info/200202/performance_and_spending/1079/payments_over_500,01-Sep-2022,Housing & Communities,ENTERPRISE FLEX-E-RENT,Neighbourhoods,1467.50,Vehicle Hiring Charges,2223P06_CR00267,142092
Sandwell Metropolitan Borough Council,http://www.sandwell.gov.uk/info/200202/performance_and_spending/1079/payments_over_500,02-Sep-2022,Housing & Communities,FLEET FACTORS LTD,Neighbourhoods,1050.00,Fire Service Workshops,2223P06_CR00268,164128
Sandwell Metropolitan Borough Council,http://www.sandwell.gov.uk/info/200202/performance_and_spending/1079/payments_over_500,01-Sep-2022,Housing & Communities,GEESINK NORBA LTD,Neighbourhoods,984.18,Fire Service Workshops,2223P06_CR00269,102799
Sandwell Metropolitan Borough Council,http://www.sandwell.gov.uk/info/200202/performance_and_spending/1079/payments_over_500,15-Sep-2022,Housing & Communities,GEESINK NORBA LTD,Neighbourhoods,1051.39,Fire Service Workshops,2223P06_CR00270,102799
Sandwell Metropolitan Borough Council,http://www.sandwell.gov.uk/info/200202/performance_and_spending/1079/payments_over_500,01-Sep-2022,Housing & Communities,GEESINK NORBA LTD,Neighbourhoods,1388.75,Fire Service Workshops,2223P06_CR00271,102799
Sandwell Metropolitan Borough Council,http://www.sandwell.gov.uk/info/200202/performance_and_spending/1079/payments_over_500,05-Sep-2022,Housing & Communities,GEESINK NORBA LTD,Neighbourhoods,1963.42,Fire Service Workshops,2223P06_CR00272,102799
Sandwell Metropolitan Borough Council,http://www.sandwell.gov.uk/info/200202/performance_and_spending/1079/payments_over_500,16-Sep-2022,Housing & Communities,GEESINK NORBA LTD,Neighbourhoods,3375.99,Fire Service Workshops,2223P06_CR00273,102799
Sandwell Metropolitan Borough Council,http://www.sandwell.gov.uk/info/200202/performance_and_spending/1079/payments_over_500,12-Sep-2022,Housing & Communities,GREENHOUS COMMERCIALS LTD,Neighbourhoods,604.00,Fire Service Workshops,2223P06_CR00274,01141434
Sandwell Metropolitan Borough Council,http://www.sandwell.gov.uk/info/200202/performance_and_spending/1079/payments_over_500,13-Sep-2022,Housing & Communities,GREENMAN SPECIALIST VEHICLE SERVICES LTD.,Neighbourhoods,690.00,Fire Service Workshops,2223P06_CR00275,133345
Sandwell Metropolitan Borough Council,http://www.sandwell.gov.uk/info/200202/performance_and_spending/1079/payments_over_500,04-Sep-2022,Housing & Communities,HADLEYS STEAM CLEANING LTD,Neighbourhoods,1688.00,Repairs & Maintenance,2223P06_CR00276,132536
Sandwell Metropolitan Borough Council,http://www.sandwell.gov.uk/info/200202/performance_and_spending/1079/payments_over_500,01-Sep-2022,Housing & Communities,JAMES GREEN FARM MACHINERY LTD,Neighbourhoods,535.00,Fire Service Workshops,2223P06_CR00277,129888
Sandwell Metropolitan Borough Council,http://www.sandwell.gov.uk/info/200202/performance_and_spending/1079/payments_over_500,01-Sep-2022,Housing & Communities,JAMES LISTER & SONS LTD,Neighbourhoods,1467.00,Fire Service Workshops,2223P06_CR00278,01021821
Sandwell Metropolitan Borough Council,http://www.sandwell.gov.uk/info/200202/performance_and_spending/1079/payments_over_500,01-Sep-2022,Housing & Communities,JAMES LISTER & SONS LTD,Neighbourhoods,1752.61,Fire Service Workshops,2223P06_CR00279,01021821
Sandwell Metropolitan Borough Council,http://www.sandwell.gov.uk/info/200202/performance_and_spending/1079/payments_over_500,23-Sep-2022,Housing & Communities,MIDLAND GARAGE EQUIPMENT,Neighbourhoods,773.94,Equipment & Furniture ,2223P06_CR00280,134241
Sandwell Metropolitan Borough Council,http://www.sandwell.gov.uk/info/200202/performance_and_spending/1079/payments_over_500,28-Sep-2022,Housing & Communities,MOTUS COMMERCIALS HALESOWEN,Neighbourhoods,738.50,Fire Service Workshops,2223P06_CR00281,142253
Sandwell Metropolitan Borough Council,http://www.sandwell.gov.uk/info/200202/performance_and_spending/1079/payments_over_500,01-Sep-2022,Housing & Communities,MOTUS GROUP LTD,Neighbourhoods,31577.69,Licences & Test Fees,2223P06_CR00282,01286345
Sandwell Metropolitan Borough Council,http://www.sandwell.gov.uk/info/200202/performance_and_spending/1079/payments_over_500,01-Sep-2022,Housing & Communities,MOTUS GROUP LTD,Neighbourhoods,31687.69,Licences & Test Fees,2223P06_CR00283,01286345
Sandwell Metropolitan Borough Council,http://www.sandwell.gov.uk/info/200202/performance_and_spending/1079/payments_over_500,06-Sep-2022,Housing & Communities,PARTSPLUS,Neighbourhoods,568.32,Fire Service Workshops,2223P06_CR00284,01087922
Sandwell Metropolitan Borough Council,http://www.sandwell.gov.uk/info/200202/performance_and_spending/1079/payments_over_500,18-Sep-2022,Housing & Communities,PHS BESAFE,Neighbourhoods,1083.30,Laundry,2223P06_CR00285,124613
Sandwell Metropolitan Borough Council,http://www.sandwell.gov.uk/info/200202/performance_and_spending/1079/payments_over_500,02-Sep-2022,Housing & Communities,ROBINS & DAY PARTS WEST MIDLANDS,Neighbourhoods,644.96,Fire Service Workshops,2223P06_CR00286,118812
Sandwell Metropolitan Borough Council,http://www.sandwell.gov.uk/info/200202/performance_and_spending/1079/payments_over_500,01-Sep-2022,Housing & Communities,ROBINS & DAY PARTS WEST MIDLANDS,Neighbourhoods,685.78,Fire Service Workshops,2223P06_CR00287,118812
Sandwell Metropolitan Borough Council,http://www.sandwell.gov.uk/info/200202/performance_and_spending/1079/payments_over_500,14-Sep-2022,Housing & Communities,ROBINS & DAY PARTS WEST MIDLANDS,Neighbourhoods,934.45,Fire Service Workshops,2223P06_CR00288,118812
Sandwell Metropolitan Borough Council,http://www.sandwell.gov.uk/info/200202/performance_and_spending/1079/payments_over_500,13-Sep-2022,Housing & Communities,ROBINS & DAY PARTS WEST MIDLANDS,Neighbourhoods,934.45,Fire Service Workshops,2223P06_CR00289,118812
Sandwell Metropolitan Borough Council,http://www.sandwell.gov.uk/info/200202/performance_and_spending/1079/payments_over_500,21-Sep-2022,Housing & Communities,ROBINS & DAY PARTS WEST MIDLANDS,Neighbourhoods,934.45,Fire Service Workshops,2223P06_CR00290,118812
Sandwell Metropolitan Borough Council,http://www.sandwell.gov.uk/info/200202/performance_and_spending/1079/payments_over_500,01-Sep-2022,Housing & Communities,ROBINS & DAY PARTS WEST MIDLANDS,Neighbourhoods,1004.25,Fire Service Workshops,2223P06_CR00291,118812
Sandwell Metropolitan Borough Council,http://www.sandwell.gov.uk/info/200202/performance_and_spending/1079/payments_over_500,01-Sep-2022,Housing & Communities,RYGOR COMMERCIALS LTD,Neighbourhoods,796.13,Fire Service Workshops,2223P06_CR00292,3345
Sandwell Metropolitan Borough Council,http://www.sandwell.gov.uk/info/200202/performance_and_spending/1079/payments_over_500,01-Sep-2022,Housing & Communities,SCARAB SWEEPERS LTD,Neighbourhoods,986.24,Fire Service Workshops,2223P06_CR00293,01710482
Sandwell Metropolitan Borough Council,http://www.sandwell.gov.uk/info/200202/performance_and_spending/1079/payments_over_500,01-Sep-2022,Housing & Communities,SCARAB SWEEPERS LTD,Neighbourhoods,1032.24,Fire Service Workshops,2223P06_CR00294,01710482
Sandwell Metropolitan Borough Council,http://www.sandwell.gov.uk/info/200202/performance_and_spending/1079/payments_over_500,14-Sep-2022,Housing & Communities,SHELLEY TRANSMISSION SERVICES LTD,Neighbourhoods,895.00,Fire Service Workshops,2223P06_CR00295,163886
Sandwell Metropolitan Borough Council,http://www.sandwell.gov.uk/info/200202/performance_and_spending/1079/payments_over_500,21-Sep-2022,Housing & Communities,SHELLEY TRANSMISSION SERVICES LTD,Neighbourhoods,1680.00,Fire Service Workshops,2223P06_CR00296,163886
Sandwell Metropolitan Borough Council,http://www.sandwell.gov.uk/info/200202/performance_and_spending/1079/payments_over_500,21-Sep-2022,Housing & Communities,SIMON TULLETT MACHINERY COMPANY LIMITED,Neighbourhoods,976.66,Repairs & Maintenance,2223P06_CR00297,109117
Sandwell Metropolitan Borough Council,http://www.sandwell.gov.uk/info/200202/performance_and_spending/1079/payments_over_500,08-Sep-2022,Housing & Communities,SPENCER SIGNS UK LTD,Neighbourhoods,571.10,Fire Service Workshops,2223P06_CR00298,124882
Sandwell Metropolitan Borough Council,http://www.sandwell.gov.uk/info/200202/performance_and_spending/1079/payments_over_500,26-Sep-2022,Housing & Communities,TAYLOR ENGINEERING & FABRICATIONS LTD,Neighbourhoods,524.86,Fire Service Workshops,2223P06_CR00299,87793
Sandwell Metropolitan Borough Council,http://www.sandwell.gov.uk/info/200202/performance_and_spending/1079/payments_over_500,02-Sep-2022,Housing & Communities,TAYLOR ENGINEERING & FABRICATIONS LTD,Neighbourhoods,730.95,Fire Service Workshops,2223P06_CR00300,87793
Sandwell Metropolitan Borough Council,http://www.sandwell.gov.uk/info/200202/performance_and_spending/1079/payments_over_500,26-Sep-2022,Housing & Communities,TAYLOR ENGINEERING & FABRICATIONS LTD,Neighbourhoods,812.93,Fire Service Workshops,2223P06_CR00301,87793
Sandwell Metropolitan Borough Council,http://www.sandwell.gov.uk/info/200202/performance_and_spending/1079/payments_over_500,01-Sep-2022,Housing & Communities,TERBERG MATEC UK LTD,Neighbourhoods,1876.78,Fire Service Workshops,2223P06_CR00302,21235
Sandwell Metropolitan Borough Council,http://www.sandwell.gov.uk/info/200202/performance_and_spending/1079/payments_over_500,01-Sep-2022,Housing & Communities,TERBERG MATEC UK LTD,Neighbourhoods,2463.19,Fire Service Workshops,2223P06_CR00303,21235
Sandwell Metropolitan Borough Council,http://www.sandwell.gov.uk/info/200202/performance_and_spending/1079/payments_over_500,06-Sep-2022,Housing & Communities,TH WHITE LIMITED,Neighbourhoods,1282.36,Repairs & Maintenance,2223P06_CR00304,01774713
Sandwell Metropolitan Borough Council,http://www.sandwell.gov.uk/info/200202/performance_and_spending/1079/payments_over_500,06-Sep-2022,Housing & Communities,TH WHITE LIMITED,Neighbourhoods,1992.07,Fire Service Workshops,2223P06_CR00305,01774713
Sandwell Metropolitan Borough Council,http://www.sandwell.gov.uk/info/200202/performance_and_spending/1079/payments_over_500,06-Sep-2022,Housing & Communities,TH WHITE LIMITED,Neighbourhoods,2071.07,Fire Service Workshops,2223P06_CR00306,01774713
Sandwell Metropolitan Borough Council,http://www.sandwell.gov.uk/info/200202/performance_and_spending/1079/payments_over_500,13-Sep-2022,Housing & Communities,TH WHITE LIMITED,Neighbourhoods,2307.87,Fire Service Workshops,2223P06_CR00307,01774713
Sandwell Metropolitan Borough Council,http://www.sandwell.gov.uk/info/200202/performance_and_spending/1079/payments_over_500,09-Sep-2022,Housing & Communities,TH WHITE LIMITED,Housing & Communities,25200.00,"CIP - Vehicles, Plant & Machinery",2223P06_CR00308,01774713
Sandwell Metropolitan Borough Council,http://www.sandwell.gov.uk/info/200202/performance_and_spending/1079/payments_over_500,27-Sep-2022,Housing & Communities,TRUCKSTOP-HAWKES,Neighbourhoods,1020.00,Subscriptions,2223P06_CR00309,109408
Sandwell Metropolitan Borough Council,http://www.sandwell.gov.uk/info/200202/performance_and_spending/1079/payments_over_500,26-Sep-2022,Housing & Communities,WATERFALL CAR WASH & VALETING CENTRE,Neighbourhoods,645.00,Repairs & Maintenance,2223P06_CR00310,108782
Sandwell Metropolitan Borough Council,http://www.sandwell.gov.uk/info/200202/performance_and_spending/1079/payments_over_500,22-Sep-2022,Housing & Communities,WESTGATE TRANSPORT TRAINING LTD,Neighbourhoods,1392.17,Externally Purchased Professional Services ,2223P06_CR00311,8350
Sandwell Metropolitan Borough Council,http://www.sandwell.gov.uk/info/200202/performance_and_spending/1079/payments_over_500,13-Sep-2022,Housing & Communities,WR DAVIES MOTOR GROUP,Neighbourhoods,1375.50,Fire Service Workshops,2223P06_CR00312,164194
Sandwell Metropolitan Borough Council,http://www.sandwell.gov.uk/info/200202/performance_and_spending/1079/payments_over_500,01-Sep-2022,Housing & Communities,MELLOR COACHCRAFT,Neighbourhoods,660.00,Fire Service Workshops,2223P06_CR00313,76558
Sandwell Metropolitan Borough Council,http://www.sandwell.gov.uk/info/200202/performance_and_spending/1079/payments_over_500,22-Sep-2022,Housing & Communities,2G CREATIVE LTD,Neighbourhoods,7500.00,Civic Events,2223P06_CR00314,151226
Sandwell Metropolitan Borough Council,http://www.sandwell.gov.uk/info/200202/performance_and_spending/1079/payments_over_500,01-Sep-2022,Housing & Communities,AA MEDIA LTD T/A VISITENGLAND ASSESSMENT SERVICES,Neighbourhoods,731.90,Subscriptions,2223P06_CR00315,135990
Sandwell Metropolitan Borough Council,http://www.sandwell.gov.uk/info/200202/performance_and_spending/1079/payments_over_500,01-Sep-2022,Housing & Communities,AECOM INFRASTRUCTURE & ENVIRONMENT UK LIMITED,Neighbourhoods,773.34,Consultancy,2223P06_CR00316,107299
Sandwell Metropolitan Borough Council,http://www.sandwell.gov.uk/info/200202/performance_and_spending/1079/payments_over_500,22-Sep-2022,Housing & Communities,AKS VISUALS LTD,Neighbourhoods,1100.00,Advertising & Publicity,2223P06_CR00317,164188
Sandwell Metropolitan Borough Council,http://www.sandwell.gov.uk/info/200202/performance_and_spending/1079/payments_over_500,01-Sep-2022,Housing & Communities,ALERT CASCADE LTD,Neighbourhoods,1150.00,Subscriptions,2223P06_CR00318,134819
Sandwell Metropolitan Borough Council,http://www.sandwell.gov.uk/info/200202/performance_and_spending/1079/payments_over_500,01-Sep-2022,Housing & Communities,ALLSTAR BUSINESS SOLUTIONS LIMITED,Neighbourhoods,548.08,Fuel ,2223P06_CR00319,104057
Sandwell Metropolitan Borough Council,http://www.sandwell.gov.uk/info/200202/performance_and_spending/1079/payments_over_500,01-Sep-2022,Housing & Communities,ALLSTAR BUSINESS SOLUTIONS LIMITED,Neighbourhoods,1349.66,Fuel ,2223P06_CR00320,104057
Sandwell Metropolitan Borough Council,http://www.sandwell.gov.uk/info/200202/performance_and_spending/1079/payments_over_500,15-Sep-2022,Housing & Communities,ALLSTAR BUSINESS SOLUTIONS LIMITED,Neighbourhoods,2684.35,Fuel ,2223P06_CR00321,104057
Sandwell Metropolitan Borough Council,http://www.sandwell.gov.uk/info/200202/performance_and_spending/1079/payments_over_500,01-Sep-2022,Housing & Communities,ASTRONOMICAL ENTERTAINMENT LTD T/A FIZZ POP SCIENCE WEST MIDLANDS,Neighbourhoods,1000.00,Materials & Consumables,2223P06_CR00322,138205
Sandwell Metropolitan Borough Council,http://www.sandwell.gov.uk/info/200202/performance_and_spending/1079/payments_over_500,01-Sep-2022,Housing & Communities,B & S CHAINS (MIDLANDS) LIMITED,Neighbourhoods,576.98,Equipment & Furniture ,2223P06_CR00323,01357251
Sandwell Metropolitan Borough Council,http://www.sandwell.gov.uk/info/200202/performance_and_spending/1079/payments_over_500,01-Sep-2022,Housing & Communities,B & S CHAINS (MIDLANDS) LIMITED,Neighbourhoods,1053.10,Equipment & Furniture ,2223P06_CR00324,01357251
Sandwell Metropolitan Borough Council,http://www.sandwell.gov.uk/info/200202/performance_and_spending/1079/payments_over_500,01-Sep-2022,Housing & Communities,BEECHWOOD TREES & LANDSCAPE LTD,Neighbourhoods,520.00,Externally Purchased Professional Services ,2223P06_CR00325,93287
Sandwell Metropolitan Borough Council,http://www.sandwell.gov.uk/info/200202/performance_and_spending/1079/payments_over_500,01-Sep-2022,Housing & Communities,BEECHWOOD TREES & LANDSCAPE LTD,Neighbourhoods,540.00,Externally Purchased Professional Services ,2223P06_CR00326,93287
Sandwell Metropolitan Borough Council,http://www.sandwell.gov.uk/info/200202/performance_and_spending/1079/payments_over_500,01-Sep-2022,Housing & Communities,BEECHWOOD TREES & LANDSCAPE LTD,Neighbourhoods,830.00,Externally Purchased Professional Services ,2223P06_CR00327,93287
Sandwell Metropolitan Borough Council,http://www.sandwell.gov.uk/info/200202/performance_and_spending/1079/payments_over_500,01-Sep-2022,Housing & Communities,BEECHWOOD TREES & LANDSCAPE LTD,Neighbourhoods,1035.00,Externally Purchased Professional Services ,2223P06_CR00328,93287
Sandwell Metropolitan Borough Council,http://www.sandwell.gov.uk/info/200202/performance_and_spending/1079/payments_over_500,01-Sep-2022,Housing & Communities,BEECHWOOD TREES & LANDSCAPE LTD,Neighbourhoods,1305.00,Externally Purchased Professional Services ,2223P06_CR00329,93287
Sandwell Metropolitan Borough Council,http://www.sandwell.gov.uk/info/200202/performance_and_spending/1079/payments_over_500,01-Sep-2022,Housing & Communities,BEECHWOOD TREES & LANDSCAPE LTD,Neighbourhoods,1920.00,Externally Purchased Professional Services ,2223P06_CR00330,93287
Sandwell Metropolitan Borough Council,http://www.sandwell.gov.uk/info/200202/performance_and_spending/1079/payments_over_500,06-Sep-2022,Housing & Communities,BEECHWOOD TREES & LANDSCAPE LTD,Neighbourhoods,3640.00,Externally Purchased Professional Services ,2223P06_CR00331,93287
Sandwell Metropolitan Borough Council,http://www.sandwell.gov.uk/info/200202/performance_and_spending/1079/payments_over_500,01-Sep-2022,Housing & Communities,BEECHWOOD TREES & LANDSCAPE LTD,Neighbourhoods,6286.00,Externally Purchased Professional Services ,2223P06_CR00332,93287
Sandwell Metropolitan Borough Council,http://www.sandwell.gov.uk/info/200202/performance_and_spending/1079/payments_over_500,01-Sep-2022,Housing & Communities,BESTWAY WHOLESALE LTD,Neighbourhoods,868.67,Catering Provisions,2223P06_CR00333,161815
Sandwell Metropolitan Borough Council,http://www.sandwell.gov.uk/info/200202/performance_and_spending/1079/payments_over_500,01-Sep-2022,Housing & Communities,CBS MIDLANDS LTD,Neighbourhoods,1514.15,Equipment & Furniture ,2223P06_CR00334,01020138
Sandwell Metropolitan Borough Council,http://www.sandwell.gov.uk/info/200202/performance_and_spending/1079/payments_over_500,12-Sep-2022,Housing & Communities,CERTAS ENERGY LIMITED,Neighbourhoods,1715.00,Oil,2223P06_CR00335,80421
Sandwell Metropolitan Borough Council,http://www.sandwell.gov.uk/info/200202/performance_and_spending/1079/payments_over_500,01-Sep-2022,Housing & Communities,CERTAS ENERGY LIMITED,Neighbourhoods,2623.42,Oil,2223P06_CR00336,80421
Sandwell Metropolitan Borough Council,http://www.sandwell.gov.uk/info/200202/performance_and_spending/1079/payments_over_500,13-Sep-2022,Housing & Communities,CERTAS ENERGY LIMITED,Neighbourhoods,9652.50,Oil,2223P06_CR00337,80421
Sandwell Metropolitan Borough Council,http://www.sandwell.gov.uk/info/200202/performance_and_spending/1079/payments_over_500,28-Sep-2022,Housing & Communities,CHAMPIONS UK PLC,Neighbourhoods,800.00,Civic Events,2223P06_CR00338,164294
Sandwell Metropolitan Borough Council,http://www.sandwell.gov.uk/info/200202/performance_and_spending/1079/payments_over_500,28-Sep-2022,Housing & Communities,CHAMPIONS UK PLC,Neighbourhoods,900.00,Civic Events,2223P06_CR00339,164294
Sandwell Metropolitan Borough Council,http://www.sandwell.gov.uk/info/200202/performance_and_spending/1079/payments_over_500,01-Sep-2022,Housing & Communities,CHARTER OFFICE EQUIPMENT LTD,Neighbourhoods,525.00,Equipment & Furniture ,2223P06_CR00340,2266
Sandwell Metropolitan Borough Council,http://www.sandwell.gov.uk/info/200202/performance_and_spending/1079/payments_over_500,01-Sep-2022,Housing & Communities,CHUBB FIRE & SECURITY LIMITED t/a CHUBB ELECTRONIC SECURITY,Neighbourhoods,546.55,Security,2223P06_CR00341,81343
Sandwell Metropolitan Borough Council,http://www.sandwell.gov.uk/info/200202/performance_and_spending/1079/payments_over_500,01-Sep-2022,Housing & Communities,CITRON HYGIENE UK LTD,Neighbourhoods,554.88,Materials & Consumables,2223P06_CR00342,140849
Sandwell Metropolitan Borough Council,http://www.sandwell.gov.uk/info/200202/performance_and_spending/1079/payments_over_500,01-Sep-2022,Housing & Communities,CITRON HYGIENE UK LTD,Neighbourhoods,1263.12,Materials & Consumables,2223P06_CR00343,140849
Sandwell Metropolitan Borough Council,http://www.sandwell.gov.uk/info/200202/performance_and_spending/1079/payments_over_500,01-Sep-2022,Housing & Communities,CKP LTD T/A HAGLEY HOTEL,Neighbourhoods,950.00,Rents,2223P06_CR00344,143677
Sandwell Metropolitan Borough Council,http://www.sandwell.gov.uk/info/200202/performance_and_spending/1079/payments_over_500,01-Sep-2022,Housing & Communities,CKP LTD T/A HAGLEY HOTEL,Neighbourhoods,1395.00,Rents,2223P06_CR00345,143677
Sandwell Metropolitan Borough Council,http://www.sandwell.gov.uk/info/200202/performance_and_spending/1079/payments_over_500,01-Sep-2022,Housing & Communities,CKP LTD T/A HAGLEY HOTEL,Neighbourhoods,1600.00,Rents,2223P06_CR00346,143677
Sandwell Metropolitan Borough Council,http://www.sandwell.gov.uk/info/200202/performance_and_spending/1079/payments_over_500,01-Sep-2022,Housing & Communities,CKP LTD T/A HAGLEY HOTEL,Neighbourhoods,2430.00,Rents,2223P06_CR00347,143677
Sandwell Metropolitan Borough Council,http://www.sandwell.gov.uk/info/200202/performance_and_spending/1079/payments_over_500,01-Sep-2022,Housing & Communities,CKP LTD T/A HAGLEY HOTEL,Neighbourhoods,6440.00,Rents,2223P06_CR00348,143677
Sandwell Metropolitan Borough Council,http://www.sandwell.gov.uk/info/200202/performance_and_spending/1079/payments_over_500,01-Sep-2022,Housing & Communities,CKP LTD T/A HAGLEY HOTEL,Neighbourhoods,7525.00,Rents,2223P06_CR00349,143677
Sandwell Metropolitan Borough Council,http://www.sandwell.gov.uk/info/200202/performance_and_spending/1079/payments_over_500,01-Sep-2022,Housing & Communities,CKP LTD T/A HAGLEY HOTEL,Neighbourhoods,9850.00,Rents,2223P06_CR00350,143677
Sandwell Metropolitan Borough Council,http://www.sandwell.gov.uk/info/200202/performance_and_spending/1079/payments_over_500,06-Sep-2022,Housing & Communities,CONTRACT LETTINGS LTD,Neighbourhoods,559.86,Rents,2223P06_CR00351,76625
Sandwell Metropolitan Borough Council,http://www.sandwell.gov.uk/info/200202/performance_and_spending/1079/payments_over_500,06-Sep-2022,Housing & Communities,CONTRACT LETTINGS LTD,Neighbourhoods,559.86,Rents,2223P06_CR00352,76625
Sandwell Metropolitan Borough Council,http://www.sandwell.gov.uk/info/200202/performance_and_spending/1079/payments_over_500,06-Sep-2022,Housing & Communities,CONTRACT LETTINGS LTD,Neighbourhoods,701.22,Rents,2223P06_CR00353,76625
Sandwell Metropolitan Borough Council,http://www.sandwell.gov.uk/info/200202/performance_and_spending/1079/payments_over_500,06-Sep-2022,Housing & Communities,CONTRACT LETTINGS LTD,Neighbourhoods,701.22,Rents,2223P06_CR00354,76625
Sandwell Metropolitan Borough Council,http://www.sandwell.gov.uk/info/200202/performance_and_spending/1079/payments_over_500,06-Sep-2022,Housing & Communities,CONTRACT LETTINGS LTD,Neighbourhoods,763.22,Rents,2223P06_CR00355,76625
Sandwell Metropolitan Borough Council,http://www.sandwell.gov.uk/info/200202/performance_and_spending/1079/payments_over_500,06-Sep-2022,Housing & Communities,CONTRACT LETTINGS LTD,Neighbourhoods,763.22,Rents,2223P06_CR00356,76625
Sandwell Metropolitan Borough Council,http://www.sandwell.gov.uk/info/200202/performance_and_spending/1079/payments_over_500,01-Sep-2022,Housing & Communities,COOKE RUDLING LIMITED,Assistant Chief Executive (Excl SIU),2100.00,Externally Purchased Professional Services ,2223P06_CR00357,01577073
Sandwell Metropolitan Borough Council,http://www.sandwell.gov.uk/info/200202/performance_and_spending/1079/payments_over_500,01-Sep-2022,Housing & Communities,CREATIVE ACTIVE LIVES CIC,Neighbourhoods,700.00,Civic Events,2223P06_CR00358,138641
Sandwell Metropolitan Borough Council,http://www.sandwell.gov.uk/info/200202/performance_and_spending/1079/payments_over_500,01-Sep-2022,Housing & Communities,DLM DISTRIBUTION LIMITED,Neighbourhoods,1480.27,"Printing, Stationery & General Office Expenses",2223P06_CR00359,77838
Sandwell Metropolitan Borough Council,http://www.sandwell.gov.uk/info/200202/performance_and_spending/1079/payments_over_500,01-Sep-2022,Housing & Communities,DORMY HOTEL,Neighbourhoods,1166.67,Rents,2223P06_CR00360,01737052
Sandwell Metropolitan Borough Council,http://www.sandwell.gov.uk/info/200202/performance_and_spending/1079/payments_over_500,01-Sep-2022,Housing & Communities,DORMY HOTEL,Neighbourhoods,2041.67,Rents,2223P06_CR00361,01737052
Sandwell Metropolitan Borough Council,http://www.sandwell.gov.uk/info/200202/performance_and_spending/1079/payments_over_500,01-Sep-2022,Housing & Communities,EGBERT H TAYLOR & CO LTD,Neighbourhoods,32200.00,Waste Disposal Charges,2223P06_CR00362,01704572
Sandwell Metropolitan Borough Council,http://www.sandwell.gov.uk/info/200202/performance_and_spending/1079/payments_over_500,01-Sep-2022,Housing & Communities,EUROPEAN'S WELFARE ASSOCIATION CIC,Housing & Communities,78000.00,Grant Payments,2223P06_CR00363,123703
Sandwell Metropolitan Borough Council,http://www.sandwell.gov.uk/info/200202/performance_and_spending/1079/payments_over_500,01-Sep-2022,Housing & Communities,EXHIBITION PLUS,Neighbourhoods,1500.00,Externally Purchased Professional Services ,2223P06_CR00364,117729
Sandwell Metropolitan Borough Council,http://www.sandwell.gov.uk/info/200202/performance_and_spending/1079/payments_over_500,01-Sep-2022,Housing & Communities,FRITH RESOURCE MANAGEMENT LTD,Neighbourhoods,7022.46,Waste Disposal Charges,2223P06_CR00365,163890
Sandwell Metropolitan Borough Council,http://www.sandwell.gov.uk/info/200202/performance_and_spending/1079/payments_over_500,01-Sep-2022,Housing & Communities,GRANICUS-FIRMSTEP LTD,Housing & Communities,169176.01,ICT ,2223P06_CR00366,122375
Sandwell Metropolitan Borough Council,http://www.sandwell.gov.uk/info/200202/performance_and_spending/1079/payments_over_500,01-Sep-2022,Housing & Communities,GREENSPAN PROJECTS LTD,Neighbourhoods,4990.00,Equipment & Furniture ,2223P06_CR00367,163349
Sandwell Metropolitan Borough Council,http://www.sandwell.gov.uk/info/200202/performance_and_spending/1079/payments_over_500,01-Sep-2022,Housing & Communities,GREENTECH LTD,Neighbourhoods,1383.22,Materials & Consumables,2223P06_CR00368,163053
Sandwell Metropolitan Borough Council,http://www.sandwell.gov.uk/info/200202/performance_and_spending/1079/payments_over_500,01-Sep-2022,Housing & Communities,GREENTECH LTD,Neighbourhoods,2044.17,Materials & Consumables,2223P06_CR00369,163053
Sandwell Metropolitan Borough Council,http://www.sandwell.gov.uk/info/200202/performance_and_spending/1079/payments_over_500,07-Sep-2022,Housing & Communities,GREENTECH LTD,Neighbourhoods,2224.00,Materials & Consumables,2223P06_CR00370,163053
Sandwell Metropolitan Borough Council,http://www.sandwell.gov.uk/info/200202/performance_and_spending/1079/payments_over_500,01-Sep-2022,Housing & Communities,GREENTECH LTD,Neighbourhoods,2640.05,Materials & Consumables,2223P06_CR00371,163053
Sandwell Metropolitan Borough Council,http://www.sandwell.gov.uk/info/200202/performance_and_spending/1079/payments_over_500,01-Sep-2022,Housing & Communities,GREENTECH LTD,Housing & Communities,5587.78,Materials & Consumables,2223P06_CR00372,163053
Sandwell Metropolitan Borough Council,http://www.sandwell.gov.uk/info/200202/performance_and_spending/1079/payments_over_500,01-Sep-2022,Housing & Communities,HAMSTEAD VILLAGE TENANTS & RESIDENTS ASSOCIATION,Neighbourhoods,600.00,Tenants Expenses,2223P06_CR00373,140897
Sandwell Metropolitan Borough Council,http://www.sandwell.gov.uk/info/200202/performance_and_spending/1079/payments_over_500,01-Sep-2022,Housing & Communities,HAYSTOUN CONSTRUCTION LTD,Neighbourhoods,8013.60,Equipment & Furniture ,2223P06_CR00374,11849
Sandwell Metropolitan Borough Council,http://www.sandwell.gov.uk/info/200202/performance_and_spending/1079/payments_over_500,01-Sep-2022,Housing & Communities,HAYSTOUN CONSTRUCTION LTD,Neighbourhoods,10005.88,Equipment & Furniture ,2223P06_CR00375,11849
Sandwell Metropolitan Borough Council,http://www.sandwell.gov.uk/info/200202/performance_and_spending/1079/payments_over_500,01-Sep-2022,Housing & Communities,HAYSTOUN CONSTRUCTION LTD,Neighbourhoods,10663.51,Operational Services ,2223P06_CR00376,11849
Sandwell Metropolitan Borough Council,http://www.sandwell.gov.uk/info/200202/performance_and_spending/1079/payments_over_500,01-Sep-2022,Housing & Communities,HAYSTOUN CONSTRUCTION LTD,Neighbourhoods,11617.76,Equipment & Furniture ,2223P06_CR00377,11849
Sandwell Metropolitan Borough Council,http://www.sandwell.gov.uk/info/200202/performance_and_spending/1079/payments_over_500,01-Sep-2022,Housing & Communities,HAYSTOUN CONSTRUCTION LTD,Neighbourhoods,15480.64,Equipment & Furniture ,2223P06_CR00378,11849
Sandwell Metropolitan Borough Council,http://www.sandwell.gov.uk/info/200202/performance_and_spending/1079/payments_over_500,01-Sep-2022,Housing & Communities,HELLO LAMP POST,Neighbourhoods,4191.75,ICT ,2223P06_CR00379,163066
Sandwell Metropolitan Borough Council,http://www.sandwell.gov.uk/info/200202/performance_and_spending/1079/payments_over_500,01-Sep-2022,Housing & Communities,"HIGHFIELD HOUSE HOTEL,",Neighbourhoods,780.00,Rents,2223P06_CR00380,162756
Sandwell Metropolitan Borough Council,http://www.sandwell.gov.uk/info/200202/performance_and_spending/1079/payments_over_500,01-Sep-2022,Housing & Communities,"HIGHFIELD HOUSE HOTEL,",Neighbourhoods,2240.00,Rents,2223P06_CR00381,162756
Sandwell Metropolitan Borough Council,http://www.sandwell.gov.uk/info/200202/performance_and_spending/1079/payments_over_500,01-Sep-2022,Housing & Communities,"HIGHFIELD HOUSE HOTEL,",Neighbourhoods,2835.00,Rents,2223P06_CR00382,162756
Sandwell Metropolitan Borough Council,http://www.sandwell.gov.uk/info/200202/performance_and_spending/1079/payments_over_500,01-Sep-2022,Housing & Communities,"HIGHFIELD HOUSE HOTEL,",Neighbourhoods,8690.00,Rents,2223P06_CR00383,162756
Sandwell Metropolitan Borough Council,http://www.sandwell.gov.uk/info/200202/performance_and_spending/1079/payments_over_500,01-Sep-2022,Housing & Communities,"HIGHFIELD HOUSE HOTEL,",Neighbourhoods,22320.00,Rents,2223P06_CR00384,162756
Sandwell Metropolitan Borough Council,http://www.sandwell.gov.uk/info/200202/performance_and_spending/1079/payments_over_500,01-Sep-2022,Housing & Communities,HOME FARM NURSERIES (PINVIN) LIMITED,Neighbourhoods,17146.85,Equipment & Furniture ,2223P06_CR00385,77003445
Sandwell Metropolitan Borough Council,http://www.sandwell.gov.uk/info/200202/performance_and_spending/1079/payments_over_500,01-Sep-2022,Housing & Communities,HSL COMPLIANCE LTD,Neighbourhoods,3385.45,Building Maintenance & Improvements,2223P06_CR00386,134746
Sandwell Metropolitan Borough Council,http://www.sandwell.gov.uk/info/200202/performance_and_spending/1079/payments_over_500,01-Sep-2022,Housing & Communities,INVICTA BUSINESS MACHINES LTD,Neighbourhoods,1115.40,Subscriptions,2223P06_CR00387,142027
Sandwell Metropolitan Borough Council,http://www.sandwell.gov.uk/info/200202/performance_and_spending/1079/payments_over_500,21-Sep-2022,Housing & Communities,KEYCRAFT,Neighbourhoods,768.58,Materials & Consumables,2223P06_CR00388,01064066
Sandwell Metropolitan Borough Council,http://www.sandwell.gov.uk/info/200202/performance_and_spending/1079/payments_over_500,01-Sep-2022,Housing & Communities,LAURA WOOLDRIDGE THE BERRY AND WANDA PROGRAMME,Neighbourhoods,520.00,Materials & Consumables,2223P06_CR00389,162013
Sandwell Metropolitan Borough Council,http://www.sandwell.gov.uk/info/200202/performance_and_spending/1079/payments_over_500,05-Sep-2022,Housing & Communities,MACINTOSH FOODSERVICE SOLUTIONS LTD,Neighbourhoods,517.27,Equipment & Furniture ,2223P06_CR00390,162369
Sandwell Metropolitan Borough Council,http://www.sandwell.gov.uk/info/200202/performance_and_spending/1079/payments_over_500,01-Sep-2022,Housing & Communities,MACINTOSH FOODSERVICE SOLUTIONS LTD,Neighbourhoods,810.00,Externally Purchased Professional Services ,2223P06_CR00391,162369
Sandwell Metropolitan Borough Council,http://www.sandwell.gov.uk/info/200202/performance_and_spending/1079/payments_over_500,12-Sep-2022,Housing & Communities,MACINTOSH FOODSERVICE SOLUTIONS LTD,Neighbourhoods,900.00,Externally Purchased Professional Services ,2223P06_CR00392,162369
Sandwell Metropolitan Borough Council,http://www.sandwell.gov.uk/info/200202/performance_and_spending/1079/payments_over_500,05-Sep-2022,Housing & Communities,MACINTOSH FOODSERVICE SOLUTIONS LTD,Neighbourhoods,997.45,Equipment & Furniture ,2223P06_CR00393,162369
Sandwell Metropolitan Borough Council,http://www.sandwell.gov.uk/info/200202/performance_and_spending/1079/payments_over_500,20-Sep-2022,Housing & Communities,MACINTOSH FOODSERVICE SOLUTIONS LTD,Neighbourhoods,2037.75,Advertising & Publicity,2223P06_CR00394,162369
Sandwell Metropolitan Borough Council,http://www.sandwell.gov.uk/info/200202/performance_and_spending/1079/payments_over_500,01-Sep-2022,Housing & Communities,MACINTOSH FOODSERVICE SOLUTIONS LTD,Neighbourhoods,6650.00,Externally Purchased Professional Services ,2223P06_CR00395,162369
Sandwell Metropolitan Borough Council,http://www.sandwell.gov.uk/info/200202/performance_and_spending/1079/payments_over_500,01-Sep-2022,Housing & Communities,MANOR ABBEY FOODS LTD,Neighbourhoods,529.77,Catering Provisions,2223P06_CR00396,63063
Sandwell Metropolitan Borough Council,http://www.sandwell.gov.uk/info/200202/performance_and_spending/1079/payments_over_500,01-Sep-2022,Housing & Communities,MANOR ABBEY FOODS LTD,Neighbourhoods,763.51,Catering Provisions,2223P06_CR00397,63063
Sandwell Metropolitan Borough Council,http://www.sandwell.gov.uk/info/200202/performance_and_spending/1079/payments_over_500,01-Sep-2022,Housing & Communities,MANOR ABBEY FOODS LTD,Neighbourhoods,1878.28,Catering Provisions,2223P06_CR00398,63063
Sandwell Metropolitan Borough Council,http://www.sandwell.gov.uk/info/200202/performance_and_spending/1079/payments_over_500,01-Sep-2022,Housing & Communities,MIDLAND CHILLED FOODS LIMITED,Neighbourhoods,1405.96,Catering Provisions,2223P06_CR00399,106924
Sandwell Metropolitan Borough Council,http://www.sandwell.gov.uk/info/200202/performance_and_spending/1079/payments_over_500,13-Sep-2022,Housing & Communities,MIDLAND FORESTRY LIMITED,Neighbourhoods,524.00,Externally Purchased Professional Services ,2223P06_CR00400,45812
Sandwell Metropolitan Borough Council,http://www.sandwell.gov.uk/info/200202/performance_and_spending/1079/payments_over_500,13-Sep-2022,Housing & Communities,MIDLAND FORESTRY LIMITED,Neighbourhoods,526.00,Externally Purchased Professional Services ,2223P06_CR00401,45812
Sandwell Metropolitan Borough Council,http://www.sandwell.gov.uk/info/200202/performance_and_spending/1079/payments_over_500,01-Sep-2022,Housing & Communities,MIDLAND FORESTRY LIMITED,Neighbourhoods,550.00,Externally Purchased Professional Services ,2223P06_CR00402,45812
Sandwell Metropolitan Borough Council,http://www.sandwell.gov.uk/info/200202/performance_and_spending/1079/payments_over_500,13-Sep-2022,Housing & Communities,MIDLAND FORESTRY LIMITED,Neighbourhoods,560.00,Externally Purchased Professional Services ,2223P06_CR00403,45812
Sandwell Metropolitan Borough Council,http://www.sandwell.gov.uk/info/200202/performance_and_spending/1079/payments_over_500,13-Sep-2022,Housing & Communities,MIDLAND FORESTRY LIMITED,Neighbourhoods,600.00,Externally Purchased Professional Services ,2223P06_CR00404,45812
Sandwell Metropolitan Borough Council,http://www.sandwell.gov.uk/info/200202/performance_and_spending/1079/payments_over_500,01-Sep-2022,Housing & Communities,MIDLAND FORESTRY LIMITED,Neighbourhoods,612.00,Externally Purchased Professional Services ,2223P06_CR00405,45812
Sandwell Metropolitan Borough Council,http://www.sandwell.gov.uk/info/200202/performance_and_spending/1079/payments_over_500,01-Sep-2022,Housing & Communities,MIDLAND FORESTRY LIMITED,Neighbourhoods,880.00,Externally Purchased Professional Services ,2223P06_CR00406,45812
Sandwell Metropolitan Borough Council,http://www.sandwell.gov.uk/info/200202/performance_and_spending/1079/payments_over_500,01-Sep-2022,Housing & Communities,MIDLAND FORESTRY LIMITED,Neighbourhoods,928.00,Externally Purchased Professional Services ,2223P06_CR00407,45812
Sandwell Metropolitan Borough Council,http://www.sandwell.gov.uk/info/200202/performance_and_spending/1079/payments_over_500,01-Sep-2022,Housing & Communities,MIDLAND FORESTRY LIMITED,Neighbourhoods,1130.00,Externally Purchased Professional Services ,2223P06_CR00408,45812
Sandwell Metropolitan Borough Council,http://www.sandwell.gov.uk/info/200202/performance_and_spending/1079/payments_over_500,06-Sep-2022,Housing & Communities,MIDLAND FORESTRY LIMITED,Neighbourhoods,1176.00,Externally Purchased Professional Services ,2223P06_CR00409,45812
Sandwell Metropolitan Borough Council,http://www.sandwell.gov.uk/info/200202/performance_and_spending/1079/payments_over_500,01-Sep-2022,Housing & Communities,MIDLAND FORESTRY LIMITED,Neighbourhoods,1508.00,Externally Purchased Professional Services ,2223P06_CR00410,45812
Sandwell Metropolitan Borough Council,http://www.sandwell.gov.uk/info/200202/performance_and_spending/1079/payments_over_500,06-Sep-2022,Housing & Communities,MIDLAND FORESTRY LIMITED,Neighbourhoods,1520.00,Externally Purchased Professional Services ,2223P06_CR00411,45812
Sandwell Metropolitan Borough Council,http://www.sandwell.gov.uk/info/200202/performance_and_spending/1079/payments_over_500,01-Sep-2022,Housing & Communities,MIDLAND FORESTRY LIMITED,Neighbourhoods,1880.00,Externally Purchased Professional Services ,2223P06_CR00412,45812
Sandwell Metropolitan Borough Council,http://www.sandwell.gov.uk/info/200202/performance_and_spending/1079/payments_over_500,01-Sep-2022,Housing & Communities,MIDLAND FORESTRY LIMITED,Neighbourhoods,2480.00,Externally Purchased Professional Services ,2223P06_CR00413,45812
Sandwell Metropolitan Borough Council,http://www.sandwell.gov.uk/info/200202/performance_and_spending/1079/payments_over_500,01-Sep-2022,Housing & Communities,MIDLAND FORESTRY LIMITED,Neighbourhoods,11180.00,Externally Purchased Professional Services ,2223P06_CR00414,45812
Sandwell Metropolitan Borough Council,http://www.sandwell.gov.uk/info/200202/performance_and_spending/1079/payments_over_500,13-Sep-2022,Housing & Communities,MIDLAND FORESTRY LIMITED,Neighbourhoods,26130.00,Externally Purchased Professional Services ,2223P06_CR00415,45812
Sandwell Metropolitan Borough Council,http://www.sandwell.gov.uk/info/200202/performance_and_spending/1079/payments_over_500,01-Sep-2022,Housing & Communities,MIDLANDS SUPERCREAM (BRIERLEY HILL) LTD,Neighbourhoods,538.25,Catering Provisions,2223P06_CR00416,137338
Sandwell Metropolitan Borough Council,http://www.sandwell.gov.uk/info/200202/performance_and_spending/1079/payments_over_500,01-Sep-2022,Housing & Communities,MIDLANDS SUPERCREAM (BRIERLEY HILL) LTD,Neighbourhoods,562.37,Catering Provisions,2223P06_CR00417,137338
Sandwell Metropolitan Borough Council,http://www.sandwell.gov.uk/info/200202/performance_and_spending/1079/payments_over_500,01-Sep-2022,Housing & Communities,MIDLANDS SUPERCREAM (BRIERLEY HILL) LTD,Neighbourhoods,609.79,Catering Provisions,2223P06_CR00418,137338
Sandwell Metropolitan Borough Council,http://www.sandwell.gov.uk/info/200202/performance_and_spending/1079/payments_over_500,01-Sep-2022,Housing & Communities,NMP LIVE LTD,Neighbourhoods,9000.00,Civic Events,2223P06_CR00419,75584
Sandwell Metropolitan Borough Council,http://www.sandwell.gov.uk/info/200202/performance_and_spending/1079/payments_over_500,09-Sep-2022,Housing & Communities,P CASEY LTD,Housing & Communities,77770.69,"CIP - New Construction,Conversion, Enhancement & Reno",2223P06_CR00420,149276
Sandwell Metropolitan Borough Council,http://www.sandwell.gov.uk/info/200202/performance_and_spending/1079/payments_over_500,01-Sep-2022,Housing & Communities,PENNON WATER SERVICES T/A SOURCE FOR BUSINESS,Neighbourhoods,506.28,Water Services,2223P06_CR00421,131726
Sandwell Metropolitan Borough Council,http://www.sandwell.gov.uk/info/200202/performance_and_spending/1079/payments_over_500,01-Sep-2022,Housing & Communities,PHIL JONES ASSOCIATES LIMITED,Neighbourhoods,2500.00,Consultancy,2223P06_CR00422,129916
Sandwell Metropolitan Borough Council,http://www.sandwell.gov.uk/info/200202/performance_and_spending/1079/payments_over_500,01-Sep-2022,Housing & Communities,PINSENT MASON LLP,Neighbourhoods,3628.50,Externally Purchased Professional Services ,2223P06_CR00423,47648
Sandwell Metropolitan Borough Council,http://www.sandwell.gov.uk/info/200202/performance_and_spending/1079/payments_over_500,01-Sep-2022,Housing & Communities,PINSENT MASON LLP,Neighbourhoods,7434.00,Externally Purchased Professional Services ,2223P06_CR00424,47648
Sandwell Metropolitan Borough Council,http://www.sandwell.gov.uk/info/200202/performance_and_spending/1079/payments_over_500,01-Sep-2022,Housing & Communities,PINSENT MASON LLP,Neighbourhoods,13682.10,Externally Purchased Professional Services ,2223P06_CR00425,47648
Sandwell Metropolitan Borough Council,http://www.sandwell.gov.uk/info/200202/performance_and_spending/1079/payments_over_500,01-Sep-2022,Housing & Communities,PITCHMARK LTD,Neighbourhoods,3560.00,Materials & Consumables,2223P06_CR00426,120374
Sandwell Metropolitan Borough Council,http://www.sandwell.gov.uk/info/200202/performance_and_spending/1079/payments_over_500,06-Sep-2022,Housing & Communities,PLACES FOR PEOPLE LEISURE MANAGEMENT LTD,Neighbourhoods,22535.50,SH Payments,2223P06_CR00427,118956
Sandwell Metropolitan Borough Council,http://www.sandwell.gov.uk/info/200202/performance_and_spending/1079/payments_over_500,21-Sep-2022,Housing & Communities,PPL PRS LTD,Neighbourhoods,767.92,Civic Events,2223P06_CR00428,134302
Sandwell Metropolitan Borough Council,http://www.sandwell.gov.uk/info/200202/performance_and_spending/1079/payments_over_500,01-Sep-2022,Housing & Communities,PRINT DIRECT LIMITED,Neighbourhoods,560.00,"Printing, Stationery & General Office Expenses",2223P06_CR00429,118575
Sandwell Metropolitan Borough Council,http://www.sandwell.gov.uk/info/200202/performance_and_spending/1079/payments_over_500,01-Sep-2022,Housing & Communities,PROFILE SECURITY SERVICES LTD,Neighbourhoods,642.42,Security,2223P06_CR00430,131253
Sandwell Metropolitan Borough Council,http://www.sandwell.gov.uk/info/200202/performance_and_spending/1079/payments_over_500,01-Sep-2022,Housing & Communities,PROFILE SECURITY SERVICES LTD,Neighbourhoods,2849.22,Security,2223P06_CR00431,131253
Sandwell Metropolitan Borough Council,http://www.sandwell.gov.uk/info/200202/performance_and_spending/1079/payments_over_500,01-Sep-2022,Housing & Communities,PROFILE SECURITY SERVICES LTD,Neighbourhoods,10914.60,Security,2223P06_CR00432,131253
Sandwell Metropolitan Borough Council,http://www.sandwell.gov.uk/info/200202/performance_and_spending/1079/payments_over_500,01-Sep-2022,Housing & Communities,PROMARCO PROMOTIONS LTD,Neighbourhoods,1245.00,Civic Events,2223P06_CR00433,01577242
Sandwell Metropolitan Borough Council,http://www.sandwell.gov.uk/info/200202/performance_and_spending/1079/payments_over_500,01-Sep-2022,Housing & Communities,Q TECHNICAL SERVICES UK LTD,Neighbourhoods,780.00,Building Maintenance & Improvements,2223P06_CR00434,135645
Sandwell Metropolitan Borough Council,http://www.sandwell.gov.uk/info/200202/performance_and_spending/1079/payments_over_500,20-Sep-2022,Housing & Communities,R & A SOFTWARE (SYSTEMS) LIMITED,Neighbourhoods,12420.00,ICT ,2223P06_CR00435,99711
Sandwell Metropolitan Borough Council,http://www.sandwell.gov.uk/info/200202/performance_and_spending/1079/payments_over_500,01-Sep-2022,Housing & Communities,RAKHI SOOD SCHOOL OF DANCE AND MUSIC,Neighbourhoods,800.00,Contract Catering,2223P06_CR00436,164220
Sandwell Metropolitan Borough Council,http://www.sandwell.gov.uk/info/200202/performance_and_spending/1079/payments_over_500,01-Sep-2022,Housing & Communities,RAKHI SOOD SCHOOL OF DANCE AND MUSIC,Neighbourhoods,1200.00,Materials & Consumables,2223P06_CR00437,164220
Sandwell Metropolitan Borough Council,http://www.sandwell.gov.uk/info/200202/performance_and_spending/1079/payments_over_500,01-Sep-2022,Housing & Communities,RENAISSANCE CREATIVE DESIGN & PRINT LTD,Neighbourhoods,700.00,"Printing, Stationery & General Office Expenses",2223P06_CR00438,97376
Sandwell Metropolitan Borough Council,http://www.sandwell.gov.uk/info/200202/performance_and_spending/1079/payments_over_500,01-Sep-2022,Housing & Communities,RIDDELL TPS LIMITED,Neighbourhoods,18528.08,Rents,2223P06_CR00439,132427
Sandwell Metropolitan Borough Council,http://www.sandwell.gov.uk/info/200202/performance_and_spending/1079/payments_over_500,22-Sep-2022,Housing & Communities,RTC MEDICAL SOLUTIONS LTD,Neighbourhoods,7220.00,Equipment & Furniture ,2223P06_CR00440,163261
Sandwell Metropolitan Borough Council,http://www.sandwell.gov.uk/info/200202/performance_and_spending/1079/payments_over_500,09-Sep-2022,Housing & Communities,RTC MEDICAL SOLUTIONS LTD,Neighbourhoods,8360.00,Equipment & Furniture ,2223P06_CR00441,163261
Sandwell Metropolitan Borough Council,http://www.sandwell.gov.uk/info/200202/performance_and_spending/1079/payments_over_500,01-Sep-2022,Housing & Communities,SANDWELL FUNDCO 3 LTD,Neighbourhoods,116009.24,SH Payments,2223P06_CR00442,113986
Sandwell Metropolitan Borough Council,http://www.sandwell.gov.uk/info/200202/performance_and_spending/1079/payments_over_500,12-Sep-2022,Housing & Communities,SANDWELL LEISURE TRUST,Neighbourhoods,234327.66,Other Establishments,2223P06_CR00443,120965
Sandwell Metropolitan Borough Council,http://www.sandwell.gov.uk/info/200202/performance_and_spending/1079/payments_over_500,14-Sep-2022,Housing & Communities,SERCO LIMITED,Neighbourhoods,8392.17,Waste Disposal Charges,2223P06_CR00444,53771
Sandwell Metropolitan Borough Council,http://www.sandwell.gov.uk/info/200202/performance_and_spending/1079/payments_over_500,12-Sep-2022,Housing & Communities,SERCO LIMITED,Neighbourhoods,12954.32,Waste Disposal Charges,2223P06_CR00445,53771
Sandwell Metropolitan Borough Council,http://www.sandwell.gov.uk/info/200202/performance_and_spending/1079/payments_over_500,01-Sep-2022,Housing & Communities,SERCO LIMITED,Neighbourhoods,26170.95,Waste Disposal Charges,2223P06_CR00446,53771
Sandwell Metropolitan Borough Council,http://www.sandwell.gov.uk/info/200202/performance_and_spending/1079/payments_over_500,14-Sep-2022,Housing & Communities,SERCO LIMITED,Neighbourhoods,682061.83,Waste Disposal Charges,2223P06_CR00447,53771
Sandwell Metropolitan Borough Council,http://www.sandwell.gov.uk/info/200202/performance_and_spending/1079/payments_over_500,01-Sep-2022,Housing & Communities,SERCO LIMITED,Neighbourhoods,725841.63,Waste Disposal Charges,2223P06_CR00448,53771
Sandwell Metropolitan Borough Council,http://www.sandwell.gov.uk/info/200202/performance_and_spending/1079/payments_over_500,01-Sep-2022,Housing & Communities,SERCO LIMITED,Neighbourhoods,1662703.27,Waste Disposal Charges,2223P06_CR00449,53771
Sandwell Metropolitan Borough Council,http://www.sandwell.gov.uk/info/200202/performance_and_spending/1079/payments_over_500,01-Sep-2022,Housing & Communities,SERCO LIMITED,Neighbourhoods,1662703.27,Waste Disposal Charges,2223P06_CR00450,53771
Sandwell Metropolitan Borough Council,http://www.sandwell.gov.uk/info/200202/performance_and_spending/1079/payments_over_500,13-Sep-2022,Housing & Communities,SHERRIFFS FOODS LIMITED T/A FOSTERS,Neighbourhoods,1663.56,Materials & Consumables,2223P06_CR00451,139776
Sandwell Metropolitan Borough Council,http://www.sandwell.gov.uk/info/200202/performance_and_spending/1079/payments_over_500,07-Sep-2022,Housing & Communities,SIGNS DISPLAYS MARKETING LTD,Neighbourhoods,869.96,Externally Purchased Professional Services ,2223P06_CR00452,127235
Sandwell Metropolitan Borough Council,http://www.sandwell.gov.uk/info/200202/performance_and_spending/1079/payments_over_500,01-Sep-2022,Housing & Communities,SPEEDY ASSET SERVICES LIMITED,Neighbourhoods,942.86,Equipment & Furniture ,2223P06_CR00453,01588431
Sandwell Metropolitan Borough Council,http://www.sandwell.gov.uk/info/200202/performance_and_spending/1079/payments_over_500,01-Sep-2022,Housing & Communities,SPORTING SPIRIT CIC,Neighbourhoods,700.00,Civic Events,2223P06_CR00454,130989
Sandwell Metropolitan Borough Council,http://www.sandwell.gov.uk/info/200202/performance_and_spending/1079/payments_over_500,01-Sep-2022,Housing & Communities,STAFFORDSHIRE COUNTY COUNCIL,Neighbourhoods,418563.67,Waste Disposal Charges,2223P06_CR00455,01124861
Sandwell Metropolitan Borough Council,http://www.sandwell.gov.uk/info/200202/performance_and_spending/1079/payments_over_500,07-Sep-2022,Housing & Communities,STOURBRIDGE PAVING COMPANY LIMITED,Housing & Communities,10175.79,CIP - Infrastructure,2223P06_CR00456,77003641
Sandwell Metropolitan Borough Council,http://www.sandwell.gov.uk/info/200202/performance_and_spending/1079/payments_over_500,12-Sep-2022,Housing & Communities,SWEETPAN PROMOTIONS,Neighbourhoods,650.00,Civic Events,2223P06_CR00457,163855
Sandwell Metropolitan Borough Council,http://www.sandwell.gov.uk/info/200202/performance_and_spending/1079/payments_over_500,01-Sep-2022,Housing & Communities,T2A CARE LTD,Neighbourhoods,1305.00,Tenants Expenses,2223P06_CR00458,131462
Sandwell Metropolitan Borough Council,http://www.sandwell.gov.uk/info/200202/performance_and_spending/1079/payments_over_500,01-Sep-2022,Housing & Communities,T2A CARE LTD,Neighbourhoods,1595.00,Tenants Expenses,2223P06_CR00459,131462
Sandwell Metropolitan Borough Council,http://www.sandwell.gov.uk/info/200202/performance_and_spending/1079/payments_over_500,01-Sep-2022,Housing & Communities,T2A CARE LTD,Neighbourhoods,2175.00,Tenants Expenses,2223P06_CR00460,131462
Sandwell Metropolitan Borough Council,http://www.sandwell.gov.uk/info/200202/performance_and_spending/1079/payments_over_500,01-Sep-2022,Housing & Communities,T2A CARE LTD,Neighbourhoods,2247.50,Tenants Expenses,2223P06_CR00461,131462
Sandwell Metropolitan Borough Council,http://www.sandwell.gov.uk/info/200202/performance_and_spending/1079/payments_over_500,01-Sep-2022,Housing & Communities,TACHODISC DISTRIBUTION UK LIMITED T/A TRAINING TEAM,Neighbourhoods,915.00,Externally Purchased Professional Services ,2223P06_CR00462,162303
Sandwell Metropolitan Borough Council,http://www.sandwell.gov.uk/info/200202/performance_and_spending/1079/payments_over_500,01-Sep-2022,Housing & Communities,TELETRAC NAVMAN (UK) LTD,Neighbourhoods,658.00,External Contract Hire,2223P06_CR00463,129341
Sandwell Metropolitan Borough Council,http://www.sandwell.gov.uk/info/200202/performance_and_spending/1079/payments_over_500,01-Sep-2022,Housing & Communities,THE PLAY INSPECTION COMPANY LIMITED,Neighbourhoods,750.00,Equipment & Furniture ,2223P06_CR00464,73544
Sandwell Metropolitan Borough Council,http://www.sandwell.gov.uk/info/200202/performance_and_spending/1079/payments_over_500,01-Sep-2022,Housing & Communities,TRH WALSALL LTD,Neighbourhoods,933.52,Rents,2223P06_CR00465,85648
Sandwell Metropolitan Borough Council,http://www.sandwell.gov.uk/info/200202/performance_and_spending/1079/payments_over_500,01-Sep-2022,Housing & Communities,TRH WALSALL LTD,Neighbourhoods,933.52,Rents,2223P06_CR00466,85648
Sandwell Metropolitan Borough Council,http://www.sandwell.gov.uk/info/200202/performance_and_spending/1079/payments_over_500,01-Sep-2022,Housing & Communities,TRH WALSALL LTD,Neighbourhoods,1283.52,Rents,2223P06_CR00467,85648
Sandwell Metropolitan Borough Council,http://www.sandwell.gov.uk/info/200202/performance_and_spending/1079/payments_over_500,01-Sep-2022,Housing & Communities,TUDOR ENVIRONMENTAL,Neighbourhoods,546.00,Materials & Consumables,2223P06_CR00468,01528713
Sandwell Metropolitan Borough Council,http://www.sandwell.gov.uk/info/200202/performance_and_spending/1079/payments_over_500,01-Sep-2022,Housing & Communities,TUDOR ENVIRONMENTAL,Neighbourhoods,583.14,Materials & Consumables,2223P06_CR00469,01528713
Sandwell Metropolitan Borough Council,http://www.sandwell.gov.uk/info/200202/performance_and_spending/1079/payments_over_500,01-Sep-2022,Housing & Communities,TUDOR ENVIRONMENTAL,Neighbourhoods,1421.80,Materials & Consumables,2223P06_CR00470,01528713
Sandwell Metropolitan Borough Council,http://www.sandwell.gov.uk/info/200202/performance_and_spending/1079/payments_over_500,01-Sep-2022,Housing & Communities,TY UK LIMITED,Neighbourhoods,1200.90,Materials & Consumables,2223P06_CR00471,107284
Sandwell Metropolitan Borough Council,http://www.sandwell.gov.uk/info/200202/performance_and_spending/1079/payments_over_500,01-Sep-2022,Housing & Communities,TY UK LIMITED,Neighbourhoods,1539.00,Materials & Consumables,2223P06_CR00472,107284
Sandwell Metropolitan Borough Council,http://www.sandwell.gov.uk/info/200202/performance_and_spending/1079/payments_over_500,09-Sep-2022,Housing & Communities,VENDAID LTD,Neighbourhoods,510.00,Catering Provisions,2223P06_CR00473,01045695
Sandwell Metropolitan Borough Council,http://www.sandwell.gov.uk/info/200202/performance_and_spending/1079/payments_over_500,01-Sep-2022,Housing & Communities,VENDAID LTD,Neighbourhoods,960.63,Catering Provisions,2223P06_CR00474,01045695
Sandwell Metropolitan Borough Council,http://www.sandwell.gov.uk/info/200202/performance_and_spending/1079/payments_over_500,01-Sep-2022,Housing & Communities,VICARAGE LODGE BIRMINGHAM,Neighbourhoods,1050.00,Rents,2223P06_CR00475,111819
Sandwell Metropolitan Borough Council,http://www.sandwell.gov.uk/info/200202/performance_and_spending/1079/payments_over_500,01-Sep-2022,Housing & Communities,VICARAGE LODGE BIRMINGHAM,Neighbourhoods,1050.00,Rents,2223P06_CR00476,111819
Sandwell Metropolitan Borough Council,http://www.sandwell.gov.uk/info/200202/performance_and_spending/1079/payments_over_500,06-Sep-2022,Housing & Communities,W V HOWE LTD,Neighbourhoods,1295.36,Catering Equipment,2223P06_CR00477,01052548
Sandwell Metropolitan Borough Council,http://www.sandwell.gov.uk/info/200202/performance_and_spending/1079/payments_over_500,01-Sep-2022,Housing & Communities,WATER PLUS SELECT LIMITED,Neighbourhoods,611.96,Water Services,2223P06_CR00478,129644
Sandwell Metropolitan Borough Council,http://www.sandwell.gov.uk/info/200202/performance_and_spending/1079/payments_over_500,01-Sep-2022,Housing & Communities,WATERMAN ASPEN LTD,Housing & Communities,1050.00,CIP - Infrastructure,2223P06_CR00479,84354
Sandwell Metropolitan Borough Council,http://www.sandwell.gov.uk/info/200202/performance_and_spending/1079/payments_over_500,01-Sep-2022,Housing & Communities,WATES CONSTRUCTION LTD     ,Housing & Communities,357619.69,"CIP - New Construction,Conversion, Enhancement & Reno",2223P06_CR00480,77000882
Sandwell Metropolitan Borough Council,http://www.sandwell.gov.uk/info/200202/performance_and_spending/1079/payments_over_500,12-Sep-2022,Housing & Communities,WATES CONSTRUCTION LTD     ,Housing & Communities,376387.99,"CIP - New Construction,Conversion, Enhancement & Reno",2223P06_CR00481,77000882
Sandwell Metropolitan Borough Council,http://www.sandwell.gov.uk/info/200202/performance_and_spending/1079/payments_over_500,01-Sep-2022,Housing & Communities,WEST MIDLANDS MARQUEES,Neighbourhoods,1050.00,Equipment & Furniture ,2223P06_CR00482,134805
Sandwell Metropolitan Borough Council,http://www.sandwell.gov.uk/info/200202/performance_and_spending/1079/payments_over_500,06-Sep-2022,Housing & Communities,WYNNSTAY (AGRICULTURAL SUPPLIES) LIMITED,Neighbourhoods,1489.06,Externally Purchased Professional Services ,2223P06_CR00483,121165
Sandwell Metropolitan Borough Council,http://www.sandwell.gov.uk/info/200202/performance_and_spending/1079/payments_over_500,06-Sep-2022,Housing & Communities,WYNNSTAY (AGRICULTURAL SUPPLIES) LIMITED,Neighbourhoods,1907.57,Externally Purchased Professional Services ,2223P06_CR00484,121165
Sandwell Metropolitan Borough Council,http://www.sandwell.gov.uk/info/200202/performance_and_spending/1079/payments_over_500,06-Sep-2022,Housing & Communities,WYNNSTAY (AGRICULTURAL SUPPLIES) LIMITED,Neighbourhoods,3923.46,Materials & Consumables,2223P06_CR00485,121165
Sandwell Metropolitan Borough Council,http://www.sandwell.gov.uk/info/200202/performance_and_spending/1079/payments_over_500,01-Sep-2022,Housing & Communities,THUNDER CHUNKY,Neighbourhoods,500.00,Civic Events,2223P06_CR00486,163752
Sandwell Metropolitan Borough Council,http://www.sandwell.gov.uk/info/200202/performance_and_spending/1079/payments_over_500,08-Sep-2022,Housing & Communities,REDACTED PERSONAL DATA,Neighbourhoods,500.00,Grant Payments,2223P06_CR00487,REDACTED PERSONAL DATA
Sandwell Metropolitan Borough Council,http://www.sandwell.gov.uk/info/200202/performance_and_spending/1079/payments_over_500,22-Sep-2022,Housing & Communities,REDACTED PERSONAL DATA,Housing & Communities,700.00,Rents,2223P06_CR00488,REDACTED PERSONAL DATA
Sandwell Metropolitan Borough Council,http://www.sandwell.gov.uk/info/200202/performance_and_spending/1079/payments_over_500,16-Sep-2022,Housing & Communities,LORNA DOUGLAS,Neighbourhoods,1939.32,Building Maintenance & Improvements,2223P06_CR00489,124809
Sandwell Metropolitan Borough Council,http://www.sandwell.gov.uk/info/200202/performance_and_spending/1079/payments_over_500,01-Sep-2022,Housing & Communities,ANTHONY MCFARLANE,Neighbourhoods,2100.00,Civic Events,2223P06_CR00490,52024
Sandwell Metropolitan Borough Council,http://www.sandwell.gov.uk/info/200202/performance_and_spending/1079/payments_over_500,01-Sep-2022,Housing & Communities,RANBIR KAUR.,Neighbourhoods,1100.00,Civic Events,2223P06_CR00491,163114
Sandwell Metropolitan Borough Council,http://www.sandwell.gov.uk/info/200202/performance_and_spending/1079/payments_over_500,12-Sep-2022,Housing & Communities,DALBIR SINGH RATTAN,Neighbourhoods,1200.00,Civic Events,2223P06_CR00492,108304
Sandwell Metropolitan Borough Council,http://www.sandwell.gov.uk/info/200202/performance_and_spending/1079/payments_over_500,27-Sep-2022,Housing & Communities,A E HUDSON,Neighbourhoods,500.00,Rents,2223P06_CR00493,107342
Sandwell Metropolitan Borough Council,http://www.sandwell.gov.uk/info/200202/performance_and_spending/1079/payments_over_500,27-Sep-2022,Housing & Communities,A PRASHER,Neighbourhoods,500.00,Rents,2223P06_CR00494,112229
Sandwell Metropolitan Borough Council,http://www.sandwell.gov.uk/info/200202/performance_and_spending/1079/payments_over_500,27-Sep-2022,Housing & Communities,BALIJIT KAUR,Neighbourhoods,500.00,Rents,2223P06_CR00495,101860
Sandwell Metropolitan Borough Council,http://www.sandwell.gov.uk/info/200202/performance_and_spending/1079/payments_over_500,27-Sep-2022,Housing & Communities,BALWANT SINGH,Neighbourhoods,500.00,Rents,2223P06_CR00496,84433
Sandwell Metropolitan Borough Council,http://www.sandwell.gov.uk/info/200202/performance_and_spending/1079/payments_over_500,27-Sep-2022,Housing & Communities,CHRISTINE ANN CADDEN,Neighbourhoods,500.00,Rents,2223P06_CR00497,112728
Sandwell Metropolitan Borough Council,http://www.sandwell.gov.uk/info/200202/performance_and_spending/1079/payments_over_500,27-Sep-2022,Housing & Communities,ELEANOR MCGEE,Neighbourhoods,550.00,Rents,2223P06_CR00498,109162
Sandwell Metropolitan Borough Council,http://www.sandwell.gov.uk/info/200202/performance_and_spending/1079/payments_over_500,27-Sep-2022,Housing & Communities,J S GARCHA,Neighbourhoods,500.00,Rents,2223P06_CR00499,106491
Sandwell Metropolitan Borough Council,http://www.sandwell.gov.uk/info/200202/performance_and_spending/1079/payments_over_500,27-Sep-2022,Housing & Communities,LORNA DOUGLAS,Neighbourhoods,550.00,Rents,2223P06_CR00500,124809
Sandwell Metropolitan Borough Council,http://www.sandwell.gov.uk/info/200202/performance_and_spending/1079/payments_over_500,27-Sep-2022,Housing & Communities,MOHANAD ABBAS,Neighbourhoods,550.00,Rents,2223P06_CR00501,108876
Sandwell Metropolitan Borough Council,http://www.sandwell.gov.uk/info/200202/performance_and_spending/1079/payments_over_500,27-Sep-2022,Housing & Communities,Narinder singh.,Neighbourhoods,500.00,Rents,2223P06_CR00502,114091
Sandwell Metropolitan Borough Council,http://www.sandwell.gov.uk/info/200202/performance_and_spending/1079/payments_over_500,27-Sep-2022,Housing & Communities,SAKANDAR SINGH,Neighbourhoods,1000.00,Rents,2223P06_CR00503,117913
Sandwell Metropolitan Borough Council,http://www.sandwell.gov.uk/info/200202/performance_and_spending/1079/payments_over_500,23-Sep-2022,Housing & Communities,BRUSHSTROKES,Neighbourhoods,24000.00,Grant Payments,2223P06_CR00504,21029374
Sandwell Metropolitan Borough Council,http://www.sandwell.gov.uk/info/200202/performance_and_spending/1079/payments_over_500,01-Sep-2022,Housing & Communities,BRUSHSTROKES,Neighbourhoods,48000.00,Grant Payments,2223P06_CR00505,21029374
Sandwell Metropolitan Borough Council,http://www.sandwell.gov.uk/info/200202/performance_and_spending/1079/payments_over_500,01-Sep-2022,Housing & Communities,COMMUNITY ACTION PROJECT,Neighbourhoods,23160.00,Grant Payments,2223P06_CR00506,01702622
Sandwell Metropolitan Borough Council,http://www.sandwell.gov.uk/info/200202/performance_and_spending/1079/payments_over_500,23-Sep-2022,Housing & Communities,ILEYS COMMUNITY ASSOCIATION,Neighbourhoods,10000.00,Grant Payments,2223P06_CR00507,88247
Sandwell Metropolitan Borough Council,http://www.sandwell.gov.uk/info/200202/performance_and_spending/1079/payments_over_500,12-Sep-2022,Housing & Communities,SACRED CHAIN PROJECT,Neighbourhoods,972.50,Grant Payments,2223P06_CR00508,164138
Sandwell Metropolitan Borough Council,http://www.sandwell.gov.uk/info/200202/performance_and_spending/1079/payments_over_500,13-Sep-2022,Housing & Communities,ST ALBANS COMMUNITY ASSOCIATION,Neighbourhoods,12400.00,Grant Payments,2223P06_CR00509,08323189
Sandwell Metropolitan Borough Council,http://www.sandwell.gov.uk/info/200202/performance_and_spending/1079/payments_over_500,01-Sep-2022,Housing Revenue Account Capital,AXIS EUROPE PLC   ,Housing Revenue Account Capital,5642.81,Deferred Charges/Grant Payments,2223P06_CR00510,64946
Sandwell Metropolitan Borough Council,http://www.sandwell.gov.uk/info/200202/performance_and_spending/1079/payments_over_500,02-Aug-2022,Housing Revenue Account Capital,AXIS EUROPE PLC   ,Housing Revenue Account Capital,5810.69,Deferred Charges/Grant Payments,2223P06_CR00511,64946
Sandwell Metropolitan Borough Council,http://www.sandwell.gov.uk/info/200202/performance_and_spending/1079/payments_over_500,01-Sep-2022,Housing Revenue Account Capital,AXIS EUROPE PLC   ,Housing Revenue Account Capital,6021.64,Deferred Charges/Grant Payments,2223P06_CR00512,64946
Sandwell Metropolitan Borough Council,http://www.sandwell.gov.uk/info/200202/performance_and_spending/1079/payments_over_500,01-Sep-2022,Housing Revenue Account Capital,AXIS EUROPE PLC   ,Housing Revenue Account Capital,6067.60,Deferred Charges/Grant Payments,2223P06_CR00513,64946
Sandwell Metropolitan Borough Council,http://www.sandwell.gov.uk/info/200202/performance_and_spending/1079/payments_over_500,01-Sep-2022,Housing Revenue Account Capital,AXIS EUROPE PLC   ,Housing Revenue Account Capital,6102.17,Deferred Charges/Grant Payments,2223P06_CR00514,64946
Sandwell Metropolitan Borough Council,http://www.sandwell.gov.uk/info/200202/performance_and_spending/1079/payments_over_500,02-Aug-2022,Housing Revenue Account Capital,AXIS EUROPE PLC   ,Housing Revenue Account Capital,6269.65,Deferred Charges/Grant Payments,2223P06_CR00515,64946
Sandwell Metropolitan Borough Council,http://www.sandwell.gov.uk/info/200202/performance_and_spending/1079/payments_over_500,02-Aug-2022,Housing Revenue Account Capital,AXIS EUROPE PLC   ,Housing Revenue Account Capital,6430.45,Deferred Charges/Grant Payments,2223P06_CR00516,64946
Sandwell Metropolitan Borough Council,http://www.sandwell.gov.uk/info/200202/performance_and_spending/1079/payments_over_500,01-Sep-2022,Housing Revenue Account Capital,AXIS EUROPE PLC   ,Housing Revenue Account Capital,6562.89,Deferred Charges/Grant Payments,2223P06_CR00517,64946
Sandwell Metropolitan Borough Council,http://www.sandwell.gov.uk/info/200202/performance_and_spending/1079/payments_over_500,01-Sep-2022,Housing Revenue Account Capital,AXIS EUROPE PLC   ,Housing Revenue Account Capital,13898.28,Deferred Charges/Grant Payments,2223P06_CR00518,64946
Sandwell Metropolitan Borough Council,http://www.sandwell.gov.uk/info/200202/performance_and_spending/1079/payments_over_500,21-Sep-2022,Housing Revenue Account Capital,AXIS EUROPE PLC   ,Housing Revenue Account Capital,40766.68,Deferred Charges/Grant Payments,2223P06_CR00519,64946
Sandwell Metropolitan Borough Council,http://www.sandwell.gov.uk/info/200202/performance_and_spending/1079/payments_over_500,01-Sep-2022,Housing Revenue Account Capital,CONNECT SERVICES BUILDING SOLUTIONS LTD,Housing Revenue Account Capital,10112.87,"CIP - New Construction,Conversion, Enhancement & Reno",2223P06_CR00520,141859
Sandwell Metropolitan Borough Council,http://www.sandwell.gov.uk/info/200202/performance_and_spending/1079/payments_over_500,01-Sep-2022,Housing Revenue Account Capital,DOLPHIN LIFTS MIDLANDS LTD,Housing Revenue Account Capital,1300.00,Deferred Charges/Grant Payments,2223P06_CR00521,123852
Sandwell Metropolitan Borough Council,http://www.sandwell.gov.uk/info/200202/performance_and_spending/1079/payments_over_500,01-Sep-2022,Housing Revenue Account Capital,DOLPHIN LIFTS MIDLANDS LTD,Housing Revenue Account Capital,1483.66,Deferred Charges/Grant Payments,2223P06_CR00522,123852
Sandwell Metropolitan Borough Council,http://www.sandwell.gov.uk/info/200202/performance_and_spending/1079/payments_over_500,01-Sep-2022,Housing Revenue Account Capital,DOLPHIN LIFTS MIDLANDS LTD,Housing Revenue Account Capital,1646.66,Deferred Charges/Grant Payments,2223P06_CR00523,123852
Sandwell Metropolitan Borough Council,http://www.sandwell.gov.uk/info/200202/performance_and_spending/1079/payments_over_500,01-Sep-2022,Housing Revenue Account Capital,DOLPHIN LIFTS MIDLANDS LTD,Housing Revenue Account Capital,3293.06,Deferred Charges/Grant Payments,2223P06_CR00524,123852
Sandwell Metropolitan Borough Council,http://www.sandwell.gov.uk/info/200202/performance_and_spending/1079/payments_over_500,01-Sep-2022,Housing Revenue Account Capital,HILL INTERIOR CONTRACTS LTD,Housing Revenue Account Capital,23198.37,"CIP - New Construction,Conversion, Enhancement & Reno",2223P06_CR00525,17158
Sandwell Metropolitan Borough Council,http://www.sandwell.gov.uk/info/200202/performance_and_spending/1079/payments_over_500,01-Sep-2022,Housing Revenue Account Capital,J.HARPER & SONS (LEOMINSTER) LIMITED,Housing Revenue Account Capital,218491.87,"CIP - New Construction,Conversion, Enhancement & Reno",2223P06_CR00526,111814
Sandwell Metropolitan Borough Council,http://www.sandwell.gov.uk/info/200202/performance_and_spending/1079/payments_over_500,06-Sep-2022,Housing Revenue Account Capital,LIFT & ENGINEERING SERVICES LTD,Housing Revenue Account Capital,542.36,CIP - Fixtures & Fittings,2223P06_CR00527,77003962
Sandwell Metropolitan Borough Council,http://www.sandwell.gov.uk/info/200202/performance_and_spending/1079/payments_over_500,01-Sep-2022,Housing Revenue Account Capital,LIFT & ENGINEERING SERVICES LTD,Housing Revenue Account Capital,1220.55,CIP - Fixtures & Fittings,2223P06_CR00528,77003962
Sandwell Metropolitan Borough Council,http://www.sandwell.gov.uk/info/200202/performance_and_spending/1079/payments_over_500,01-Sep-2022,Housing Revenue Account Capital,LIFT & ENGINEERING SERVICES LTD,Housing Revenue Account Capital,8082.92,CIP - Fixtures & Fittings,2223P06_CR00529,77003962
Sandwell Metropolitan Borough Council,http://www.sandwell.gov.uk/info/200202/performance_and_spending/1079/payments_over_500,11-Sep-2022,Housing Revenue Account Capital,LIFT & ENGINEERING SERVICES LTD,Housing Revenue Account Capital,10040.61,CIP - Fixtures & Fittings,2223P06_CR00530,77003962
Sandwell Metropolitan Borough Council,http://www.sandwell.gov.uk/info/200202/performance_and_spending/1079/payments_over_500,01-Sep-2022,Housing Revenue Account Capital,LOVELL PARTNERSHIPS  LTD,Housing Revenue Account Capital,194273.79,"CIP - New Construction,Conversion, Enhancement & Reno",2223P06_CR00531,77007398
Sandwell Metropolitan Borough Council,http://www.sandwell.gov.uk/info/200202/performance_and_spending/1079/payments_over_500,07-Sep-2022,Housing Revenue Account Capital,LOVELL PARTNERSHIPS  LTD,Housing Revenue Account Capital,290152.14,"CIP - New Construction,Conversion, Enhancement & Reno",2223P06_CR00532,77007398
Sandwell Metropolitan Borough Council,http://www.sandwell.gov.uk/info/200202/performance_and_spending/1079/payments_over_500,01-Sep-2022,Housing Revenue Account Capital,LOVELL PARTNERSHIPS  LTD,Housing Revenue Account Capital,425712.73,"CIP - New Construction,Conversion, Enhancement & Reno",2223P06_CR00533,77007398
Sandwell Metropolitan Borough Council,http://www.sandwell.gov.uk/info/200202/performance_and_spending/1079/payments_over_500,01-Sep-2022,Housing Revenue Account Capital,MOTT MACDONALD LTD,Housing Revenue Account Capital,2335.45,"CIP - New Construction,Conversion, Enhancement & Reno",2223P06_CR00534,01722008
Sandwell Metropolitan Borough Council,http://www.sandwell.gov.uk/info/200202/performance_and_spending/1079/payments_over_500,01-Sep-2022,Housing Revenue Account Capital,NATIONWIDE WINDOWS LIMITED,Housing Revenue Account Capital,71881.36,"CIP - New Construction,Conversion, Enhancement & Reno",2223P06_CR00535,108316
Sandwell Metropolitan Borough Council,http://www.sandwell.gov.uk/info/200202/performance_and_spending/1079/payments_over_500,21-Sep-2022,Housing Revenue Account Capital,ORBIS PROTECT LIMITED,Housing Revenue Account Capital,845.00,Externally Purchased Professional Services ,2223P06_CR00536,46807
Sandwell Metropolitan Borough Council,http://www.sandwell.gov.uk/info/200202/performance_and_spending/1079/payments_over_500,01-Sep-2022,Housing Revenue Account Capital,PARCOR LTD,Housing Revenue Account Capital,11010.00,"CIP - New Construction,Conversion, Enhancement & Reno",2223P06_CR00537,163117
Sandwell Metropolitan Borough Council,http://www.sandwell.gov.uk/info/200202/performance_and_spending/1079/payments_over_500,17-Sep-2022,Housing Revenue Account Capital,POWRED HEATING COMPONENTS LIMITED,Housing Revenue Account Capital,938.42,Materials & Consumables,2223P06_CR00538,133978
Sandwell Metropolitan Borough Council,http://www.sandwell.gov.uk/info/200202/performance_and_spending/1079/payments_over_500,01-Sep-2022,Housing Revenue Account Capital,POWRED HEATING COMPONENTS LIMITED,Housing Revenue Account Capital,1900.92,Materials & Consumables,2223P06_CR00539,133978
Sandwell Metropolitan Borough Council,http://www.sandwell.gov.uk/info/200202/performance_and_spending/1079/payments_over_500,01-Sep-2022,Housing Revenue Account Capital,POWRED HEATING COMPONENTS LIMITED,Housing Revenue Account Capital,4626.05,Materials & Consumables,2223P06_CR00540,133978
Sandwell Metropolitan Borough Council,http://www.sandwell.gov.uk/info/200202/performance_and_spending/1079/payments_over_500,01-Sep-2022,Housing Revenue Account Capital,POWRED HEATING COMPONENTS LIMITED,Housing Revenue Account Capital,5023.18,Materials & Consumables,2223P06_CR00541,133978
Sandwell Metropolitan Borough Council,http://www.sandwell.gov.uk/info/200202/performance_and_spending/1079/payments_over_500,15-Sep-2022,Housing Revenue Account Capital,POWRED HEATING COMPONENTS LIMITED,Housing Revenue Account Capital,6144.89,Materials & Consumables,2223P06_CR00542,133978
Sandwell Metropolitan Borough Council,http://www.sandwell.gov.uk/info/200202/performance_and_spending/1079/payments_over_500,01-Sep-2022,Housing Revenue Account Capital,PR PROPERTY MAINTENANCE,Housing Revenue Account Capital,8700.59,Deferred Charges/Grant Payments,2223P06_CR00543,33836
Sandwell Metropolitan Borough Council,http://www.sandwell.gov.uk/info/200202/performance_and_spending/1079/payments_over_500,01-Sep-2022,Housing Revenue Account Capital,PR PROPERTY MAINTENANCE,Housing Revenue Account Capital,8820.20,Deferred Charges/Grant Payments,2223P06_CR00544,33836
Sandwell Metropolitan Borough Council,http://www.sandwell.gov.uk/info/200202/performance_and_spending/1079/payments_over_500,01-Sep-2022,Housing Revenue Account Capital,PR PROPERTY MAINTENANCE,Housing Revenue Account Capital,14420.18,Deferred Charges/Grant Payments,2223P06_CR00545,33836
Sandwell Metropolitan Borough Council,http://www.sandwell.gov.uk/info/200202/performance_and_spending/1079/payments_over_500,01-Sep-2022,Housing Revenue Account Capital,PR PROPERTY MAINTENANCE,Housing Revenue Account Capital,22423.01,Deferred Charges/Grant Payments,2223P06_CR00546,33836
Sandwell Metropolitan Borough Council,http://www.sandwell.gov.uk/info/200202/performance_and_spending/1079/payments_over_500,01-Sep-2022,Housing Revenue Account Capital,PR PROPERTY MAINTENANCE,Housing Revenue Account Capital,25552.69,Deferred Charges/Grant Payments,2223P06_CR00547,33836
Sandwell Metropolitan Borough Council,http://www.sandwell.gov.uk/info/200202/performance_and_spending/1079/payments_over_500,01-Sep-2022,Housing Revenue Account Capital,PR PROPERTY MAINTENANCE,Housing Revenue Account Capital,34232.68,Deferred Charges/Grant Payments,2223P06_CR00548,33836
Sandwell Metropolitan Borough Council,http://www.sandwell.gov.uk/info/200202/performance_and_spending/1079/payments_over_500,01-Sep-2022,Housing Revenue Account Capital,RIDGE & PARTNERS LLP,Housing Revenue Account Capital,2080.00,Consultancy,2223P06_CR00549,134994
Sandwell Metropolitan Borough Council,http://www.sandwell.gov.uk/info/200202/performance_and_spending/1079/payments_over_500,12-Sep-2022,Housing Revenue Account Capital,SEDDON CONSTRUCTION LIMITED,Housing Revenue Account Capital,54459.51,"CIP - New Construction,Conversion, Enhancement & Reno",2223P06_CR00550,132999
Sandwell Metropolitan Borough Council,http://www.sandwell.gov.uk/info/200202/performance_and_spending/1079/payments_over_500,07-Sep-2022,Housing Revenue Account Capital,SEDDON CONSTRUCTION LIMITED,Housing Revenue Account Capital,245910.24,"CIP - New Construction,Conversion, Enhancement & Reno",2223P06_CR00551,132999
Sandwell Metropolitan Borough Council,http://www.sandwell.gov.uk/info/200202/performance_and_spending/1079/payments_over_500,01-Sep-2022,Housing Revenue Account Capital,SEDDON CONSTRUCTION LIMITED,Housing Revenue Account Capital,310950.97,"CIP - New Construction,Conversion, Enhancement & Reno",2223P06_CR00552,132999
Sandwell Metropolitan Borough Council,http://www.sandwell.gov.uk/info/200202/performance_and_spending/1079/payments_over_500,01-Sep-2022,Housing Revenue Account Capital,SEDDON CONSTRUCTION LIMITED,Housing Revenue Account Capital,311688.60,"CIP - New Construction,Conversion, Enhancement & Reno",2223P06_CR00553,132999
Sandwell Metropolitan Borough Council,http://www.sandwell.gov.uk/info/200202/performance_and_spending/1079/payments_over_500,01-Sep-2022,Housing Revenue Account Capital,SELECT WINDOWS (HOME IMPROVEMENTS) LIMITED,Housing Revenue Account Capital,596.62,Contract Payments,2223P06_CR00554,42616
Sandwell Metropolitan Borough Council,http://www.sandwell.gov.uk/info/200202/performance_and_spending/1079/payments_over_500,01-Sep-2022,Housing Revenue Account Capital,SELECT WINDOWS (HOME IMPROVEMENTS) LIMITED,Housing Revenue Account Capital,612.17,Contract Payments,2223P06_CR00555,42616
Sandwell Metropolitan Borough Council,http://www.sandwell.gov.uk/info/200202/performance_and_spending/1079/payments_over_500,01-Sep-2022,Housing Revenue Account Capital,SELECT WINDOWS (HOME IMPROVEMENTS) LIMITED,Housing Revenue Account Capital,644.36,Contract Payments,2223P06_CR00556,42616
Sandwell Metropolitan Borough Council,http://www.sandwell.gov.uk/info/200202/performance_and_spending/1079/payments_over_500,01-Sep-2022,Housing Revenue Account Capital,SELECT WINDOWS (HOME IMPROVEMENTS) LIMITED,Housing Revenue Account Capital,685.75,Contract Payments,2223P06_CR00557,42616
Sandwell Metropolitan Borough Council,http://www.sandwell.gov.uk/info/200202/performance_and_spending/1079/payments_over_500,01-Sep-2022,Housing Revenue Account Capital,SELECT WINDOWS (HOME IMPROVEMENTS) LIMITED,Housing Revenue Account Capital,712.13,Contract Payments,2223P06_CR00558,42616
Sandwell Metropolitan Borough Council,http://www.sandwell.gov.uk/info/200202/performance_and_spending/1079/payments_over_500,01-Sep-2022,Housing Revenue Account Capital,SELECT WINDOWS (HOME IMPROVEMENTS) LIMITED,Housing Revenue Account Capital,712.13,Contract Payments,2223P06_CR00559,42616
Sandwell Metropolitan Borough Council,http://www.sandwell.gov.uk/info/200202/performance_and_spending/1079/payments_over_500,01-Sep-2022,Housing Revenue Account Capital,SELECT WINDOWS (HOME IMPROVEMENTS) LIMITED,Housing Revenue Account Capital,712.13,Contract Payments,2223P06_CR00560,42616
Sandwell Metropolitan Borough Council,http://www.sandwell.gov.uk/info/200202/performance_and_spending/1079/payments_over_500,01-Sep-2022,Housing Revenue Account Capital,SELECT WINDOWS (HOME IMPROVEMENTS) LIMITED,Housing Revenue Account Capital,756.08,Contract Payments,2223P06_CR00561,42616
Sandwell Metropolitan Borough Council,http://www.sandwell.gov.uk/info/200202/performance_and_spending/1079/payments_over_500,01-Sep-2022,Housing Revenue Account Capital,SELECT WINDOWS (HOME IMPROVEMENTS) LIMITED,Housing Revenue Account Capital,896.55,Contract Payments,2223P06_CR00562,42616
Sandwell Metropolitan Borough Council,http://www.sandwell.gov.uk/info/200202/performance_and_spending/1079/payments_over_500,01-Sep-2022,Housing Revenue Account Capital,SELECT WINDOWS (HOME IMPROVEMENTS) LIMITED,Housing Revenue Account Capital,945.31,Contract Payments,2223P06_CR00563,42616
Sandwell Metropolitan Borough Council,http://www.sandwell.gov.uk/info/200202/performance_and_spending/1079/payments_over_500,01-Sep-2022,Housing Revenue Account Capital,SELECT WINDOWS (HOME IMPROVEMENTS) LIMITED,Housing Revenue Account Capital,951.79,Contract Payments,2223P06_CR00564,42616
Sandwell Metropolitan Borough Council,http://www.sandwell.gov.uk/info/200202/performance_and_spending/1079/payments_over_500,01-Sep-2022,Housing Revenue Account Capital,SELECT WINDOWS (HOME IMPROVEMENTS) LIMITED,Housing Revenue Account Capital,1152.08,Contract Payments,2223P06_CR00565,42616
Sandwell Metropolitan Borough Council,http://www.sandwell.gov.uk/info/200202/performance_and_spending/1079/payments_over_500,01-Sep-2022,Housing Revenue Account Capital,SELECT WINDOWS (HOME IMPROVEMENTS) LIMITED,Housing Revenue Account Capital,1268.41,Contract Payments,2223P06_CR00566,42616
Sandwell Metropolitan Borough Council,http://www.sandwell.gov.uk/info/200202/performance_and_spending/1079/payments_over_500,01-Sep-2022,Housing Revenue Account Capital,SELECT WINDOWS (HOME IMPROVEMENTS) LIMITED,Housing Revenue Account Capital,1372.02,Contract Payments,2223P06_CR00567,42616
Sandwell Metropolitan Borough Council,http://www.sandwell.gov.uk/info/200202/performance_and_spending/1079/payments_over_500,01-Sep-2022,Housing Revenue Account Capital,SELECT WINDOWS (HOME IMPROVEMENTS) LIMITED,Housing Revenue Account Capital,1438.05,Contract Payments,2223P06_CR00568,42616
Sandwell Metropolitan Borough Council,http://www.sandwell.gov.uk/info/200202/performance_and_spending/1079/payments_over_500,01-Sep-2022,Housing Revenue Account Capital,SELECT WINDOWS (HOME IMPROVEMENTS) LIMITED,Housing Revenue Account Capital,1604.78,Contract Payments,2223P06_CR00569,42616
Sandwell Metropolitan Borough Council,http://www.sandwell.gov.uk/info/200202/performance_and_spending/1079/payments_over_500,01-Sep-2022,Housing Revenue Account Capital,SELECT WINDOWS (HOME IMPROVEMENTS) LIMITED,Housing Revenue Account Capital,1729.44,Contract Payments,2223P06_CR00570,42616
Sandwell Metropolitan Borough Council,http://www.sandwell.gov.uk/info/200202/performance_and_spending/1079/payments_over_500,01-Sep-2022,Housing Revenue Account Capital,SELECT WINDOWS (HOME IMPROVEMENTS) LIMITED,Housing Revenue Account Capital,2677.61,Contract Payments,2223P06_CR00571,42616
Sandwell Metropolitan Borough Council,http://www.sandwell.gov.uk/info/200202/performance_and_spending/1079/payments_over_500,01-Sep-2022,Housing Revenue Account Capital,SURE MAINTENANCE LIMITED,Housing Revenue Account Capital,345763.95,"CIP - New Construction,Conversion, Enhancement & Reno",2223P06_CR00572,93926
Sandwell Metropolitan Borough Council,http://www.sandwell.gov.uk/info/200202/performance_and_spending/1079/payments_over_500,01-Sep-2022,Housing Revenue Account Capital,SYCAMORE WINDOWS & CONSERVATORIES LIMITED,Housing Revenue Account Capital,129209.49,"CIP - New Construction,Conversion, Enhancement & Reno",2223P06_CR00573,145272
Sandwell Metropolitan Borough Council,http://www.sandwell.gov.uk/info/200202/performance_and_spending/1079/payments_over_500,01-Sep-2022,Housing Revenue Account Capital,VINCI CONSTRUCTION LTD,Housing Revenue Account Capital,3836.44,Deferred Charges/Grant Payments,2223P06_CR00574,36361
Sandwell Metropolitan Borough Council,http://www.sandwell.gov.uk/info/200202/performance_and_spending/1079/payments_over_500,01-Sep-2022,Housing Revenue Account Capital,VINCI CONSTRUCTION LTD,Housing Revenue Account Capital,4243.00,Deferred Charges/Grant Payments,2223P06_CR00575,36361
Sandwell Metropolitan Borough Council,http://www.sandwell.gov.uk/info/200202/performance_and_spending/1079/payments_over_500,01-Sep-2022,Housing Revenue Account Capital,VINCI CONSTRUCTION LTD,Housing Revenue Account Capital,4265.12,Deferred Charges/Grant Payments,2223P06_CR00576,36361
Sandwell Metropolitan Borough Council,http://www.sandwell.gov.uk/info/200202/performance_and_spending/1079/payments_over_500,01-Sep-2022,Housing Revenue Account Capital,VINCI CONSTRUCTION LTD,Housing Revenue Account Capital,4288.88,Deferred Charges/Grant Payments,2223P06_CR00577,36361
Sandwell Metropolitan Borough Council,http://www.sandwell.gov.uk/info/200202/performance_and_spending/1079/payments_over_500,01-Sep-2022,Housing Revenue Account Capital,VINCI CONSTRUCTION LTD,Housing Revenue Account Capital,4394.50,Deferred Charges/Grant Payments,2223P06_CR00578,36361
Sandwell Metropolitan Borough Council,http://www.sandwell.gov.uk/info/200202/performance_and_spending/1079/payments_over_500,01-Sep-2022,Housing Revenue Account Capital,VINCI CONSTRUCTION LTD,Housing Revenue Account Capital,4420.82,Deferred Charges/Grant Payments,2223P06_CR00579,36361
Sandwell Metropolitan Borough Council,http://www.sandwell.gov.uk/info/200202/performance_and_spending/1079/payments_over_500,01-Sep-2022,Housing Revenue Account Capital,VINCI CONSTRUCTION LTD,Housing Revenue Account Capital,4504.37,Deferred Charges/Grant Payments,2223P06_CR00580,36361
Sandwell Metropolitan Borough Council,http://www.sandwell.gov.uk/info/200202/performance_and_spending/1079/payments_over_500,01-Sep-2022,Housing Revenue Account Capital,VINCI CONSTRUCTION LTD,Housing Revenue Account Capital,4546.07,Deferred Charges/Grant Payments,2223P06_CR00581,36361
Sandwell Metropolitan Borough Council,http://www.sandwell.gov.uk/info/200202/performance_and_spending/1079/payments_over_500,01-Sep-2022,Housing Revenue Account Capital,VINCI CONSTRUCTION LTD,Housing Revenue Account Capital,4578.54,Deferred Charges/Grant Payments,2223P06_CR00582,36361
Sandwell Metropolitan Borough Council,http://www.sandwell.gov.uk/info/200202/performance_and_spending/1079/payments_over_500,01-Sep-2022,Housing Revenue Account Capital,VINCI CONSTRUCTION LTD,Housing Revenue Account Capital,4584.13,Deferred Charges/Grant Payments,2223P06_CR00583,36361
Sandwell Metropolitan Borough Council,http://www.sandwell.gov.uk/info/200202/performance_and_spending/1079/payments_over_500,01-Sep-2022,Housing Revenue Account Capital,VINCI CONSTRUCTION LTD,Housing Revenue Account Capital,4640.00,Deferred Charges/Grant Payments,2223P06_CR00584,36361
Sandwell Metropolitan Borough Council,http://www.sandwell.gov.uk/info/200202/performance_and_spending/1079/payments_over_500,01-Sep-2022,Housing Revenue Account Capital,VINCI CONSTRUCTION LTD,Housing Revenue Account Capital,4675.39,Deferred Charges/Grant Payments,2223P06_CR00585,36361
Sandwell Metropolitan Borough Council,http://www.sandwell.gov.uk/info/200202/performance_and_spending/1079/payments_over_500,01-Sep-2022,Housing Revenue Account Capital,VINCI CONSTRUCTION LTD,Housing Revenue Account Capital,4738.71,Deferred Charges/Grant Payments,2223P06_CR00586,36361
Sandwell Metropolitan Borough Council,http://www.sandwell.gov.uk/info/200202/performance_and_spending/1079/payments_over_500,01-Sep-2022,Housing Revenue Account Capital,VINCI CONSTRUCTION LTD,Housing Revenue Account Capital,4781.44,Deferred Charges/Grant Payments,2223P06_CR00587,36361
Sandwell Metropolitan Borough Council,http://www.sandwell.gov.uk/info/200202/performance_and_spending/1079/payments_over_500,01-Sep-2022,Housing Revenue Account Capital,VINCI CONSTRUCTION LTD,Housing Revenue Account Capital,4787.02,Deferred Charges/Grant Payments,2223P06_CR00588,36361
Sandwell Metropolitan Borough Council,http://www.sandwell.gov.uk/info/200202/performance_and_spending/1079/payments_over_500,01-Sep-2022,Housing Revenue Account Capital,VINCI CONSTRUCTION LTD,Housing Revenue Account Capital,4952.64,Deferred Charges/Grant Payments,2223P06_CR00589,36361
Sandwell Metropolitan Borough Council,http://www.sandwell.gov.uk/info/200202/performance_and_spending/1079/payments_over_500,01-Sep-2022,Housing Revenue Account Capital,VINCI CONSTRUCTION LTD,Housing Revenue Account Capital,5120.20,Deferred Charges/Grant Payments,2223P06_CR00590,36361
Sandwell Metropolitan Borough Council,http://www.sandwell.gov.uk/info/200202/performance_and_spending/1079/payments_over_500,01-Sep-2022,Housing Revenue Account Capital,VINCI CONSTRUCTION LTD,Housing Revenue Account Capital,5373.86,Deferred Charges/Grant Payments,2223P06_CR00591,36361
Sandwell Metropolitan Borough Council,http://www.sandwell.gov.uk/info/200202/performance_and_spending/1079/payments_over_500,01-Sep-2022,Housing Revenue Account Capital,VINCI CONSTRUCTION LTD,Housing Revenue Account Capital,6211.64,Deferred Charges/Grant Payments,2223P06_CR00592,36361
Sandwell Metropolitan Borough Council,http://www.sandwell.gov.uk/info/200202/performance_and_spending/1079/payments_over_500,01-Sep-2022,Housing Revenue Account Capital,VINCI CONSTRUCTION LTD,Housing Revenue Account Capital,6450.10,Deferred Charges/Grant Payments,2223P06_CR00593,36361
Sandwell Metropolitan Borough Council,http://www.sandwell.gov.uk/info/200202/performance_and_spending/1079/payments_over_500,01-Sep-2022,Housing Revenue Account Capital,VINCI CONSTRUCTION LTD,Housing Revenue Account Capital,31538.07,Deferred Charges/Grant Payments,2223P06_CR00594,36361
Sandwell Metropolitan Borough Council,http://www.sandwell.gov.uk/info/200202/performance_and_spending/1079/payments_over_500,21-Sep-2022,Housing Revenue Account Capital,VINCI CONSTRUCTION LTD,Housing Revenue Account Capital,52804.68,Deferred Charges/Grant Payments,2223P06_CR00595,36361
Sandwell Metropolitan Borough Council,http://www.sandwell.gov.uk/info/200202/performance_and_spending/1079/payments_over_500,05-Sep-2022,Housing Revenue Account Capital,VINCI CONSTRUCTION LTD,Housing Revenue Account Capital,189095.41,"CIP - New Construction,Conversion, Enhancement & Reno",2223P06_CR00596,36361
Sandwell Metropolitan Borough Council,http://www.sandwell.gov.uk/info/200202/performance_and_spending/1079/payments_over_500,09-Sep-2022,Housing Revenue Account Capital,VINCI CONSTRUCTION LTD,Housing Revenue Account Capital,472673.78,"CIP - New Construction,Conversion, Enhancement & Reno",2223P06_CR00597,36361
Sandwell Metropolitan Borough Council,http://www.sandwell.gov.uk/info/200202/performance_and_spending/1079/payments_over_500,05-Sep-2022,Housing Revenue Account Capital,SNOWDROP INDEPENDENT LIVING LTD,Housing Revenue Account Capital,3575.16,Deferred Charges/Grant Payments,2223P06_CR00598,163165
Sandwell Metropolitan Borough Council,http://www.sandwell.gov.uk/info/200202/performance_and_spending/1079/payments_over_500,01-Sep-2022,Housing Revenue Account Capital,STILTZ LIMITED,Housing Revenue Account Capital,750.00,Deferred Charges/Grant Payments,2223P06_CR00599,125910
Sandwell Metropolitan Borough Council,http://www.sandwell.gov.uk/info/200202/performance_and_spending/1079/payments_over_500,21-Sep-2022,Individual School Budgets With Inclusion,5 STAR DAY NURSERY - OLDBURY,Individual School Budgets With Inclusion,6563.03,Grant Payments,2223P06_CR00600,120730
Sandwell Metropolitan Borough Council,http://www.sandwell.gov.uk/info/200202/performance_and_spending/1079/payments_over_500,21-Sep-2022,Individual School Budgets With Inclusion,5 STAR DAY NURSERY LIMITED,Individual School Budgets With Inclusion,9275.18,Grant Payments,2223P06_CR00601,105382
Sandwell Metropolitan Borough Council,http://www.sandwell.gov.uk/info/200202/performance_and_spending/1079/payments_over_500,21-Sep-2022,Individual School Budgets With Inclusion,ABC DAY NURSERY & PRE SCHOOL LTD,Individual School Budgets With Inclusion,7848.23,Grant Payments,2223P06_CR00602,01472823
Sandwell Metropolitan Borough Council,http://www.sandwell.gov.uk/info/200202/performance_and_spending/1079/payments_over_500,21-Sep-2022,Individual School Budgets With Inclusion,ADVENTURE QUEST (GREAT BRIDGE) LTD,Individual School Budgets With Inclusion,5104.58,Grant Payments,2223P06_CR00603,153563
Sandwell Metropolitan Borough Council,http://www.sandwell.gov.uk/info/200202/performance_and_spending/1079/payments_over_500,21-Sep-2022,Individual School Budgets With Inclusion,AL KAHIR SCHOOL,Individual School Budgets With Inclusion,2090.45,Grant Payments,2223P06_CR00604,128728
Sandwell Metropolitan Borough Council,http://www.sandwell.gov.uk/info/200202/performance_and_spending/1079/payments_over_500,21-Sep-2022,Individual School Budgets With Inclusion,BANANA MOON DAY NURSERY,Individual School Budgets With Inclusion,6319.95,Grant Payments,2223P06_CR00605,124220
Sandwell Metropolitan Borough Council,http://www.sandwell.gov.uk/info/200202/performance_and_spending/1079/payments_over_500,21-Sep-2022,Individual School Budgets With Inclusion,BLOXCIDGE HOUSE DAY NURSERY,Individual School Budgets With Inclusion,5590.73,Grant Payments,2223P06_CR00606,82862
Sandwell Metropolitan Borough Council,http://www.sandwell.gov.uk/info/200202/performance_and_spending/1079/payments_over_500,21-Sep-2022,Individual School Budgets With Inclusion,BLUEBELLS DAY NURSERY,Individual School Budgets With Inclusion,2164.05,Grant Payments,2223P06_CR00607,01721314
Sandwell Metropolitan Borough Council,http://www.sandwell.gov.uk/info/200202/performance_and_spending/1079/payments_over_500,21-Sep-2022,Individual School Budgets With Inclusion,BOOKWORMS DAYCARE LIMITED,Individual School Budgets With Inclusion,8175.30,Grant Payments,2223P06_CR00608,114741
Sandwell Metropolitan Borough Council,http://www.sandwell.gov.uk/info/200202/performance_and_spending/1079/payments_over_500,21-Sep-2022,Individual School Budgets With Inclusion,BRIGHT LIGHTS DAY NURSERY,Individual School Budgets With Inclusion,4517.10,Grant Payments,2223P06_CR00609,89877
Sandwell Metropolitan Borough Council,http://www.sandwell.gov.uk/info/200202/performance_and_spending/1079/payments_over_500,21-Sep-2022,Individual School Budgets With Inclusion,BUSY BEE NURSERY,Individual School Budgets With Inclusion,9398.90,Grant Payments,2223P06_CR00610,01222577
Sandwell Metropolitan Borough Council,http://www.sandwell.gov.uk/info/200202/performance_and_spending/1079/payments_over_500,21-Sep-2022,Individual School Budgets With Inclusion,CAP DAY NURSERY,Individual School Budgets With Inclusion,3476.55,Grant Payments,2223P06_CR00611,51154
Sandwell Metropolitan Borough Council,http://www.sandwell.gov.uk/info/200202/performance_and_spending/1079/payments_over_500,21-Sep-2022,Individual School Budgets With Inclusion,CATHERINE HOUSE DAY NURSERY,Individual School Budgets With Inclusion,2885.40,Grant Payments,2223P06_CR00612,08587767
Sandwell Metropolitan Borough Council,http://www.sandwell.gov.uk/info/200202/performance_and_spending/1079/payments_over_500,21-Sep-2022,Individual School Budgets With Inclusion,CONFEDERATION OF BANGLADESHI ORGANISATIONS (CBO) LIMITED,Individual School Budgets With Inclusion,1458.45,Grant Payments,2223P06_CR00613,10034
Sandwell Metropolitan Borough Council,http://www.sandwell.gov.uk/info/200202/performance_and_spending/1079/payments_over_500,21-Sep-2022,Individual School Budgets With Inclusion,CONIFERS DAY NURSERY LTD,Individual School Budgets With Inclusion,4375.35,Grant Payments,2223P06_CR00614,131957
Sandwell Metropolitan Borough Council,http://www.sandwell.gov.uk/info/200202/performance_and_spending/1079/payments_over_500,21-Sep-2022,Individual School Budgets With Inclusion,DAFFODILS NURSERY LTD,Individual School Budgets With Inclusion,6208.13,Grant Payments,2223P06_CR00615,120066
Sandwell Metropolitan Borough Council,http://www.sandwell.gov.uk/info/200202/performance_and_spending/1079/payments_over_500,21-Sep-2022,Individual School Budgets With Inclusion,FAIRYTALES NURSERY LTD,Individual School Budgets With Inclusion,8079.12,Grant Payments,2223P06_CR00616,106247
Sandwell Metropolitan Borough Council,http://www.sandwell.gov.uk/info/200202/performance_and_spending/1079/payments_over_500,21-Sep-2022,Individual School Budgets With Inclusion,FATIMA DAY NURSERY,Individual School Budgets With Inclusion,3889.20,Grant Payments,2223P06_CR00617,131343
Sandwell Metropolitan Borough Council,http://www.sandwell.gov.uk/info/200202/performance_and_spending/1079/payments_over_500,21-Sep-2022,Individual School Budgets With Inclusion,FIREFLIES NURSERY LIMITED,Individual School Budgets With Inclusion,6076.88,Grant Payments,2223P06_CR00618,124120
Sandwell Metropolitan Borough Council,http://www.sandwell.gov.uk/info/200202/performance_and_spending/1079/payments_over_500,21-Sep-2022,Individual School Budgets With Inclusion,FIRST STEPS DAY NURSERY,Individual School Budgets With Inclusion,7535.33,Grant Payments,2223P06_CR00619,51155
Sandwell Metropolitan Borough Council,http://www.sandwell.gov.uk/info/200202/performance_and_spending/1079/payments_over_500,21-Sep-2022,Individual School Budgets With Inclusion,FIRST STEPS OLDBURY,Individual School Budgets With Inclusion,3403.05,Grant Payments,2223P06_CR00620,118886
Sandwell Metropolitan Borough Council,http://www.sandwell.gov.uk/info/200202/performance_and_spending/1079/payments_over_500,21-Sep-2022,Individual School Budgets With Inclusion,GENIUS GEMS,Individual School Budgets With Inclusion,6627.39,Grant Payments,2223P06_CR00621,160606
Sandwell Metropolitan Borough Council,http://www.sandwell.gov.uk/info/200202/performance_and_spending/1079/payments_over_500,21-Sep-2022,Individual School Budgets With Inclusion,GNG NURSERY,Individual School Budgets With Inclusion,7292.25,Grant Payments,2223P06_CR00622,114805
Sandwell Metropolitan Borough Council,http://www.sandwell.gov.uk/info/200202/performance_and_spending/1079/payments_over_500,21-Sep-2022,Individual School Budgets With Inclusion,HUMPTY DUMPTYS DAY NURSERY,Individual School Budgets With Inclusion,7292.25,Grant Payments,2223P06_CR00623,08510771
Sandwell Metropolitan Borough Council,http://www.sandwell.gov.uk/info/200202/performance_and_spending/1079/payments_over_500,21-Sep-2022,Individual School Budgets With Inclusion,JUNIPER'S PRESCHOOL,Individual School Budgets With Inclusion,3366.30,Grant Payments,2223P06_CR00624,154579
Sandwell Metropolitan Borough Council,http://www.sandwell.gov.uk/info/200202/performance_and_spending/1079/payments_over_500,21-Sep-2022,Individual School Budgets With Inclusion,K L THAW CHILDMINDING,Individual School Budgets With Inclusion,951.30,Grant Payments,2223P06_CR00625,104746
Sandwell Metropolitan Borough Council,http://www.sandwell.gov.uk/info/200202/performance_and_spending/1079/payments_over_500,21-Sep-2022,Individual School Budgets With Inclusion,KANGAROO POUCH AT GREAT BRIDGE,Individual School Budgets With Inclusion,6563.03,Grant Payments,2223P06_CR00626,129771
Sandwell Metropolitan Borough Council,http://www.sandwell.gov.uk/info/200202/performance_and_spending/1079/payments_over_500,21-Sep-2022,Individual School Budgets With Inclusion,KANGAROO POUCH AT TIVIDALE,Individual School Budgets With Inclusion,4994.33,Grant Payments,2223P06_CR00627,113715
Sandwell Metropolitan Borough Council,http://www.sandwell.gov.uk/info/200202/performance_and_spending/1079/payments_over_500,21-Sep-2022,Individual School Budgets With Inclusion,KANGAROO POUCH CHARLEMONT,Individual School Budgets With Inclusion,3973.20,Grant Payments,2223P06_CR00628,117283
Sandwell Metropolitan Borough Council,http://www.sandwell.gov.uk/info/200202/performance_and_spending/1079/payments_over_500,21-Sep-2022,Individual School Budgets With Inclusion,KANGAROO POUCH LIMITED,Individual School Budgets With Inclusion,4087.65,Grant Payments,2223P06_CR00629,106981
Sandwell Metropolitan Borough Council,http://www.sandwell.gov.uk/info/200202/performance_and_spending/1079/payments_over_500,21-Sep-2022,Individual School Budgets With Inclusion,LAVENDER FARM DAY NURSERY,Individual School Budgets With Inclusion,25279.80,Grant Payments,2223P06_CR00630,65596
Sandwell Metropolitan Borough Council,http://www.sandwell.gov.uk/info/200202/performance_and_spending/1079/payments_over_500,21-Sep-2022,Individual School Budgets With Inclusion,LILLIPUT LODGE CHILDRENS DAY NURSERY,Individual School Budgets With Inclusion,5945.63,Grant Payments,2223P06_CR00631,2980
Sandwell Metropolitan Borough Council,http://www.sandwell.gov.uk/info/200202/performance_and_spending/1079/payments_over_500,21-Sep-2022,Individual School Budgets With Inclusion,LITTLE ACADEMY NURSERY,Individual School Budgets With Inclusion,721.35,Grant Payments,2223P06_CR00632,81904
Sandwell Metropolitan Borough Council,http://www.sandwell.gov.uk/info/200202/performance_and_spending/1079/payments_over_500,21-Sep-2022,Individual School Budgets With Inclusion,LITTLE ANGELS DAY NURSERY LIMITED,Individual School Budgets With Inclusion,2916.90,Grant Payments,2223P06_CR00633,10207
Sandwell Metropolitan Borough Council,http://www.sandwell.gov.uk/info/200202/performance_and_spending/1079/payments_over_500,21-Sep-2022,Individual School Budgets With Inclusion,LITTLE EXPLORERS (WEST MIDLANDS) LTD,Individual School Budgets With Inclusion,10938.38,Grant Payments,2223P06_CR00634,114804
Sandwell Metropolitan Borough Council,http://www.sandwell.gov.uk/info/200202/performance_and_spending/1079/payments_over_500,21-Sep-2022,Individual School Budgets With Inclusion,LITTLE LEARNERS LTD,Individual School Budgets With Inclusion,6208.13,Grant Payments,2223P06_CR00635,01424133
Sandwell Metropolitan Borough Council,http://www.sandwell.gov.uk/info/200202/performance_and_spending/1079/payments_over_500,21-Sep-2022,Individual School Budgets With Inclusion,LITTLE LEGEND NURSERIES LTD,Individual School Budgets With Inclusion,2558.33,Grant Payments,2223P06_CR00636,117890
Sandwell Metropolitan Borough Council,http://www.sandwell.gov.uk/info/200202/performance_and_spending/1079/payments_over_500,21-Sep-2022,Individual School Budgets With Inclusion,LITTLE SAPLINGS CHILDCARE CENTRES,Individual School Budgets With Inclusion,8415.75,Grant Payments,2223P06_CR00637,131043
Sandwell Metropolitan Borough Council,http://www.sandwell.gov.uk/info/200202/performance_and_spending/1079/payments_over_500,21-Sep-2022,Individual School Budgets With Inclusion,LITTLE STEPPERS,Individual School Budgets With Inclusion,3476.55,Grant Payments,2223P06_CR00638,120240
Sandwell Metropolitan Borough Council,http://www.sandwell.gov.uk/info/200202/performance_and_spending/1079/payments_over_500,21-Sep-2022,Individual School Budgets With Inclusion,LITTLE VALERS PRE SCHOOL,Individual School Budgets With Inclusion,11177.78,Grant Payments,2223P06_CR00639,99107
Sandwell Metropolitan Borough Council,http://www.sandwell.gov.uk/info/200202/performance_and_spending/1079/payments_over_500,21-Sep-2022,Individual School Budgets With Inclusion,LITTLE WENDY HOUSE DAY NURSERY,Individual School Budgets With Inclusion,13855.28,Grant Payments,2223P06_CR00640,91544
Sandwell Metropolitan Borough Council,http://www.sandwell.gov.uk/info/200202/performance_and_spending/1079/payments_over_500,21-Sep-2022,Individual School Budgets With Inclusion,LOLA BELLES PRIVATE DAY NURSERY,Individual School Budgets With Inclusion,5530.35,Grant Payments,2223P06_CR00641,89271
Sandwell Metropolitan Borough Council,http://www.sandwell.gov.uk/info/200202/performance_and_spending/1079/payments_over_500,21-Sep-2022,Individual School Budgets With Inclusion,MINI MONKEYS LTD,Individual School Budgets With Inclusion,6319.95,Grant Payments,2223P06_CR00642,114818
Sandwell Metropolitan Borough Council,http://www.sandwell.gov.uk/info/200202/performance_and_spending/1079/payments_over_500,21-Sep-2022,Individual School Budgets With Inclusion,MINNS LIMITED,Individual School Budgets With Inclusion,4718.18,Grant Payments,2223P06_CR00643,120067
Sandwell Metropolitan Borough Council,http://www.sandwell.gov.uk/info/200202/performance_and_spending/1079/payments_over_500,21-Sep-2022,Individual School Budgets With Inclusion,MOORLANDS LITTLE LEARNERS PLAYGROUP,Individual School Budgets With Inclusion,7292.25,Grant Payments,2223P06_CR00644,46390
Sandwell Metropolitan Borough Council,http://www.sandwell.gov.uk/info/200202/performance_and_spending/1079/payments_over_500,21-Sep-2022,Individual School Budgets With Inclusion,N & K VARMA LIMITED T/A (KIDDIES PLAYHOUSE TIPTON),Individual School Budgets With Inclusion,4618.43,Grant Payments,2223P06_CR00645,26124
Sandwell Metropolitan Borough Council,http://www.sandwell.gov.uk/info/200202/performance_and_spending/1079/payments_over_500,21-Sep-2022,Individual School Budgets With Inclusion,OUR LADY AND ST HUBERTS CATHOLIC PRIMARY SCHOOL   ,Individual School Budgets With Inclusion,4018.84,Grant Payments,2223P06_CR00646,61053
Sandwell Metropolitan Borough Council,http://www.sandwell.gov.uk/info/200202/performance_and_spending/1079/payments_over_500,21-Sep-2022,Individual School Budgets With Inclusion,PERRYFIELDS PRE SCHOOL,Individual School Budgets With Inclusion,3963.75,Grant Payments,2223P06_CR00647,18879
Sandwell Metropolitan Borough Council,http://www.sandwell.gov.uk/info/200202/performance_and_spending/1079/payments_over_500,21-Sep-2022,Individual School Budgets With Inclusion,PITTA PATTA DAYCARE,Individual School Budgets With Inclusion,3476.55,Grant Payments,2223P06_CR00648,114742
Sandwell Metropolitan Borough Council,http://www.sandwell.gov.uk/info/200202/performance_and_spending/1079/payments_over_500,21-Sep-2022,Individual School Budgets With Inclusion,PLAYHOUSE DAY NURSERY,Individual School Budgets With Inclusion,3889.20,Grant Payments,2223P06_CR00649,01586669
Sandwell Metropolitan Borough Council,http://www.sandwell.gov.uk/info/200202/performance_and_spending/1079/payments_over_500,21-Sep-2022,Individual School Budgets With Inclusion,RAK DAY CARE LTD T/A HAPPY VALLEY PRE SCHOOL LTD,Individual School Budgets With Inclusion,5590.73,Grant Payments,2223P06_CR00650,01572212
Sandwell Metropolitan Borough Council,http://www.sandwell.gov.uk/info/200202/performance_and_spending/1079/payments_over_500,21-Sep-2022,Individual School Budgets With Inclusion,RARE WOOD LIMITED,Individual School Budgets With Inclusion,8691.38,Grant Payments,2223P06_CR00651,20167
Sandwell Metropolitan Borough Council,http://www.sandwell.gov.uk/info/200202/performance_and_spending/1079/payments_over_500,21-Sep-2022,Individual School Budgets With Inclusion,ROOTS & SHOOTS PLAYGROUP,Individual School Budgets With Inclusion,5001.15,Grant Payments,2223P06_CR00652,75502
Sandwell Metropolitan Borough Council,http://www.sandwell.gov.uk/info/200202/performance_and_spending/1079/payments_over_500,21-Sep-2022,Individual School Budgets With Inclusion,ROWLEY VILLAGE DAY NURSERY,Individual School Budgets With Inclusion,9479.93,Grant Payments,2223P06_CR00653,24228
Sandwell Metropolitan Borough Council,http://www.sandwell.gov.uk/info/200202/performance_and_spending/1079/payments_over_500,21-Sep-2022,Individual School Budgets With Inclusion,SADWICA DAY NURSERY,Individual School Budgets With Inclusion,4966.50,Grant Payments,2223P06_CR00654,01667892
Sandwell Metropolitan Borough Council,http://www.sandwell.gov.uk/info/200202/performance_and_spending/1079/payments_over_500,21-Sep-2022,Individual School Budgets With Inclusion,SANDWELL NHS TRUST DAY NURSERY,Individual School Budgets With Inclusion,10209.15,Grant Payments,2223P06_CR00655,40788
Sandwell Metropolitan Borough Council,http://www.sandwell.gov.uk/info/200202/performance_and_spending/1079/payments_over_500,21-Sep-2022,Individual School Budgets With Inclusion,SANTOS DAY NURSERIES,Individual School Budgets With Inclusion,7213.50,Grant Payments,2223P06_CR00656,129262
Sandwell Metropolitan Borough Council,http://www.sandwell.gov.uk/info/200202/performance_and_spending/1079/payments_over_500,21-Sep-2022,Individual School Budgets With Inclusion,SMARTY PANTS @ LIGHTWOODS HOUSE LTD,Individual School Budgets With Inclusion,6011.25,Grant Payments,2223P06_CR00657,130645
Sandwell Metropolitan Borough Council,http://www.sandwell.gov.uk/info/200202/performance_and_spending/1079/payments_over_500,21-Sep-2022,Individual School Budgets With Inclusion,SMARTY PANTS PRIVATE DAY NURSERY LTD,Individual School Budgets With Inclusion,8415.75,Grant Payments,2223P06_CR00658,74037
Sandwell Metropolitan Borough Council,http://www.sandwell.gov.uk/info/200202/performance_and_spending/1079/payments_over_500,21-Sep-2022,Individual School Budgets With Inclusion,SPON LANE DAY NURSERY LIMITED,Individual School Budgets With Inclusion,5711.48,Grant Payments,2223P06_CR00659,127024
Sandwell Metropolitan Borough Council,http://www.sandwell.gov.uk/info/200202/performance_and_spending/1079/payments_over_500,21-Sep-2022,Individual School Budgets With Inclusion,ST HUBERTS PRE-SCHOOL PLAYGROUP 2,Individual School Budgets With Inclusion,12022.50,Grant Payments,2223P06_CR00660,123074
Sandwell Metropolitan Borough Council,http://www.sandwell.gov.uk/info/200202/performance_and_spending/1079/payments_over_500,21-Sep-2022,Individual School Budgets With Inclusion,ST MICHAELS DAY NURSERY,Individual School Budgets With Inclusion,1738.28,Grant Payments,2223P06_CR00661,01698538
Sandwell Metropolitan Borough Council,http://www.sandwell.gov.uk/info/200202/performance_and_spending/1079/payments_over_500,21-Sep-2022,Individual School Budgets With Inclusion,STACEY PARTRIDGE (STEP UP CHILDCARE),Individual School Budgets With Inclusion,911.66,Grant Payments,2223P06_CR00662,151395
Sandwell Metropolitan Borough Council,http://www.sandwell.gov.uk/info/200202/performance_and_spending/1079/payments_over_500,21-Sep-2022,Individual School Budgets With Inclusion,STEPPING STONES NURSERY,Individual School Budgets With Inclusion,3366.30,Grant Payments,2223P06_CR00663,50029
Sandwell Metropolitan Borough Council,http://www.sandwell.gov.uk/info/200202/performance_and_spending/1079/payments_over_500,21-Sep-2022,Individual School Budgets With Inclusion,THE FAMILY NURSERY COMPANY LTD,Individual School Budgets With Inclusion,7049.18,Grant Payments,2223P06_CR00664,89879
Sandwell Metropolitan Borough Council,http://www.sandwell.gov.uk/info/200202/performance_and_spending/1079/payments_over_500,21-Sep-2022,Individual School Budgets With Inclusion,THE PATCH DAY NURSERY,Individual School Budgets With Inclusion,7340.87,Grant Payments,2223P06_CR00665,126020
Sandwell Metropolitan Borough Council,http://www.sandwell.gov.uk/info/200202/performance_and_spending/1079/payments_over_500,21-Sep-2022,Individual School Budgets With Inclusion,THE RIVERS MULTI ACADEMY TRUST,Individual School Budgets With Inclusion,11181.45,Grant Payments,2223P06_CR00666,61014
Sandwell Metropolitan Borough Council,http://www.sandwell.gov.uk/info/200202/performance_and_spending/1079/payments_over_500,21-Sep-2022,Individual School Budgets With Inclusion,THE TODDLER HOUSE LIMITED,Individual School Budgets With Inclusion,6806.10,Grant Payments,2223P06_CR00667,122166
Sandwell Metropolitan Borough Council,http://www.sandwell.gov.uk/info/200202/performance_and_spending/1079/payments_over_500,21-Sep-2022,Individual School Budgets With Inclusion,THE WONDER YEARS DAY NURSERY LIMITED,Individual School Budgets With Inclusion,6076.88,Grant Payments,2223P06_CR00668,01647249
Sandwell Metropolitan Borough Council,http://www.sandwell.gov.uk/info/200202/performance_and_spending/1079/payments_over_500,21-Sep-2022,Individual School Budgets With Inclusion,TICK TOCK DAY NURSERY LTD,Individual School Budgets With Inclusion,11424.53,Grant Payments,2223P06_CR00669,9391
Sandwell Metropolitan Borough Council,http://www.sandwell.gov.uk/info/200202/performance_and_spending/1079/payments_over_500,21-Sep-2022,Individual School Budgets With Inclusion,TIDDLYWINKS KIDDYS NURSERY LIMITED,Individual School Budgets With Inclusion,10938.38,Grant Payments,2223P06_CR00670,110667
Sandwell Metropolitan Borough Council,http://www.sandwell.gov.uk/info/200202/performance_and_spending/1079/payments_over_500,21-Sep-2022,Individual School Budgets With Inclusion,TIMBERTREE NEIGHBOURHOOD NURSERY,Individual School Budgets With Inclusion,8415.75,Grant Payments,2223P06_CR00671,135664
Sandwell Metropolitan Borough Council,http://www.sandwell.gov.uk/info/200202/performance_and_spending/1079/payments_over_500,21-Sep-2022,Individual School Budgets With Inclusion,TINY TOEZ LIMITED,Individual School Budgets With Inclusion,6251.70,Grant Payments,2223P06_CR00672,23618
Sandwell Metropolitan Borough Council,http://www.sandwell.gov.uk/info/200202/performance_and_spending/1079/payments_over_500,21-Sep-2022,Individual School Budgets With Inclusion,TINY WOODS PRE SCHOOL,Individual School Budgets With Inclusion,9137.10,Grant Payments,2223P06_CR00673,91788
Sandwell Metropolitan Borough Council,http://www.sandwell.gov.uk/info/200202/performance_and_spending/1079/payments_over_500,21-Sep-2022,Individual School Budgets With Inclusion,TIP TOP DAY NURSERY WEDNESBURY,Individual School Budgets With Inclusion,6456.45,Grant Payments,2223P06_CR00674,147082
Sandwell Metropolitan Borough Council,http://www.sandwell.gov.uk/info/200202/performance_and_spending/1079/payments_over_500,21-Sep-2022,Individual School Budgets With Inclusion,TIPTON EXPLORERS NURSERY,Individual School Budgets With Inclusion,4809.00,Grant Payments,2223P06_CR00675,132351
Sandwell Metropolitan Borough Council,http://www.sandwell.gov.uk/info/200202/performance_and_spending/1079/payments_over_500,21-Sep-2022,Individual School Budgets With Inclusion,TIPTON NURSERY,Individual School Budgets With Inclusion,6456.45,Grant Payments,2223P06_CR00676,89881
Sandwell Metropolitan Borough Council,http://www.sandwell.gov.uk/info/200202/performance_and_spending/1079/payments_over_500,21-Sep-2022,Individual School Budgets With Inclusion,TIPTON TODDLERS DAY NURSERY,Individual School Budgets With Inclusion,9860.74,Grant Payments,2223P06_CR00677,4397
Sandwell Metropolitan Borough Council,http://www.sandwell.gov.uk/info/200202/performance_and_spending/1079/payments_over_500,21-Sep-2022,Individual School Budgets With Inclusion,TULIP DAY NURSERY LTD,Individual School Budgets With Inclusion,1738.28,Grant Payments,2223P06_CR00678,152250
Sandwell Metropolitan Borough Council,http://www.sandwell.gov.uk/info/200202/performance_and_spending/1079/payments_over_500,21-Sep-2022,Individual School Budgets With Inclusion,TWO STEPS PRE-SCHOOL,Individual School Budgets With Inclusion,2673.83,Grant Payments,2223P06_CR00679,109186
Sandwell Metropolitan Borough Council,http://www.sandwell.gov.uk/info/200202/performance_and_spending/1079/payments_over_500,21-Sep-2022,Individual School Budgets With Inclusion,UNICORN DAY NURSERY,Individual School Budgets With Inclusion,27315.76,Grant Payments,2223P06_CR00680,91543
Sandwell Metropolitan Borough Council,http://www.sandwell.gov.uk/info/200202/performance_and_spending/1079/payments_over_500,21-Sep-2022,Individual School Budgets With Inclusion,UNITED KIDS CHILDCARE,Individual School Budgets With Inclusion,6059.34,Grant Payments,2223P06_CR00681,134806
Sandwell Metropolitan Borough Council,http://www.sandwell.gov.uk/info/200202/performance_and_spending/1079/payments_over_500,21-Sep-2022,Individual School Budgets With Inclusion,UNITED KIDS LIMITED,Individual School Budgets With Inclusion,5104.58,Grant Payments,2223P06_CR00682,136360
Sandwell Metropolitan Borough Council,http://www.sandwell.gov.uk/info/200202/performance_and_spending/1079/payments_over_500,21-Sep-2022,Individual School Budgets With Inclusion,WEST BROMWICH & DISTRICT Y.M.C.A. COMMUNITY ENTERPRISES,Individual School Budgets With Inclusion,10423.98,Grant Payments,2223P06_CR00683,01088376
Sandwell Metropolitan Borough Council,http://www.sandwell.gov.uk/info/200202/performance_and_spending/1079/payments_over_500,21-Sep-2022,Individual School Budgets With Inclusion,WHITECREST PRIMARY SCHOOL ,Individual School Budgets With Inclusion,4885.65,Grant Payments,2223P06_CR00684,38087
Sandwell Metropolitan Borough Council,http://www.sandwell.gov.uk/info/200202/performance_and_spending/1079/payments_over_500,21-Sep-2022,Individual School Budgets With Inclusion,WIGGLES & GIGGLES LTD,Individual School Budgets With Inclusion,13465.20,Grant Payments,2223P06_CR00685,01674799
Sandwell Metropolitan Borough Council,http://www.sandwell.gov.uk/info/200202/performance_and_spending/1079/payments_over_500,21-Sep-2022,Individual School Budgets With Inclusion,WONDERLAND CHILDRENS DAY NURSERY (UK) LTD,Individual School Budgets With Inclusion,14827.58,Grant Payments,2223P06_CR00686,50852
Sandwell Metropolitan Borough Council,http://www.sandwell.gov.uk/info/200202/performance_and_spending/1079/payments_over_500,21-Sep-2022,Individual School Budgets With Inclusion,ANNE MARIE JACKSON-HEPBURN,Individual School Budgets With Inclusion,951.30,Grant Payments,2223P06_CR00687,162845
Sandwell Metropolitan Borough Council,http://www.sandwell.gov.uk/info/200202/performance_and_spending/1079/payments_over_500,21-Sep-2022,Individual School Budgets With Inclusion,CARA PRATT,Individual School Budgets With Inclusion,961.80,Grant Payments,2223P06_CR00688,140537
Sandwell Metropolitan Borough Council,http://www.sandwell.gov.uk/info/200202/performance_and_spending/1079/payments_over_500,21-Sep-2022,Individual School Budgets With Inclusion,CAROLINE HENDERSON,Individual School Budgets With Inclusion,713.48,Grant Payments,2223P06_CR00689,129980
Sandwell Metropolitan Borough Council,http://www.sandwell.gov.uk/info/200202/performance_and_spending/1079/payments_over_500,21-Sep-2022,Individual School Budgets With Inclusion,CAROLINE TAVARES,Individual School Budgets With Inclusion,713.48,Grant Payments,2223P06_CR00690,112188
Sandwell Metropolitan Borough Council,http://www.sandwell.gov.uk/info/200202/performance_and_spending/1079/payments_over_500,21-Sep-2022,Individual School Budgets With Inclusion,CLAIRE PARTRIDGE,Individual School Budgets With Inclusion,713.48,Grant Payments,2223P06_CR00691,123143
Sandwell Metropolitan Borough Council,http://www.sandwell.gov.uk/info/200202/performance_and_spending/1079/payments_over_500,21-Sep-2022,Individual School Budgets With Inclusion,CLARE O'DRISCOLL,Individual School Budgets With Inclusion,642.13,Grant Payments,2223P06_CR00692,129659
Sandwell Metropolitan Borough Council,http://www.sandwell.gov.uk/info/200202/performance_and_spending/1079/payments_over_500,21-Sep-2022,Individual School Budgets With Inclusion,GAIL FAY PREECE,Individual School Budgets With Inclusion,501.90,Grant Payments,2223P06_CR00693,61415
Sandwell Metropolitan Borough Council,http://www.sandwell.gov.uk/info/200202/performance_and_spending/1079/payments_over_500,21-Sep-2022,Individual School Budgets With Inclusion,GEMMA NOONE,Individual School Budgets With Inclusion,501.90,Grant Payments,2223P06_CR00694,153866
Sandwell Metropolitan Borough Council,http://www.sandwell.gov.uk/info/200202/performance_and_spending/1079/payments_over_500,21-Sep-2022,Individual School Budgets With Inclusion,JACQUELINE HEHIR,Individual School Budgets With Inclusion,1701.53,Grant Payments,2223P06_CR00695,75203
Sandwell Metropolitan Borough Council,http://www.sandwell.gov.uk/info/200202/performance_and_spending/1079/payments_over_500,21-Sep-2022,Individual School Budgets With Inclusion,JENNIFER LOUISE LEATHERLAND,Individual School Budgets With Inclusion,1701.53,Grant Payments,2223P06_CR00696,131850
Sandwell Metropolitan Borough Council,http://www.sandwell.gov.uk/info/200202/performance_and_spending/1079/payments_over_500,21-Sep-2022,Individual School Budgets With Inclusion,KAI DRUMS,Individual School Budgets With Inclusion,6896.93,Grant Payments,2223P06_CR00697,120729
Sandwell Metropolitan Borough Council,http://www.sandwell.gov.uk/info/200202/performance_and_spending/1079/payments_over_500,21-Sep-2022,Individual School Budgets With Inclusion,LEEANNE ADAMS,Individual School Budgets With Inclusion,713.48,Grant Payments,2223P06_CR00698,134517
Sandwell Metropolitan Borough Council,http://www.sandwell.gov.uk/info/200202/performance_and_spending/1079/payments_over_500,21-Sep-2022,Individual School Budgets With Inclusion,MONIQUE BROWN.,Individual School Budgets With Inclusion,752.85,Grant Payments,2223P06_CR00699,127112
Sandwell Metropolitan Borough Council,http://www.sandwell.gov.uk/info/200202/performance_and_spending/1079/payments_over_500,21-Sep-2022,Individual School Budgets With Inclusion,NATALIE WESTON,Individual School Budgets With Inclusion,951.30,Grant Payments,2223P06_CR00700,152056
Sandwell Metropolitan Borough Council,http://www.sandwell.gov.uk/info/200202/performance_and_spending/1079/payments_over_500,21-Sep-2022,Individual School Budgets With Inclusion,ROWINA WINDSOR,Individual School Budgets With Inclusion,729.23,Grant Payments,2223P06_CR00701,138305
Sandwell Metropolitan Borough Council,http://www.sandwell.gov.uk/info/200202/performance_and_spending/1079/payments_over_500,21-Sep-2022,Individual School Budgets With Inclusion,SARAH HOWEY,Individual School Budgets With Inclusion,713.48,Grant Payments,2223P06_CR00702,140888
Sandwell Metropolitan Borough Council,http://www.sandwell.gov.uk/info/200202/performance_and_spending/1079/payments_over_500,21-Sep-2022,Individual School Budgets With Inclusion,SATVINDER KAUR,Individual School Budgets With Inclusion,1189.13,Grant Payments,2223P06_CR00703,131042
Sandwell Metropolitan Borough Council,http://www.sandwell.gov.uk/info/200202/performance_and_spending/1079/payments_over_500,21-Sep-2022,Individual School Budgets With Inclusion,VANESSA BILLINGSLEY,Individual School Budgets With Inclusion,713.48,Grant Payments,2223P06_CR00704,125216
Sandwell Metropolitan Borough Council,http://www.sandwell.gov.uk/info/200202/performance_and_spending/1079/payments_over_500,21-Sep-2022,Individual School Budgets With Inclusion,WENDY MAXWELL,Individual School Budgets With Inclusion,1701.53,Grant Payments,2223P06_CR00705,37344
Sandwell Metropolitan Borough Council,http://www.sandwell.gov.uk/info/200202/performance_and_spending/1079/payments_over_500,23-Sep-2022,Individual School Budgets With Inclusion,ACORN CARE AND EDUCATION LIMITED,Individual School Budgets With Inclusion,5416.67,Other Establishments,2223P06_CR00706,115235
Sandwell Metropolitan Borough Council,http://www.sandwell.gov.uk/info/200202/performance_and_spending/1079/payments_over_500,23-Sep-2022,Individual School Budgets With Inclusion,ACORN CARE AND EDUCATION LIMITED,Individual School Budgets With Inclusion,6458.33,Other Establishments,2223P06_CR00707,115235
Sandwell Metropolitan Borough Council,http://www.sandwell.gov.uk/info/200202/performance_and_spending/1079/payments_over_500,23-Sep-2022,Individual School Budgets With Inclusion,ACORN CARE AND EDUCATION LIMITED,Individual School Budgets With Inclusion,7321.10,Other Establishments,2223P06_CR00708,115235
Sandwell Metropolitan Borough Council,http://www.sandwell.gov.uk/info/200202/performance_and_spending/1079/payments_over_500,01-Sep-2022,Individual School Budgets With Inclusion,ACORN CARE AND EDUCATION LIMITED,Individual School Budgets With Inclusion,11607.38,Other Establishments,2223P06_CR00709,115235
Sandwell Metropolitan Borough Council,http://www.sandwell.gov.uk/info/200202/performance_and_spending/1079/payments_over_500,01-Sep-2022,Individual School Budgets With Inclusion,ACORN CARE AND EDUCATION LIMITED,Individual School Budgets With Inclusion,17621.63,Other Establishments,2223P06_CR00710,115235
Sandwell Metropolitan Borough Council,http://www.sandwell.gov.uk/info/200202/performance_and_spending/1079/payments_over_500,01-Sep-2022,Individual School Budgets With Inclusion,ACORN CARE AND EDUCATION LIMITED,Individual School Budgets With Inclusion,17621.63,Other Establishments,2223P06_CR00711,115235
Sandwell Metropolitan Borough Council,http://www.sandwell.gov.uk/info/200202/performance_and_spending/1079/payments_over_500,01-Sep-2022,Individual School Budgets With Inclusion,ACORN CARE AND EDUCATION LIMITED,Individual School Budgets With Inclusion,19883.33,Other Establishments,2223P06_CR00712,115235
Sandwell Metropolitan Borough Council,http://www.sandwell.gov.uk/info/200202/performance_and_spending/1079/payments_over_500,01-Sep-2022,Individual School Budgets With Inclusion,ACORN CARE AND EDUCATION LIMITED,Individual School Budgets With Inclusion,19883.33,Other Establishments,2223P06_CR00713,115235
Sandwell Metropolitan Borough Council,http://www.sandwell.gov.uk/info/200202/performance_and_spending/1079/payments_over_500,01-Sep-2022,Individual School Budgets With Inclusion,ACORN CARE AND EDUCATION LIMITED,Individual School Budgets With Inclusion,28812.05,Other Establishments,2223P06_CR00714,115235
Sandwell Metropolitan Borough Council,http://www.sandwell.gov.uk/info/200202/performance_and_spending/1079/payments_over_500,01-Sep-2022,Individual School Budgets With Inclusion,ACORN CARE AND EDUCATION LIMITED,Individual School Budgets With Inclusion,28812.05,Other Establishments,2223P06_CR00715,115235
Sandwell Metropolitan Borough Council,http://www.sandwell.gov.uk/info/200202/performance_and_spending/1079/payments_over_500,01-Sep-2022,Individual School Budgets With Inclusion,ACORN CARE AND EDUCATION LIMITED,Individual School Budgets With Inclusion,28812.05,Other Establishments,2223P06_CR00716,115235
Sandwell Metropolitan Borough Council,http://www.sandwell.gov.uk/info/200202/performance_and_spending/1079/payments_over_500,01-Sep-2022,Individual School Budgets With Inclusion,ACORN CARE AND EDUCATION LIMITED,Individual School Budgets With Inclusion,34295.37,Other Establishments,2223P06_CR00717,115235
Sandwell Metropolitan Borough Council,http://www.sandwell.gov.uk/info/200202/performance_and_spending/1079/payments_over_500,01-Sep-2022,Individual School Budgets With Inclusion,ACTIVE CARE GROUP,Individual School Budgets With Inclusion,850.00,Externally Purchased Professional Services ,2223P06_CR00718,108302
Sandwell Metropolitan Borough Council,http://www.sandwell.gov.uk/info/200202/performance_and_spending/1079/payments_over_500,01-Sep-2022,Individual School Budgets With Inclusion,ACTIVE CARE GROUP,Individual School Budgets With Inclusion,1360.00,Externally Purchased Professional Services ,2223P06_CR00719,108302
Sandwell Metropolitan Borough Council,http://www.sandwell.gov.uk/info/200202/performance_and_spending/1079/payments_over_500,26-Sep-2022,Individual School Budgets With Inclusion,ACTIVE CARE GROUP,Individual School Budgets With Inclusion,2380.00,Externally Purchased Professional Services ,2223P06_CR00720,108302
Sandwell Metropolitan Borough Council,http://www.sandwell.gov.uk/info/200202/performance_and_spending/1079/payments_over_500,26-Sep-2022,Individual School Budgets With Inclusion,ACTIVE CARE GROUP,Individual School Budgets With Inclusion,3060.00,Externally Purchased Professional Services ,2223P06_CR00721,108302
Sandwell Metropolitan Borough Council,http://www.sandwell.gov.uk/info/200202/performance_and_spending/1079/payments_over_500,01-Sep-2022,Individual School Budgets With Inclusion,AJM SMART DEVELOPMENTS LTD,Individual School Budgets With Inclusion,15173.00,Building Maintenance & Improvements,2223P06_CR00722,162718
Sandwell Metropolitan Borough Council,http://www.sandwell.gov.uk/info/200202/performance_and_spending/1079/payments_over_500,01-Sep-2022,Individual School Budgets With Inclusion,ASCEND HEALTH AND CHILDCARE TRAINING,Individual School Budgets With Inclusion,1575.00,Other Establishments,2223P06_CR00723,136631
Sandwell Metropolitan Borough Council,http://www.sandwell.gov.uk/info/200202/performance_and_spending/1079/payments_over_500,01-Sep-2022,Individual School Budgets With Inclusion,ASCEND HEALTH AND CHILDCARE TRAINING,Individual School Budgets With Inclusion,2520.00,Other Establishments,2223P06_CR00724,136631
Sandwell Metropolitan Borough Council,http://www.sandwell.gov.uk/info/200202/performance_and_spending/1079/payments_over_500,01-Sep-2022,Individual School Budgets With Inclusion,ATOMWIDE LTD t/a ADEPT EDUCATION,Individual School Budgets With Inclusion,619.49,Telephones,2223P06_CR00725,133177
Sandwell Metropolitan Borough Council,http://www.sandwell.gov.uk/info/200202/performance_and_spending/1079/payments_over_500,01-Sep-2022,Individual School Budgets With Inclusion,BLACKWATER ACADEMY,Individual School Budgets With Inclusion,6200.00,Learning Resources,2223P06_CR00726,129151
Sandwell Metropolitan Borough Council,http://www.sandwell.gov.uk/info/200202/performance_and_spending/1079/payments_over_500,01-Sep-2022,Individual School Budgets With Inclusion,BLACKWATER ACADEMY,Individual School Budgets With Inclusion,8000.00,Learning Resources,2223P06_CR00727,129151
Sandwell Metropolitan Borough Council,http://www.sandwell.gov.uk/info/200202/performance_and_spending/1079/payments_over_500,01-Sep-2022,Individual School Budgets With Inclusion,BLACKWATER ACADEMY,Individual School Budgets With Inclusion,14625.00,Learning Resources,2223P06_CR00728,129151
Sandwell Metropolitan Borough Council,http://www.sandwell.gov.uk/info/200202/performance_and_spending/1079/payments_over_500,01-Sep-2022,Individual School Budgets With Inclusion,BLACKWATER ACADEMY,Individual School Budgets With Inclusion,14625.00,Learning Resources,2223P06_CR00729,129151
Sandwell Metropolitan Borough Council,http://www.sandwell.gov.uk/info/200202/performance_and_spending/1079/payments_over_500,01-Sep-2022,Individual School Budgets With Inclusion,BROWNS BOOKS FOR STUDENTS,Individual School Budgets With Inclusion,789.38,Externally Purchased Professional Services ,2223P06_CR00730,123872
Sandwell Metropolitan Borough Council,http://www.sandwell.gov.uk/info/200202/performance_and_spending/1079/payments_over_500,23-Sep-2022,Individual School Budgets With Inclusion,CARE FIRST MANAGEMENT,Individual School Budgets With Inclusion,2267.08,Other Establishments,2223P06_CR00731,136901
Sandwell Metropolitan Borough Council,http://www.sandwell.gov.uk/info/200202/performance_and_spending/1079/payments_over_500,01-Sep-2022,Individual School Budgets With Inclusion,CHARTER OFFICE EQUIPMENT LTD,Individual School Budgets With Inclusion,632.95,"Printing, Stationery & General Office Expenses",2223P06_CR00732,2266
Sandwell Metropolitan Borough Council,http://www.sandwell.gov.uk/info/200202/performance_and_spending/1079/payments_over_500,01-Sep-2022,Individual School Budgets With Inclusion,COLMORE EDUCATION RECRUITMENT,Individual School Budgets With Inclusion,810.00,Agency Staff,2223P06_CR00733,148720
Sandwell Metropolitan Borough Council,http://www.sandwell.gov.uk/info/200202/performance_and_spending/1079/payments_over_500,01-Sep-2022,Individual School Budgets With Inclusion,COLMORE EDUCATION RECRUITMENT,Individual School Budgets With Inclusion,1065.00,Agency Staff,2223P06_CR00734,148720
Sandwell Metropolitan Borough Council,http://www.sandwell.gov.uk/info/200202/performance_and_spending/1079/payments_over_500,01-Sep-2022,Individual School Budgets With Inclusion,COLMORE EDUCATION RECRUITMENT,Individual School Budgets With Inclusion,1215.00,Agency Staff,2223P06_CR00735,148720
Sandwell Metropolitan Borough Council,http://www.sandwell.gov.uk/info/200202/performance_and_spending/1079/payments_over_500,01-Sep-2022,Individual School Budgets With Inclusion,COLMORE EDUCATION RECRUITMENT,Individual School Budgets With Inclusion,1350.00,Agency Staff,2223P06_CR00736,148720
Sandwell Metropolitan Borough Council,http://www.sandwell.gov.uk/info/200202/performance_and_spending/1079/payments_over_500,01-Sep-2022,Individual School Budgets With Inclusion,COLMORE EDUCATION RECRUITMENT,Individual School Budgets With Inclusion,1470.00,Agency Staff,2223P06_CR00737,148720
Sandwell Metropolitan Borough Council,http://www.sandwell.gov.uk/info/200202/performance_and_spending/1079/payments_over_500,01-Sep-2022,Individual School Budgets With Inclusion,COLMORE EDUCATION RECRUITMENT,Individual School Budgets With Inclusion,1775.00,Agency Staff,2223P06_CR00738,148720
Sandwell Metropolitan Borough Council,http://www.sandwell.gov.uk/info/200202/performance_and_spending/1079/payments_over_500,01-Sep-2022,Individual School Budgets With Inclusion,COLMORE EDUCATION RECRUITMENT,Individual School Budgets With Inclusion,2450.00,Agency Staff,2223P06_CR00739,148720
Sandwell Metropolitan Borough Council,http://www.sandwell.gov.uk/info/200202/performance_and_spending/1079/payments_over_500,01-Sep-2022,Individual School Budgets With Inclusion,COLMORE EDUCATION RECRUITMENT,Individual School Budgets With Inclusion,2655.00,Agency Staff,2223P06_CR00740,148720
Sandwell Metropolitan Borough Council,http://www.sandwell.gov.uk/info/200202/performance_and_spending/1079/payments_over_500,01-Sep-2022,Individual School Budgets With Inclusion,DAYYA LTD,Individual School Budgets With Inclusion,1750.00,Learning Resources,2223P06_CR00741,163651
